Workbook

Sheet Cash-Flow-DATA
B1: (бюджетна организация, предприятие по чл. 165, ал. 1 от ЗПФ, поделение) | F1: ЕИК/БУЛСТАТ | G1: код по ЕБК | I1: Web-адрес | L1: e-mail | P1: финансово-правна форма
B2: =+OTCHET!B9 -> ОБЛАСТНА АДМИНИСТРАЦИЯ ПАЗАРДЖИК | F2: =+OTCHET!H9 -> 112121473 | G2: =+OTCHET!F12 -> 0300 | I2: =+OTCHET!H603 -> 0 | L2: =+OTCHET!H601 -> accountant@pz.government.bg | P2: =+OTCHET!E15 -> 0 | Q2: =+OTCHET!F15 -> БЮДЖЕТ | S2: код от регистъра на бюджетните организации в СЕБРА | T2: =+OTCHET!I9 -> 30010130
B4: ИНФОРМАЦИЯ ЗА ИЗГОТВЯНЕ НА ОТЧЕТ ЗА КАСОВОТО ИЗПЪЛНЕНИЕ | J4: ГОДИНА | L4: =+Q4 -> 2017 | P4: ГОДИНА | Q4: =+OTCHET!C3 -> 2017 | S4: ОТЧЕТ ЗА КАСОВОТО ИЗПЪЛНЕНИЕ НА БЮДЖЕТА, СМЕТКИТЕ ЗА СЕС И ЧУЖДИТЕ СРЕДСТВА
B6: НА БЮДЖЕТА, СМЕТКИТЕ ЗА СРЕДСТВАТА ОТ ЕВРОПЕЙСКИЯ СЪЮЗ И СМЕТКИТЕ ЗА ЧУЖДИ СРЕДСТВА КЪМ | L6: =OTCHET!F9 -> 2017-12-31 | N6: (В ЛЕВОВЕ) | P6: =OTCHET!F9 -> 2017-12-31 | Q6: (В ЛЕВОВЕ) | S6: =+Q4 -> 2017
F8: БЮДЖЕТ Годишен уточнен план | G8: БЮДЖЕТ -ОТЧЕТ | I8: Сметки за сред-ства от Европей-ския съюз-инди-кативни разчети | J8: Сметки за сред-ства от Евро-пейския съюз - ОТЧЕТ | L8: Сметки за чуж-ди средства - ОТЧЕТ | N8: ОБЩО КАСОВ ОТЧЕТ | P8: таблица 'OTCHET' Год. уточнен план | Q8: таблица 'OTCHET' ОТЧЕТ | S8: §§ от ЕБК, които се включват в съответния показател
B9: П О К А З А Т Е Л И | F9: =+L4 -> 2017 | G9: =+L6 -> 2017-12-31 | I9: =+L4 -> 2017 | J9: =+L6 -> 2017-12-31 | L9: =+L6 -> 2017-12-31 | N9: =+L6 -> 2017-12-31 | P9: =+L4 -> 2017 | Q9: =OTCHET!F9 -> 2017-12-31 | S9: П О К А З А Т Е Л И
B10: (а) | F10: (1) | G10: (2) | I10: (3) | J10: (4) | L10: (5) | N10: (6)=(2)+(4)+(5) | P10: (1) | Q10: (2)
B11: А. ПРИХОДИ, ПОМОЩИ И ДАРЕНИЯ | S11: А. ПРИХОДИ, ПОМОЩИ И ДАРЕНИЯ
B12: I. Постъпления от текущи приходи | S12: I. Постъпления от текущи приходи
B13: 1. Приходи от данъци и осигурителни вноски | F13: =+IF($P$2=0,$P13,0) -> 0 | G13: =+IF($P$2=0,$Q13,0) -> 0 | I13: =+IF(OR($P$2=98,$P$2=42,$P$2=96,$P$2=97),$P13,0) -> 0 | J13: =+IF(OR($P$2=98,$P$2=42,$P$2=96,$P$2=97),$Q13,0) -> 0 | L13: =+IF($P$2=33,$Q13,0) -> 0 | N13: =+ROUND(+G13+J13+L13,0) -> 0 | P13: =+ROUND(OTCHET!E22+OTCHET!E28+OTCHET!E33+OTCHET!E39+OTCHET!E47+OTCHET!E52+OTCHET!E58+OTCHET!E61+OTCHET!E64+OTCHET!E65+OTCHET!E72+OTCHET!E73+OTCHET!E74,0) -> 0 | Q13: =+ROUND(OTCHET!F22+OTCHET!F28+OTCHET!F33+OTCHET!F39+OTCHET!F47+OTCHET!F52+OTCHET!F58+OTCHET!F61+OTCHET!F64+OTCHET!F65+OTCHET!F72+OTCHET!F73+OTCHET!F74,0) -> 0 | S13: приходни §§ 01-00 ÷ 20-00
B14: 2. Приходи от такси | F14: =+IF($P$2=0,$P14,0) -> 7000 | G14: =+IF($P$2=0,$Q14,0) -> 5668 | I14: =+IF(OR($P$2=98,$P$2=42,$P$2=96,$P$2=97),$P14,0) -> 0 | J14: =+IF(OR($P$2=98,$P$2=42,$P$2=96,$P$2=97),$Q14,0) -> 0 | L14: =+IF($P$2=33,$Q14,0) -> 0 | N14: =+ROUND(+G14+J14+L14,0) -> 5668 | P14: =+ROUND(+OTCHET!E90+OTCHET!E93+OTCHET!E94,0) -> 7000 | Q14: =+ROUND(+OTCHET!F90+OTCHET!F93+OTCHET!F94,0) -> 5668 | S14: приходни §§ 25-00, 26-00 и 27-00
B15: 3. Приходи от административни глоби, санкции и наказателни лихви | F15: 0 | G15: 431 | I15: 0 | J15: 0 | L15: 0 | N15: 431 | P15: =+ROUND(+OTCHET!E110+OTCHET!E111,0) -> 0 | Q15: =+ROUND(+OTCHET!F110+OTCHET!F111,0) -> 431 | S15: приходни §§ 28-02 и 28-09
B16: 4. Нетни приходи от продажби на услуги, стоки и продукция | F16: 0 | G16: 0 | I16: 0 | J16: 0 | L16: 0 | N16: 0 | P16: =+ROUND(OTCHET!E78,0) -> 0 | Q16: =+ROUND(OTCHET!F78,0) -> 0 | S16: приходeн § 24-04
B17: 5. Приходи от наеми | F17: 60000 | G17: 64530 | I17: 0 | J17: 0 | L17: 0 | N17: 64530 | P17: =+ROUND(OTCHET!E79+OTCHET!E80,0) -> 60000 | Q17: =+ROUND(OTCHET!F79+OTCHET!F80,0) -> 64530 | S17: приходни §§ 24-05 и 24-06
B18: 6. Приходи от концесии и лицензии за ползване на публични активи | F18: 0 | G18: 0 | I18: 0 | J18: 0 | L18: 0 | N18: 0 | P18: =+ROUND(OTCHET!E136++OTCHET!E137,0) -> 0 | Q18: =+ROUND(OTCHET!F136++OTCHET!F137,0) -> 0 | S18: приходни §§ 41-00 и 42-00
B19: 7. Приходи от лихви | F19: 0 | G19: 0 | I19: 0 | J19: 0 | L19: 0 | N19: 0 | P19: =+ROUND(+SUM(OTCHET!E82:E89),0) -> 0 | Q19: =+ROUND(+SUM(OTCHET!F82:F89),0) -> 0 | S19: приходни §§ 24-08 ÷ 24-19
B20: 8. Приходи от дивиденти и дялово участие | F20: 0 | G20: 0 | I20: 0 | J20: 0 | L20: 0 | N20: 0 | P20: =+ROUND(OTCHET!E76+OTCHET!E77+OTCHET!E81,0) -> 0 | Q20: =+ROUND(OTCHET!F76+OTCHET!F77+OTCHET!F81,0) -> 0 | S20: приходни §§ 24-01, 24-03 и 24-07
B21: 9. Други текущи приходи и реализирани курсови разлики | F21: 5000 | G21: 7017 | I21: 0 | J21: 0 | L21: 0 | N21: 7017 | P21: =+ROUND(OTCHET!E113+OTCHET!E114+OTCHET!E115+OTCHET!E119,0) -> 5000 | Q21: =+ROUND(OTCHET!F113+OTCHET!F114+OTCHET!F115+OTCHET!F119,0) -> 7017 | S21: приходни §§ 36-01, 36-05, 36-10 и 36-19
B22: Общо за група І. Постъпления от текущи приходи | F22: =+ROUND(+SUM(F13:F21),0) -> 72000 | G22: =+ROUND(+SUM(G13:G21),0) -> 77646 | I22: =+ROUND(+SUM(I13:I21),0) -> 0 | J22: =+ROUND(+SUM(J13:J21),0) -> 0 | L22: =+ROUND(+SUM(L13:L21),0) -> 0 | N22: =+ROUND(+SUM(N13:N21),0) -> 77646 | P22: =+ROUND(+SUM(P13:P21),0) -> 72000 | Q22: =+ROUND(+SUM(Q13:Q21),0) -> 77646 | S22: сборен ред за група І. Постъпления от текущи приходи
B23: IІ. Реализация на нефинансови активи и конфискувани средства | S23: IІ. Реализация на нефинансови активи и конфискувани средства
B24: 1. Продажба на земя | F24: =+IF($P$2=0,$P24,0) -> 70000 | G24: =+IF($P$2=0,$Q24,0) -> 13693 | I24: =+IF(OR($P$2=98,$P$2=42,$P$2=96,$P$2=97),$P24,0) -> 0 | J24: =+IF(OR($P$2=98,$P$2=42,$P$2=96,$P$2=97),$Q24,0) -> 0 | L24: =+IF($P$2=33,$Q24,0) -> 0 | N24: =+ROUND(+G24+J24+L24,0) -> 13693 | P24: =+ROUND(OTCHET!E134,0) -> 70000 | Q24: =+ROUND(OTCHET!F134,0) -> 13693 | S24: приходeн § 40-40
B25: 2. Продажба на други нефинансови дълготрайни активи | F25: =+IF($P$2=0,$P25,0) -> 0 | G25: =+IF($P$2=0,$Q25,0) -> 25077 | I25: =+IF(OR($P$2=98,$P$2=42,$P$2=96,$P$2=97),$P25,0) -> 0 | J25: =+IF(OR($P$2=98,$P$2=42,$P$2=96,$P$2=97),$Q25,0) -> 0 | L25: =+IF($P$2=33,$Q25,0) -> 0 | N25: =+ROUND(+G25+J25+L25,0) -> 25077 | P25: =+ROUND(+SUM(OTCHET!E125:E133)+OTCHET!E135,0) -> 0 | Q25: =+ROUND(+SUM(OTCHET!F125:F133)+OTCHET!F135,0) -> 25077 | S25: приходeн § 40-00 без §§ 40-40 и 40-71
B26: 3. Конфиск. средства и продажби на конфискувани и от залог нефин. активи | F26: =+IF($P$2=0,$P26,0) -> 0 | G26: =+IF($P$2=0,$Q26,0) -> 0 | I26: =+IF(OR($P$2=98,$P$2=42,$P$2=96,$P$2=97),$P26,0) -> 0 | J26: =+IF(OR($P$2=98,$P$2=42,$P$2=96,$P$2=97),$Q26,0) -> 0 | L26: =+IF($P$2=33,$Q26,0) -> 0 | N26: =+ROUND(+G26+J26+L26,0) -> 0 | P26: =+ROUND(+OTCHET!E109,0) -> 0 | Q26: =+ROUND(+OTCHET!F109,0) -> 0 | S26: приходeн § 28-01
B27: Общо за група ІІ. Постъпления от продажби на нефинансови активи | F27: =+ROUND(+SUM(F24:F26),0) -> 70000 | G27: =+ROUND(+SUM(G24:G26),0) -> 38770 | I27: =+ROUND(+SUM(I24:I26),0) -> 0 | J27: =+ROUND(+SUM(J24:J26),0) -> 0 | L27: =+ROUND(+SUM(L24:L26),0) -> 0 | N27: =+ROUND(+SUM(N24:N26),0) -> 38770 | P27: =+ROUND(+SUM(P24:P26),0) -> 70000 | Q27: =+ROUND(+SUM(Q24:Q26),0) -> 38770 | S27: сборен ред за група ІІ. Постъпления от продажби на нефинансови активи
B29: IІI. Внесен ДДС, др. данъци в/у продажбите и коректив за постъпления
B30: 1. Внесен ДДС
B31: 2. Внесен данък върху приходите от стопанска дейност
B32: 3. Внесени други данъци върху продажбите
B33: 4. Коректив за касови постъпления
B34: ІІІ. Внесен ДДС и др. данъци в/у продажбите и коректив за постъпления | F34: =+IF($P$2=0,$P34,0) -> 0 | G34: =+IF($P$2=0,$Q34,0) -> -14063 | I34: =+IF(OR($P$2=98,$P$2=42,$P$2=96,$P$2=97),$P34,0) -> 0 | J34: =+IF(OR($P$2=98,$P$2=42,$P$2=96,$P$2=97),$Q34,0) -> 0 | L34: =+IF($P$2=33,$Q34,0) -> 0 | N34: =+ROUND(+G34+J34+L34,0) -> -14063 | P34: =+ROUND(+OTCHET!E120+OTCHET!E118,0) -> 0 | Q34: =+ROUND(+OTCHET!F120+OTCHET!F118,0) -> -14063 | S34: ІІІ. Внесен ДДС и др. д-ци в/у продажбите и коректив - приходни § 36-18 и 37-00
B35: в т. ч. внесен ДДС | F35: =+IF($P$2=0,$P35,0) -> 0 | G35: =+IF($P$2=0,$Q35,0) -> -11250 | I35: =+IF(OR($P$2=98,$P$2=42,$P$2=96,$P$2=97),$P35,0) -> 0 | J35: =+IF(OR($P$2=98,$P$2=42,$P$2=96,$P$2=97),$Q35,0) -> 0 | L35: =+IF($P$2=33,$Q35,0) -> 0 | N35: -11250 | P35: =+ROUND(OTCHET!E121,0) -> 0 | Q35: =+ROUND(OTCHET!F121,0) -> -11250 | S35: приходен § 37-01
B36: внесен данък в/у приходите от стопанска дейност | F36: =+IF($P$2=0,$P36,0) -> 0 | G36: =+IF($P$2=0,$Q36,0) -> -2813 | I36: =+IF(OR($P$2=98,$P$2=42,$P$2=96,$P$2=97),$P36,0) -> 0 | J36: =+IF(OR($P$2=98,$P$2=42,$P$2=96,$P$2=97),$Q36,0) -> 0 | L36: =+IF($P$2=33,$Q36,0) -> 0 | N36: -2813 | P36: =+ROUND(OTCHET!E122,0) -> 0 | Q36: =+ROUND(OTCHET!F122,0) -> -2813 | S36: приходен § 37-02
B37: внесени други данъци, такси и вноски в/у продажбите | F37: =+IF($P$2=0,$P37,0) -> 0 | G37: =+IF($P$2=0,$Q37,0) -> 0 | I37: =+IF(OR($P$2=98,$P$2=42,$P$2=96,$P$2=97),$P37,0) -> 0 | J37: =+IF(OR($P$2=98,$P$2=42,$P$2=96,$P$2=97),$Q37,0) -> 0 | L37: =+IF($P$2=33,$Q37,0) -> 0 | N37: 0 | P37: =+ROUND(OTCHET!E123,0) -> 0 | Q37: =+ROUND(OTCHET!F123,0) -> 0 | S37: приходен § 37-09
B39: IV. Постъпления от застрахователни обезщетения | F39: =+IF($P$2=0,$P39,0) -> 0 | G39: =+IF($P$2=0,$Q39,0) -> 0 | I39: =+IF(OR($P$2=98,$P$2=42,$P$2=96,$P$2=97),$P39,0) -> 0 | J39: =+IF(OR($P$2=98,$P$2=42,$P$2=96,$P$2=97),$Q39,0) -> 0 | L39: =+IF($P$2=33,$Q39,0) -> 0 | N39: 0 | P39: =+ROUND(OTCHET!E116+OTCHET!E117,0) -> 0 | Q39: =+ROUND(OTCHET!F116+OTCHET!F117,0) -> 0 | S39: IV. Постъпления от застрахователни обезщетения - приходни § 36-11 и 36-12
B40: V. Приходи от помощи и дарения | S40: V. Приходи от помощи и дарения
B41: 1. Помощи и дарения от Европейския съюз | F41: =+IF($P$2=0,$P41,0) -> 0 | G41: =+IF($P$2=0,$Q41,0) -> 0 | I41: =+IF(OR($P$2=98,$P$2=42,$P$2=96,$P$2=97),$P41,0) -> 0 | J41: =+IF(OR($P$2=98,$P$2=42,$P$2=96,$P$2=97),$Q41,0) -> 0 | L41: =+IF($P$2=33,$Q41,0) -> 0 | N41: =+ROUND(+G41+J41+L41,0) -> 0 | P41: =+ROUND(OTCHET!E142+OTCHET!E143+OTCHET!E160+OTCHET!E161,0) -> 0 | Q41: =+ROUND(OTCHET!F142+OTCHET!F143+OTCHET!F160+OTCHET!F161,0) -> 0 | S41: приходни §§ 46-10, 46-20, 48-10 и 48-20
B42: 2. Други помощи и дарения от чужбина | F42: =+IF($P$2=0,$P42,0) -> 0 | G42: =+IF($P$2=0,$Q42,0) -> 0 | I42: =+IF(OR($P$2=98,$P$2=42,$P$2=96,$P$2=97),$P42,0) -> 0 | J42: =+IF(OR($P$2=98,$P$2=42,$P$2=96,$P$2=97),$Q42,0) -> 0 | L42: =+IF($P$2=33,$Q42,0) -> 0 | N42: =+ROUND(+G42+J42+L42,0) -> 0 | P42: =+ROUND(+SUM(OTCHET!E144:E149)+SUM(OTCHET!E162:E167),0) -> 0 | Q42: =+ROUND(+SUM(OTCHET!F144:F149)+SUM(OTCHET!F162:F167),0) -> 0 | S42: приходни §§ 46-30 ÷ 46-80 и §§ 48-30 ÷ 48-80
B43: 3. Други безвъзмездно получени средства по международни и други програми | F43: =+IF($P$2=0,$P43,0) -> 0 | G43: =+IF($P$2=0,$Q43,0) -> 0 | I43: =+IF(OR($P$2=98,$P$2=42,$P$2=96,$P$2=97),$P43,0) -> 0 | J43: =+IF(OR($P$2=98,$P$2=42,$P$2=96,$P$2=97),$Q43,0) -> 0 | L43: =+IF($P$2=33,$Q43,0) -> 0 | N43: =+ROUND(+G43+J43+L43,0) -> 0 | P43: =+ROUND(OTCHET!E150,0) -> 0 | Q43: =+ROUND(OTCHET!F150,0) -> 0 | S43: приходeн § 47-00
B44: 4. Помощи и дарения от страната | F44: =+IF($P$2=0,$P44,0) -> 0 | G44: =+IF($P$2=0,$Q44,0) -> 0 | I44: =+IF(OR($P$2=98,$P$2=42,$P$2=96,$P$2=97),$P44,0) -> 0 | J44: =+IF(OR($P$2=98,$P$2=42,$P$2=96,$P$2=97),$Q44,0) -> 0 | L44: =+IF($P$2=33,$Q44,0) -> 0 | N44: =+ROUND(+G44+J44+L44,0) -> 0 | P44: =+ROUND(OTCHET!E138,0) -> 0 | Q44: =+ROUND(OTCHET!F138,0) -> 0 | S44: приходeн § 45-00
B45: Общо за група V. Приходи от помощи и дарения | F45: =+ROUND(+SUM(F41:F44),0) -> 0 | G45: =+ROUND(+SUM(G41:G44),0) -> 0 | I45: =+ROUND(+SUM(I41:I44),0) -> 0 | J45: =+ROUND(+SUM(J41:J44),0) -> 0 | L45: =+ROUND(+SUM(L41:L44),0) -> 0 | N45: =+ROUND(+SUM(N41:N44),0) -> 0 | P45: =+ROUND(+SUM(P41:P44),0) -> 0 | Q45: =+ROUND(+SUM(Q41:Q44),0) -> 0 | S45: сборен ред за група V. Приходи от помощи и дарения
B47: А. ОБЩО ПРИХОДИ, ПОМОЩИ И ДАРЕНИЯ | F47: =+ROUND(F22+F27+F34+F39+F45,0) -> 142000 | G47: =+ROUND(G22+G27+G34+G39+G45,0) -> 102353 | I47: =+ROUND(I22+I27+I34+I39+I45,0) -> 0 | J47: =+ROUND(J22+J27+J34+J39+J45,0) -> 0 | L47: =+ROUND(L22+L27+L34+L39+L45,0) -> 0 | N47: =+ROUND(N22+N27+N34+N39+N45,0) -> 102353 | P47: =+ROUND(P22+P27+P34+P39+P45,0) -> 142000 | Q47: =+ROUND(Q22+Q27+Q34+Q39+Q45,0) -> 102353 | S47: сборен ред за А. ОБЩО ПРИХОДИ, ПОМОЩИ И ДАРЕНИЯ
B48: Б. РАЗХОДИ И ПРИДОБИВАНЕ НА НЕФИНАНСОВИ АКТИВИ | S48: Б. РАЗХОДИ И ПРИДОБИВАНЕ НА НЕФИНАНСОВИ АКТИВИ
B49: I. Плащания за текущи нелихвени разходи | S49: I. Плащания за текущи нелихвени разходи
B50: 1. Разходи за издръжка - нефинансови позиции | F50: =+IF($P$2=0,$P50,0) -> 578867 | G50: =+IF($P$2=0,$Q50,0) -> 555980 | I50: =+IF(OR($P$2=98,$P$2=42,$P$2=96,$P$2=97),$P50,0) -> 0 | J50: =+IF(OR($P$2=98,$P$2=42,$P$2=96,$P$2=97),$Q50,0) -> 0 | L50: =+IF($P$2=33,$Q50,0) -> 0 | N50: =+ROUND(+G50+J50+L50,0) -> 555980 | P50: =+ROUND(OTCHET!E204-SUM(OTCHET!E216:E218)+OTCHET!E271+IF(+OR(OTCHET!$F$12="5500",OTCHET!$F$12="5600"),0,+OTCHET!E297),0) -> 578867 | Q50: =+ROUND(OTCHET!F204-SUM(OTCHET!F216:F218)+OTCHET!F271+IF(+OR(OTCHET!$F$12="5500",OTCHET!$F$12="5600"),0,+OTCHET!F297),0) -> 555980 | S50: разходни §§ 10-00 (без §§ 10-62, 10-63 и 10-69), 46-00 и § 00-98 (без НОИ и НЗОК)
B51: 2. Разходи за застраховане и други финансови услуги | F51: =+IF($P$2=0,$P51,0) -> 0 | G51: =+IF($P$2=0,$Q51,0) -> 2408 | I51: =+IF(OR($P$2=98,$P$2=42,$P$2=96,$P$2=97),$P51,0) -> 0 | J51: =+IF(OR($P$2=98,$P$2=42,$P$2=96,$P$2=97),$Q51,0) -> 0 | L51: =+IF($P$2=33,$Q51,0) -> 0 | N51: =+ROUND(+G51+J51+L51,0) -> 2408 | P51: =+ROUND(+SUM(OTCHET!E216:E218),0) -> 0 | Q51: =+ROUND(+SUM(OTCHET!F216:F218),0) -> 2408 | S51: разходни §§ 10-62, 10-63 и 10-69
B52: 3. Платени данъци, такси и административни санкции | F52: =+IF($P$2=0,$P52,0) -> 21000 | G52: =+IF($P$2=0,$Q52,0) -> 20320 | I52: =+IF(OR($P$2=98,$P$2=42,$P$2=96,$P$2=97),$P52,0) -> 0 | J52: =+IF(OR($P$2=98,$P$2=42,$P$2=96,$P$2=97),$Q52,0) -> 0 | L52: =+IF($P$2=33,$Q52,0) -> 0 | N52: =+ROUND(+G52+J52+L52,0) -> 20320 | P52: =+ROUND(OTCHET!E222,0) -> 21000 | Q52: =+ROUND(OTCHET!F222,0) -> 20320 | S52: разходен § 19-00
B53: 4. Разходи за възнаграждения на персонал | F53: =+IF($P$2=0,$P53,0) -> 446318 | G53: =+IF($P$2=0,$Q53,0) -> 444769 | I53: =+IF(OR($P$2=98,$P$2=42,$P$2=96,$P$2=97),$P53,0) -> 0 | J53: =+IF(OR($P$2=98,$P$2=42,$P$2=96,$P$2=97),$Q53,0) -> 0 | L53: =+IF($P$2=33,$Q53,0) -> 0 | N53: =+ROUND(+G53+J53+L53,0) -> 444769 | P53: =+ROUND(OTCHET!E186+OTCHET!E189,0) -> 446318 | Q53: =+ROUND(OTCHET!F186+OTCHET!F189,0) -> 444769 | S53: разходни §§ 01-00 и 02-00
B54: 5. Разходи за осигурителни вноски | F54: =+IF($P$2=0,$P54,0) -> 107413 | G54: =+IF($P$2=0,$Q54,0) -> 106179 | I54: =+IF(OR($P$2=98,$P$2=42,$P$2=96,$P$2=97),$P54,0) -> 0 | J54: =+IF(OR($P$2=98,$P$2=42,$P$2=96,$P$2=97),$Q54,0) -> 0 | L54: =+IF($P$2=33,$Q54,0) -> 0 | N54: =+ROUND(+G54+J54+L54,0) -> 106179 | P54: =+ROUND(OTCHET!E195+OTCHET!E203,0) -> 107413 | Q54: =+ROUND(OTCHET!F195+OTCHET!F203,0) -> 106179 | S54: разходни §§ 05-00 и 08-00
B55: Общо за група І. Плащания за текущи нелихвени разходи | F55: =+ROUND(+SUM(F50:F54),0) -> 1153598 | G55: =+ROUND(+SUM(G50:G54),0) -> 1129656 | I55: =+ROUND(+SUM(I50:I54),0) -> 0 | J55: =+ROUND(+SUM(J50:J54),0) -> 0 | L55: =+ROUND(+SUM(L50:L54),0) -> 0 | N55: =+ROUND(+SUM(N50:N54),0) -> 1129656 | P55: =+ROUND(+SUM(P50:P54),0) -> 1153598 | Q55: =+ROUND(+SUM(Q50:Q54),0) -> 1129656 | S55: сборен ред за група І. Плащания за текущи нелихвени разходи
B56: IІ. Плащания за придобиване на нефинансови дълготрайни активи | S56: IІ. Плащания за придобиване на нефинансови дълготрайни активи
B57: 1. Придобиване на земя | F57: =+IF($P$2=0,$P57,0) -> 0 | G57: =+IF($P$2=0,$Q57,0) -> 0 | I57: =+IF(OR($P$2=98,$P$2=42,$P$2=96,$P$2=97),$P57,0) -> 0 | J57: =+IF(OR($P$2=98,$P$2=42,$P$2=96,$P$2=97),$Q57,0) -> 0 | L57: =+IF($P$2=33,$Q57,0) -> 0 | N57: =+ROUND(+G57+J57+L57,0) -> 0 | P57: =+ROUND(OTCHET!E287,0) -> 0 | Q57: =+ROUND(OTCHET!F287,0) -> 0 | S57: разходен § 54-00
B58: 2. Придобиване на други дълготрайни материални активи | F58: =+IF($P$2=0,$P58,0) -> 0 | G58: =+IF($P$2=0,$Q58,0) -> 0 | I58: =+IF(OR($P$2=98,$P$2=42,$P$2=96,$P$2=97),$P58,0) -> 0 | J58: =+IF(OR($P$2=98,$P$2=42,$P$2=96,$P$2=97),$Q58,0) -> 0 | L58: =+IF($P$2=33,$Q58,0) -> 0 | N58: =+ROUND(+G58+J58+L58,0) -> 0 | P58: =+ROUND(+OTCHET!E275+OTCHET!E276,0) -> 0 | Q58: =+ROUND(+OTCHET!F275+OTCHET!F276,0) -> 0 | S58: разходни §§ 51-00 и 52-00
B59: 3. Придобиване на нематериални дълготрайни активи | F59: =+IF($P$2=0,$P59,0) -> 3500 | G59: =+IF($P$2=0,$Q59,0) -> 1800 | I59: =+IF(OR($P$2=98,$P$2=42,$P$2=96,$P$2=97),$P59,0) -> 0 | J59: =+IF(OR($P$2=98,$P$2=42,$P$2=96,$P$2=97),$Q59,0) -> 0 | L59: =+IF($P$2=33,$Q59,0) -> 0 | N59: =+ROUND(+G59+J59+L59,0) -> 1800 | P59: =+ROUND(OTCHET!E284,0) -> 3500 | Q59: =+ROUND(OTCHET!F284,0) -> 1800 | S59: разходен § 53-00
B60: 4. Нето-прираст на държавния резерв и изкупуване на земеделска продукция | F60: =+IF($P$2=0,$P60,0) -> 0 | G60: =+IF($P$2=0,$Q60,0) -> 0 | I60: =+IF(OR($P$2=98,$P$2=42,$P$2=96,$P$2=97),$P60,0) -> 0 | J60: =+IF(OR($P$2=98,$P$2=42,$P$2=96,$P$2=97),$Q60,0) -> 0 | L60: =+IF($P$2=33,$Q60,0) -> 0 | N60: =+ROUND(+G60+J60+L60,0) -> 0 | P60: =+ROUND(OTCHET!E293,0) -> 0 | Q60: =+ROUND(OTCHET!F293,0) -> 0 | S60: разходен § 57-00 и приходeн § 40-71 (-)
B61: в т. ч. постъпления от реализация на държавния резерв (-) | F61: =+IF($P$2=0,$P61,0) -> 0 | G61: =+IF($P$2=0,$Q61,0) -> 0 | I61: =+IF(OR($P$2=98,$P$2=42,$P$2=96,$P$2=97),$P61,0) -> 0 | J61: =+IF(OR($P$2=98,$P$2=42,$P$2=96,$P$2=97),$Q61,0) -> 0 | L61: =+IF($P$2=33,$Q61,0) -> 0 | N61: =+ROUND(+G61+J61+L61,0) -> 0 | P61: =+ROUND(OTCHET!E296,0) -> 0 | Q61: =+ROUND(OTCHET!F296,0) -> 0 | S61: приходeн § 40-71 (-)
B62: Общо за група ІІ. Плащания за на нефинансови дълготрайни активи | F62: =+ROUND(+SUM(F57:F60),0) -> 3500 | G62: =+ROUND(+SUM(G57:G60),0) -> 1800 | I62: =+ROUND(+SUM(I57:I60),0) -> 0 | J62: =+ROUND(+SUM(J57:J60),0) -> 0 | L62: =+ROUND(+SUM(L57:L60),0) -> 0 | N62: =+ROUND(+SUM(N57:N60),0) -> 1800 | P62: =+ROUND(+SUM(P57:P60),0) -> 3500 | Q62: =+ROUND(+SUM(Q57:Q60),0) -> 1800 | S62: сборен ред за група ІІ. Плащания за на нефинансови дълготрайни активи
B63: III. Плащания за разходи за лихви | S63: III. Плащания за разходи за лихви
B64: 1. Разходи за лихви по банкови заеми и държавни (общински) ценни книжа | F64: =+IF($P$2=0,$P64,0) -> 0 | G64: =+IF($P$2=0,$Q64,0) -> 0 | I64: =+IF(OR($P$2=98,$P$2=42,$P$2=96,$P$2=97),$P64,0) -> 0 | J64: =+IF(OR($P$2=98,$P$2=42,$P$2=96,$P$2=97),$Q64,0) -> 0 | L64: =+IF($P$2=33,$Q64,0) -> 0 | N64: =+ROUND(+G64+J64+L64,0) -> 0 | P64: =+ROUND(OTCHET!E226+OTCHET!E232+SUM(OTCHET!E235:E238),0) -> 0 | Q64: =+ROUND(OTCHET!F226+OTCHET!F232+SUM(OTCHET!F235:F238),0) -> 0 | S64: разходни §§ 21-00 ÷ 28-00
B65: 2. Разходи за лихви по други заеми и дългове | F65: =+IF($P$2=0,$P65,0) -> 0 | G65: =+IF($P$2=0,$Q65,0) -> 0 | I65: =+IF(OR($P$2=98,$P$2=42,$P$2=96,$P$2=97),$P65,0) -> 0 | J65: =+IF(OR($P$2=98,$P$2=42,$P$2=96,$P$2=97),$Q65,0) -> 0 | L65: =+IF($P$2=33,$Q65,0) -> 0 | N65: =+ROUND(+G65+J65+L65,0) -> 0 | P65: =+ROUND(OTCHET!E239,0) -> 0 | Q65: =+ROUND(OTCHET!F239,0) -> 0 | S65: разходен § 29-00
B66: Общо за група ІІІ. Плащания за разходи за лихви | F66: =+ROUND(+SUM(F64:F65),0) -> 0 | G66: =+ROUND(+SUM(G64:G65),0) -> 0 | I66: =+ROUND(+SUM(I64:I65),0) -> 0 | J66: =+ROUND(+SUM(J64:J65),0) -> 0 | L66: =+ROUND(+SUM(L64:L65),0) -> 0 | N66: =+ROUND(+SUM(N64:N65),0) -> 0 | P66: =+ROUND(+SUM(P64:P65),0) -> 0 | Q66: =+ROUND(+SUM(Q64:Q65),0) -> 0 | S66: сборен ред за група ІІІ. Плащания за разходи за лихви
B67: IV. Трансфери към домакинства | S67: IV. Трансфери към домакинства
B68: 1. Осигурителни плащания и други текущи трансфери | F68: =+IF($P$2=0,$P68,0) -> 0 | G68: =+IF($P$2=0,$Q68,0) -> 0 | I68: =+IF(OR($P$2=98,$P$2=42,$P$2=96,$P$2=97),$P68,0) -> 0 | J68: =+IF(OR($P$2=98,$P$2=42,$P$2=96,$P$2=97),$Q68,0) -> 0 | L68: =+IF($P$2=33,$Q68,0) -> 0 | N68: =+ROUND(+G68+J68+L68,0) -> 0 | P68: =+ROUND(+SUM(OTCHET!E255:E258)+IF(+OR(OTCHET!$F$12="5500",OTCHET!$F$12="5600"),+OTCHET!E297,0),0) -> 0 | Q68: =+ROUND(+SUM(OTCHET!F255:F258)+IF(+OR(OTCHET!$F$12="5500",OTCHET!$F$12="5600"),+OTCHET!F297,0),0) -> 0 | S68: разходни §§ 39-00 ÷ 42-00 (за НОИ и НЗОК - и разходен § 00-98)
B69: 2. Капиталови трансфери към домакинства | F69: =+IF($P$2=0,$P69,0) -> 0 | G69: =+IF($P$2=0,$Q69,0) -> 0 | I69: =+IF(OR($P$2=98,$P$2=42,$P$2=96,$P$2=97),$P69,0) -> 0 | J69: =+IF(OR($P$2=98,$P$2=42,$P$2=96,$P$2=97),$Q69,0) -> 0 | L69: =+IF($P$2=33,$Q69,0) -> 0 | N69: =+ROUND(+G69+J69+L69,0) -> 0 | P69: =+ROUND(+OTCHET!E292,0) -> 0 | Q69: =+ROUND(+OTCHET!F292,0) -> 0 | S69: разходен § 55-04
B70: Общо за група ІV. Трансфери към домакинства | F70: =+ROUND(+SUM(F68:F69),0) -> 0 | G70: =+ROUND(+SUM(G68:G69),0) -> 0 | I70: =+ROUND(+SUM(I68:I69),0) -> 0 | J70: =+ROUND(+SUM(J68:J69),0) -> 0 | L70: =+ROUND(+SUM(L68:L69),0) -> 0 | N70: =+ROUND(+SUM(N68:N69),0) -> 0 | P70: =+ROUND(+SUM(P68:P69),0) -> 0 | Q70: =+ROUND(+SUM(Q68:Q69),0) -> 0 | S70: сборен ред за група ІV. Трансфери към домакинства
B71: V. Субсидии и капиталови трансфери | S71: V. Субсидии и капиталови трансфери
B72: 1. Текущи субсидии и трансфери към други лица | F72: =+IF($P$2=0,$P72,0) -> 0 | G72: =+IF($P$2=0,$Q72,0) -> 0 | I72: =+IF(OR($P$2=98,$P$2=42,$P$2=96,$P$2=97),$P72,0) -> 0 | J72: =+IF(OR($P$2=98,$P$2=42,$P$2=96,$P$2=97),$Q72,0) -> 0 | L72: =+IF($P$2=33,$Q72,0) -> 0 | N72: =+ROUND(+G72+J72+L72,0) -> 0 | P72: =+ROUND(+OTCHET!E248+OTCHET!E265+OTCHET!E269+OTCHET!E270+OTCHET!E273,0) -> 0 | Q72: =+ROUND(+OTCHET!F248+OTCHET!F265+OTCHET!F269+OTCHET!F270+OTCHET!F273,0) -> 0 | S72: разходни §§ 33-00, 43-00, 44-00, 45-00 и 49-01
B73: 2. Капиталови трансфери към други лица | F73: =+IF($P$2=0,$P73,0) -> 0 | G73: =+IF($P$2=0,$Q73,0) -> 0 | I73: =+IF(OR($P$2=98,$P$2=42,$P$2=96,$P$2=97),$P73,0) -> 0 | J73: =+IF(OR($P$2=98,$P$2=42,$P$2=96,$P$2=97),$Q73,0) -> 0 | L73: =+IF($P$2=33,$Q73,0) -> 0 | N73: =+ROUND(+G73+J73+L73,0) -> 0 | P73: =+ROUND(OTCHET!E274+OTCHET!E288-OTCHET!E292,0) -> 0 | Q73: =+ROUND(OTCHET!F274+OTCHET!F288-OTCHET!F292,0) -> 0 | S73: разходни §§ 49-02 и 55-00 (без § 55-04)
B74: Общо за група V. Субсидии и капиталови трансфери | F74: =+ROUND(+SUM(F72:F73),0) -> 0 | G74: =+ROUND(+SUM(G72:G73),0) -> 0 | I74: =+ROUND(+SUM(I72:I73),0) -> 0 | J74: =+ROUND(+SUM(J72:J73),0) -> 0 | L74: =+ROUND(+SUM(L72:L73),0) -> 0 | N74: =+ROUND(+SUM(N72:N73),0) -> 0 | P74: =+ROUND(+SUM(P72:P73),0) -> 0 | Q74: =+ROUND(+SUM(Q72:Q73),0) -> 0 | S74: сборен ред за група V. Субсидии и капиталови трансфери
B76: Б. ОБЩО РАЗХОДИ И ПРИДОБИВАНЕ НА НЕФИНАНСОВИ АКТИВИ | F76: =+ROUND(F55+F62+F66+F70+F74,0) -> 1157098 | G76: =+ROUND(G55+G62+G66+G70+G74,0) -> 1131456 | I76: =+ROUND(I55+I62+I66+I70+I74,0) -> 0 | J76: =+ROUND(J55+J62+J66+J70+J74,0) -> 0 | L76: =+ROUND(L55+L62+L66+L70+L74,0) -> 0 | N76: =+ROUND(N55+N62+N66+N70+N74,0) -> 1131456 | P76: =+ROUND(P55+P62+P66+P70+P74,0) -> 1157098 | Q76: =+ROUND(Q55+Q62+Q66+Q70+Q74,0) -> 1131456 | S76: сборен за ред Б. ОБЩО РАЗХОДИ И ПРИДОБИВАНЕ НА НЕФИН. АКТИВИ
B77: В. ТРАНСФЕРИ И БЕЗЛИХВЕНИ ЗАЕМИ М/У БЮДЖ. ОРГАНИЗАЦИИ | S77: В. ТРАНСФЕРИ И БЕЗЛИХВЕНИ ЗАЕМИ М/У БЮДЖ. ОРГАНИЗАЦИИ
B78: 1. Трансфери между бюджетни организации (нето) | F78: =+IF($P$2=0,$P78,0) -> 1015098 | G78: =+IF($P$2=0,$Q78,0) -> 1029118 | I78: =+IF(OR($P$2=98,$P$2=42,$P$2=96,$P$2=97),$P78,0) -> 0 | J78: =+IF(OR($P$2=98,$P$2=42,$P$2=96,$P$2=97),$Q78,0) -> 0 | L78: =+IF($P$2=33,$Q78,0) -> 0 | N78: =+ROUND(+G78+J78+L78,0) -> 1029118 | P78: =+ROUND(OTCHET!E415,0) -> 1015098 | Q78: =+ROUND(OTCHET!F415,0) -> 1029118 | S78: трансферни параграфи §§ 30-00 ÷ 32-00 и 60-00 ÷ 69-00
B79: 2. Временни безлихвени заеми между бюджетни организации (нето) | F79: =+IF($P$2=0,$P79,0) -> 0 | G79: =+IF($P$2=0,$Q79,0) -> 0 | I79: =+IF(OR($P$2=98,$P$2=42,$P$2=96,$P$2=97),$P79,0) -> 0 | J79: =+IF(OR($P$2=98,$P$2=42,$P$2=96,$P$2=97),$Q79,0) -> 0 | L79: =+IF($P$2=33,$Q79,0) -> 0 | N79: =+ROUND(+G79+J79+L79,0) -> 0 | P79: =+ROUND(OTCHET!E425,0) -> 0 | Q79: =+ROUND(OTCHET!F425,0) -> 0 | S79: трансферни параграфи §§ 74-00 ÷ 78-00
B80: В. ОБЩО ТРАНСФЕРИ И ЗАЕМИ М/У БЮДЖЕТНИ ОРГАНИЗАЦИИ | F80: =+ROUND(F78+F79,0) -> 1015098 | G80: =+ROUND(G78+G79,0) -> 1029118 | I80: =+ROUND(I78+I79,0) -> 0 | J80: =+ROUND(J78+J79,0) -> 0 | L80: =+ROUND(L78+L79,0) -> 0 | N80: =+ROUND(N78+N79,0) -> 1029118 | P80: =+ROUND(P78+P79,0) -> 1015098 | Q80: =+ROUND(Q78+Q79,0) -> 1029118 | S80: сборен ред за В. ОБЩО ТРАНСФЕРИ И ЗАЕМИ М/У БЮДЖ. ОРГАНИЗАЦИИ
B81: =+IF(+SUM(F81:N81)=0,0,"Контрола: дефицит/излишък = финансиране с обратен знак (Г. + Д. = 0)") -> 0 | F81: =+ROUND(F82,0)+ROUND(F83,0) -> 0 | G81: =+ROUND(G82,0)+ROUND(G83,0) -> 0 | I81: =+ROUND(I82,0)+ROUND(I83,0) -> 0 | J81: =+ROUND(J82,0)+ROUND(J83,0) -> 0 | L81: =+ROUND(L82,0)+ROUND(L83,0) -> 0 | N81: =+ROUND(N82,0)+ROUND(N83,0) -> 0 | P81: =+ROUND(P82,0)+ROUND(P83,0) -> 0 | Q81: =+ROUND(Q82,0)+ROUND(Q83,0) -> 0
B82: Г. Бюджетно салдо: Дефицит (-) / излишък (+) = (А. - Б. + В. ) | F82: =+ROUND(F47,0)-ROUND(F76,0)+ROUND(F80,0) -> 0 | G82: =+ROUND(G47,0)-ROUND(G76,0)+ROUND(G80,0) -> 15 | I82: =+ROUND(I47,0)-ROUND(I76,0)+ROUND(I80,0) -> 0 | J82: =+ROUND(J47,0)-ROUND(J76,0)+ROUND(J80,0) -> 0 | L82: =+ROUND(L47,0)-ROUND(L76,0)+ROUND(L80,0) -> 0 | N82: =+ROUND(N47,0)-ROUND(N76,0)+ROUND(N80,0) -> 15 | P82: =+ROUND(P47,0)-ROUND(P76,0)+ROUND(P80,0) -> 0 | Q82: =+ROUND(Q47,0)-ROUND(Q76,0)+ROUND(Q80,0) -> 15 | S82: Г. Бюджетно салдо: Дефицит (-) / излишък (+) = (А. - Б. + В. )
B83: Д. Финансиране на бюджетното салдо (Е. + Ж. + З. - И.) | F83: =+ROUND(F100,0)+ROUND(F119,0)+ROUND(F125,0)-ROUND(F130,0) -> 0 | G83: =+ROUND(G100,0)+ROUND(G119,0)+ROUND(G125,0)-ROUND(G130,0) -> -15 | I83: =+ROUND(I100,0)+ROUND(I119,0)+ROUND(I125,0)-ROUND(I130,0) -> 0 | J83: =+ROUND(J100,0)+ROUND(J119,0)+ROUND(J125,0)-ROUND(J130,0) -> 0 | L83: =+ROUND(L100,0)+ROUND(L119,0)+ROUND(L125,0)-ROUND(L130,0) -> 0 | N83: =+ROUND(N100,0)+ROUND(N119,0)+ROUND(N125,0)-ROUND(N130,0) -> -15 | P83: =+ROUND(P100,0)+ROUND(P119,0)+ROUND(P125,0)-ROUND(P130,0) -> 0 | Q83: =+ROUND(Q100,0)+ROUND(Q119,0)+ROUND(Q125,0)-ROUND(Q130,0) -> -15 | S83: Д. Финансиране на бюджетното салдо (Е. + Ж. + З. - И.)
B84: Е. ОПЕРАЦИИ С ФИНАНСОВИ АКТИВИ | S84: Е. ОПЕРАЦИИ С ФИНАНСОВИ АКТИВИ
B85: I. Придобиване и реализиране на дялове, акции и участия | S85: I. Придобиване и реализиране на дялове, акции и участия
B86: 1. Придобиване на дялове, акции и участия в предприятия (-) | F86: =+IF($P$2=0,$P86,0) -> 0 | G86: =+IF($P$2=0,$Q86,0) -> 0 | I86: =+IF(OR($P$2=98,$P$2=42,$P$2=96,$P$2=97),$P86,0) -> 0 | J86: =+IF(OR($P$2=98,$P$2=42,$P$2=96,$P$2=97),$Q86,0) -> 0 | L86: =+IF($P$2=33,$Q86,0) -> 0 | N86: =+ROUND(+G86+J86+L86,0) -> 0 | P86: =+ROUND(+OTCHET!E458+OTCHET!E459,0) -> 0 | Q86: =+ROUND(+OTCHET!F458+OTCHET!F459,0) -> 0 | S86: финансиращи §§ 70-01 и 70-03
B87: 2. Постъпления от реализация и приватизация на дялове, акциии и участия | F87: =+IF($P$2=0,$P87,0) -> 0 | G87: =+IF($P$2=0,$Q87,0) -> 0 | I87: =+IF(OR($P$2=98,$P$2=42,$P$2=96,$P$2=97),$P87,0) -> 0 | J87: =+IF(OR($P$2=98,$P$2=42,$P$2=96,$P$2=97),$Q87,0) -> 0 | L87: =+IF($P$2=33,$Q87,0) -> 0 | N87: =+ROUND(+G87+J87+L87,0) -> 0 | P87: =+ROUND(OTCHET!E460+OTCHET!E531,0) -> 0 | Q87: =+ROUND(OTCHET!F460+OTCHET!F531,0) -> 0 | S87: финансиращи §§ 70-10 и 90-00
B88: Общо за група І. Придобиване и реализиране на дялове, акции и участия | F88: =+ROUND(+SUM(F86:F87),0) -> 0 | G88: =+ROUND(+SUM(G86:G87),0) -> 0 | I88: =+ROUND(+SUM(I86:I87),0) -> 0 | J88: =+ROUND(+SUM(J86:J87),0) -> 0 | L88: =+ROUND(+SUM(L86:L87),0) -> 0 | N88: =+ROUND(+SUM(N86:N87),0) -> 0 | P88: =+ROUND(+SUM(P86:P87),0) -> 0 | Q88: =+ROUND(+SUM(Q86:Q87),0) -> 0 | S88: Сборен ред за група І. Придобиване и реализиране на дялове, акции и участия
B89: IІ. Предоставени заеми, възмездна фин. помощ и активирани гаранции | S89: IІ. Предоставени заеми, възмездна фин. помощ и активирани гаранции
B90: 1. Предоставени заеми и възмездна финансова помощ (-) | F90: =+IF($P$2=0,$P90,0) -> 0 | G90: =+IF($P$2=0,$Q90,0) -> 0 | I90: =+IF(OR($P$2=98,$P$2=42,$P$2=96,$P$2=97),$P90,0) -> 0 | J90: =+IF(OR($P$2=98,$P$2=42,$P$2=96,$P$2=97),$Q90,0) -> 0 | L90: =+IF($P$2=33,$Q90,0) -> 0 | N90: =+ROUND(+G90+J90+L90,0) -> 0 | P90: =+ROUND(OTCHET!E462+OTCHET!E465+OTCHET!E475,0) -> 0 | Q90: =+ROUND(OTCHET!F462+OTCHET!F465+OTCHET!F475,0) -> 0 | S90: финансиращи §§ 71-01, 72-01 и 79-01
B91: 2. Получени погашения по предоставени заеми и възмездна фин. помощ (+) | F91: =+IF($P$2=0,$P91,0) -> 0 | G91: =+IF($P$2=0,$Q91,0) -> 0 | I91: =+IF(OR($P$2=98,$P$2=42,$P$2=96,$P$2=97),$P91,0) -> 0 | J91: =+IF(OR($P$2=98,$P$2=42,$P$2=96,$P$2=97),$Q91,0) -> 0 | L91: =+IF($P$2=33,$Q91,0) -> 0 | N91: =+ROUND(+G91+J91+L91,0) -> 0 | P91: =+ROUND(OTCHET!E463+OTCHET!E466+OTCHET!E476+OTCHET!E498+IF(+OTCHET!E490>0,+OTCHET!E490,0),0) -> 0 | Q91: =+ROUND(OTCHET!F463+OTCHET!F466+OTCHET!F476+OTCHET!F498+IF(+OTCHET!F490>0,+OTCHET!F490,0),0) -> 0 | S91: финансиращи §§ 71-02, 72-02, 79-02 и 82-00 и § 80-80 (ако е "плюс")
B92: 3. Плащания по активирани гаранции - главници по гарантирани заеми | F92: =+IF($P$2=0,$P92,0) -> 0 | G92: =+IF($P$2=0,$Q92,0) -> 0 | I92: =+IF(OR($P$2=98,$P$2=42,$P$2=96,$P$2=97),$P92,0) -> 0 | J92: =+IF(OR($P$2=98,$P$2=42,$P$2=96,$P$2=97),$Q92,0) -> 0 | L92: =+IF($P$2=33,$Q92,0) -> 0 | N92: =+ROUND(+G92+J92+L92,0) -> 0 | P92: =+ROUND(+SUM(OTCHET!E468:E470),0) -> 0 | Q92: =+ROUND(+SUM(OTCHET!F468:F470),0) -> 0 | S92: финансиращи §§ 73-20, 73-69 и 73-70
B93: 4. Възстановени суми по активирани гаранции - главници | F93: =+IF($P$2=0,$P93,0) -> 0 | G93: =+IF($P$2=0,$Q93,0) -> 0 | I93: =+IF(OR($P$2=98,$P$2=42,$P$2=96,$P$2=97),$P93,0) -> 0 | J93: =+IF(OR($P$2=98,$P$2=42,$P$2=96,$P$2=97),$Q93,0) -> 0 | L93: =+IF($P$2=33,$Q93,0) -> 0 | N93: =+ROUND(+G93+J93+L93,0) -> 0 | P93: =+ROUND(+SUM(OTCHET!E471:E472),0) -> 0 | Q93: =+ROUND(+SUM(OTCHET!F471:F472),0) -> 0 | S93: финансиращи §§ 73-91 и 73-92
B94: Общо за група ІІ. Предоставени заеми, възмездна фин. помощ и гаранции | F94: =+ROUND(+SUM(F90:F93),0) -> 0 | G94: =+ROUND(+SUM(G90:G93),0) -> 0 | I94: =+ROUND(+SUM(I90:I93),0) -> 0 | J94: =+ROUND(+SUM(J90:J93),0) -> 0 | L94: =+ROUND(+SUM(L90:L93),0) -> 0 | N94: =+ROUND(+SUM(N90:N93),0) -> 0 | P94: =+ROUND(+SUM(P90:P93),0) -> 0 | Q94: =+ROUND(+SUM(Q90:Q93),0) -> 0 | S94: Сборен ред за група ІІ. Предоставени заеми, възмездна фин. помощ и гаранции
B95: IІI. Други операции с финансови активи | S95: IІI. Други операции с финансови активи
B96: 1. Нето-операции с други ценни книжа и фин. активи (кеш-мениджмънт) | F96: =+IF($P$2=0,$P96,0) -> 0 | G96: =+IF($P$2=0,$Q96,0) -> 0 | I96: =+IF(OR($P$2=98,$P$2=42,$P$2=96,$P$2=97),$P96,0) -> 0 | J96: =+IF(OR($P$2=98,$P$2=42,$P$2=96,$P$2=97),$Q96,0) -> 0 | L96: =+IF($P$2=33,$Q96,0) -> 0 | N96: =+ROUND(+G96+J96+L96,0) -> 0 | P96: =+ROUND(OTCHET!E532+OTCHET!E537,0) -> 0 | Q96: =+ROUND(OTCHET!F532+OTCHET!F537,0) -> 0 | S96: финансиращи §§ 91-01 и 92-00
B97: 2. Други операции с финансови активи (нето) | F97: =+IF($P$2=0,$P97,0) -> 0 | G97: =+IF($P$2=0,$Q97,0) -> 0 | I97: =+IF(OR($P$2=98,$P$2=42,$P$2=96,$P$2=97),$P97,0) -> 0 | J97: =+IF(OR($P$2=98,$P$2=42,$P$2=96,$P$2=97),$Q97,0) -> 0 | L97: =+IF($P$2=33,$Q97,0) -> 0 | N97: =+ROUND(+G97+J97+L97,0) -> 0 | P97: =+ROUND(+OTCHET!E473+OTCHET!E554+OTCHET!E556,0) -> 0 | Q97: =+ROUND(+OTCHET!F473+OTCHET!F554+OTCHET!F556,0) -> 0 | S97: финансиращи §§ 73-93, 93-36, 93-38
B98: Общо за група ІІІ. Други операции с финансови активи | F98: =+ROUND(+SUM(F96:F97),0) -> 0 | G98: =+ROUND(+SUM(G96:G97),0) -> 0 | I98: =+ROUND(+SUM(I96:I97),0) -> 0 | J98: =+ROUND(+SUM(J96:J97),0) -> 0 | L98: =+ROUND(+SUM(L96:L97),0) -> 0 | N98: =+ROUND(+SUM(N96:N97),0) -> 0 | P98: =+ROUND(+SUM(P96:P97),0) -> 0 | Q98: =+ROUND(+SUM(Q96:Q97),0) -> 0 | S98: Сборен ред за група ІІІ. Други операции с финансови активи
B100: Е. ОБЩО ОПЕРАЦИИ С ФИНАНСОВИ АКТИВИ | F100: =+ROUND(F88+F94+F98,0) -> 0 | G100: =+ROUND(G88+G94+G98,0) -> 0 | I100: =+ROUND(I88+I94+I98,0) -> 0 | J100: =+ROUND(J88+J94+J98,0) -> 0 | L100: =+ROUND(L88+L94+L98,0) -> 0 | N100: =+ROUND(N88+N94+N98,0) -> 0 | P100: =+ROUND(P88+P94+P98,0) -> 0 | Q100: =+ROUND(Q88+Q94+Q98,0) -> 0 | S100: Сборен ред за Е. ОБЩО ОПЕРАЦИИ С ФИНАНСОВИ АКТИВИ
B101: Ж. ОПЕРАЦИИ С ФИНАНСОВИ ПАСИВИ | S101: Ж. ОПЕРАЦИИ С ФИНАНСОВИ ПАСИВИ
B102: I. Емитирани държавни (общински) ценни книжа | S102: I. Емитирани държавни (общински) ценни книжа
B103: 1. Постъпления от емисии на държавни (общински) ценни книжа (+) | F103: =+IF($P$2=0,$P103,0) -> 0 | G103: =+IF($P$2=0,$Q103,0) -> 0 | I103: =+IF(OR($P$2=98,$P$2=42,$P$2=96,$P$2=97),$P103,0) -> 0 | J103: =+IF(OR($P$2=98,$P$2=42,$P$2=96,$P$2=97),$Q103,0) -> 0 | L103: =+IF($P$2=33,$Q103,0) -> 0 | N103: =+ROUND(+G103+J103+L103,0) -> 0 | P103: =+ROUND(OTCHET!E494+OTCHET!E495+OTCHET!E508,0) -> 0 | Q103: =+ROUND(OTCHET!F494+OTCHET!F495+OTCHET!F508,0) -> 0 | S103: финансиращи §§ 81-11, 81-12 и 85-00
B104: 2. Погашения по емисии на държавни (общински) ценни книжа) (-) | F104: =+IF($P$2=0,$P104,0) -> 0 | G104: =+IF($P$2=0,$Q104,0) -> 0 | I104: =+IF(OR($P$2=98,$P$2=42,$P$2=96,$P$2=97),$P104,0) -> 0 | J104: =+IF(OR($P$2=98,$P$2=42,$P$2=96,$P$2=97),$Q104,0) -> 0 | L104: =+IF($P$2=33,$Q104,0) -> 0 | N104: =+ROUND(+G104+J104+L104,0) -> 0 | P104: =+ROUND(OTCHET!E496+OTCHET!E497+OTCHET!E512,0) -> 0 | Q104: =+ROUND(OTCHET!F496+OTCHET!F497+OTCHET!F512,0) -> 0 | S104: финансиращи §§ 81-21, 81-22 и 86-00
B105: Общо за група І. Емитирани държавни (общински) ценни книжа | F105: =+ROUND(+SUM(F103:F104),0) -> 0 | G105: =+ROUND(+SUM(G103:G104),0) -> 0 | I105: =+ROUND(+SUM(I103:I104),0) -> 0 | J105: =+ROUND(+SUM(J103:J104),0) -> 0 | L105: =+ROUND(+SUM(L103:L104),0) -> 0 | N105: =+ROUND(+SUM(N103:N104),0) -> 0 | P105: =+ROUND(+SUM(P103:P104),0) -> 0 | Q105: =+ROUND(+SUM(Q103:Q104),0) -> 0 | S105: Сборен ред за група І. Емитирани държавни (общински) ценни книжа
B106: IІ. Заеми от банки и други лица | S106: IІ. Заеми от банки и други лица
B107: 1. Получени банкови и други заеми (+) | F107: =+IF($P$2=0,$P107,0) -> 0 | G107: =+IF($P$2=0,$Q107,0) -> 0 | I107: =+IF(OR($P$2=98,$P$2=42,$P$2=96,$P$2=97),$P107,0) -> 0 | J107: =+IF(OR($P$2=98,$P$2=42,$P$2=96,$P$2=97),$Q107,0) -> 0 | L107: =+IF($P$2=33,$Q107,0) -> 0 | N107: =+ROUND(+G107+J107+L107,0) -> 0 | P107: =+ROUND(OTCHET!E478+OTCHET!E479+OTCHET!E482+OTCHET!E483+OTCHET!E486+OTCHET!E487+OTCHET!E491+OTCHET!E500+OTCHET!E501+OTCHET!E504+OTCHET!E505,0) -> 0 | Q107: =+ROUND(OTCHET!F478+OTCHET!F479+OTCHET!F482+OTCHET!F483+OTCHET!F486+OTCHET!F487+OTCHET!F491+OTCHET!F500+OTCHET!F501+OTCHET!F504+OTCHET!F505,0) -> 0 | S107: финансиращи §§ 80-11, 80-12, 80-31, 80-32, 80-51, 80-52, 80-97, 83-11, 83-12, 83-71, 83-72
B108: 2. Погашения по получени банкови и други заеми (-) | F108: =+IF($P$2=0,$P108,0) -> 0 | G108: =+IF($P$2=0,$Q108,0) -> 0 | I108: =+IF(OR($P$2=98,$P$2=42,$P$2=96,$P$2=97),$P108,0) -> 0 | J108: =+IF(OR($P$2=98,$P$2=42,$P$2=96,$P$2=97),$Q108,0) -> 0 | L108: =+IF($P$2=33,$Q108,0) -> 0 | N108: =+ROUND(+G108+J108+L108,0) -> 0 | P108: =+ROUND(OTCHET!E480+OTCHET!E481+OTCHET!E484+OTCHET!E485+OTCHET!E488+OTCHET!E489+OTCHET!E492+OTCHET!E502+OTCHET!E503+OTCHET!E506+OTCHET!E507+IF(+OTCHET!E490<0,+OTCHET!E490,0),0) -> 0 | Q108: =+ROUND(OTCHET!F480+OTCHET!F481+OTCHET!F484+OTCHET!F485+OTCHET!F488+OTCHET!F489+OTCHET!F492+OTCHET!F502+OTCHET!F503+OTCHET!F506+OTCHET!F507+IF(+OTCHET!F490<0,+OTCHET!F490,0),0) -> 0 | S108: §§ 80-17, 80-18, 80-37, 80-38, 80-57, 80-58, 80-98, 83-21, 83-22, 83-81, 83-82 и § 80-80 (ако е "минус")
B109: Общо за група ІІ. Заеми от банки и други лица | F109: =+ROUND(+SUM(F107:F108),0) -> 0 | G109: =+ROUND(+SUM(G107:G108),0) -> 0 | I109: =+ROUND(+SUM(I107:I108),0) -> 0 | J109: =+ROUND(+SUM(J107:J108),0) -> 0 | L109: =+ROUND(+SUM(L107:L108),0) -> 0 | N109: =+ROUND(+SUM(N107:N108),0) -> 0 | P109: =+ROUND(+SUM(P107:P108),0) -> 0 | Q109: =+ROUND(+SUM(Q107:Q108),0) -> 0 | S109: Сборен ред за група ІІ. Заеми от банки и други лица
B110: IІI. Финансиране чрез финансов лизинг и търговски кредит | S110: IІI. Финансиране чрез финансов лизинг и търговски кредит
B111: 1. Получено финансиране по финансов лизинг и търговски кредит (+) | F111: =+IF($P$2=0,$P111,0) -> 0 | G111: =+IF($P$2=0,$Q111,0) -> 0 | I111: =+IF(OR($P$2=98,$P$2=42,$P$2=96,$P$2=97),$P111,0) -> 0 | J111: =+IF(OR($P$2=98,$P$2=42,$P$2=96,$P$2=97),$Q111,0) -> 0 | L111: =+IF($P$2=33,$Q111,0) -> 0 | N111: =+ROUND(+G111+J111+L111,0) -> 0 | P111: =+ROUND(OTCHET!E543,0) -> 0 | Q111: =+ROUND(OTCHET!F543,0) -> 0 | S111: финансиращ § 93-17
B112: 2. Погашения по финансов лизинг и търговски кредит (-) | F112: =+IF($P$2=0,$P112,0) -> 0 | G112: =+IF($P$2=0,$Q112,0) -> 0 | I112: =+IF(OR($P$2=98,$P$2=42,$P$2=96,$P$2=97),$P112,0) -> 0 | J112: =+IF(OR($P$2=98,$P$2=42,$P$2=96,$P$2=97),$Q112,0) -> 0 | L112: =+IF($P$2=33,$Q112,0) -> 0 | N112: =+ROUND(+G112+J112+L112,0) -> 0 | P112: =+ROUND(OTCHET!E544,0) -> 0 | Q112: =+ROUND(OTCHET!F544,0) -> 0 | S112: финансиращ § 93-18
B113: Общо за група ІІІ. Финансиране чрез фин. лизинг и търговски кредит | F113: =+ROUND(+SUM(F111:F112),0) -> 0 | G113: =+ROUND(+SUM(G111:G112),0) -> 0 | I113: =+ROUND(+SUM(I111:I112),0) -> 0 | J113: =+ROUND(+SUM(J111:J112),0) -> 0 | L113: =+ROUND(+SUM(L111:L112),0) -> 0 | N113: =+ROUND(+SUM(N111:N112),0) -> 0 | P113: =+ROUND(+SUM(P111:P112),0) -> 0 | Q113: =+ROUND(+SUM(Q111:Q112),0) -> 0 | S113: Сборен ред за група ІІІ. Финансиране чрез фин. лизинг и търговски кредит
B114: ІV. Други операции с финансови пасиви | S114: ІV. Други операции с финансови пасиви
B115: 1. Операции с чужди средства (нето) | F115: =+IF($P$2=0,$P115,0) -> 0 | G115: =+IF($P$2=0,$Q115,0) -> -15 | I115: =+IF(OR($P$2=98,$P$2=42,$P$2=96,$P$2=97),$P115,0) -> 0 | J115: =+IF(OR($P$2=98,$P$2=42,$P$2=96,$P$2=97),$Q115,0) -> 0 | L115: =+IF($P$2=33,$Q115,0) -> 0 | N115: =+ROUND(+G115+J115+L115,0) -> -15 | P115: =+ROUND(OTCHET!E541+OTCHET!E542+OTCHET!E558+OTCHET!E559,0) -> 0 | Q115: =+ROUND(OTCHET!F541+OTCHET!F542+OTCHET!F558+OTCHET!F559,0) -> -15 | S115: финансиращи §§ 93-01, 93-10, 93-55 и 93-56
B116: 2. Друго финансиране - операции с пасиви (нето) | F116: =+IF($P$2=0,$P116,0) -> 0 | G116: =+IF($P$2=0,$Q116,0) -> 0 | I116: =+IF(OR($P$2=98,$P$2=42,$P$2=96,$P$2=97),$P116,0) -> 0 | J116: =+IF(OR($P$2=98,$P$2=42,$P$2=96,$P$2=97),$Q116,0) -> 0 | L116: =+IF($P$2=33,$Q116,0) -> 0 | N116: =+ROUND(+G116+J116+L116,0) -> 0 | P116: =+ROUND(OTCHET!E555+OTCHET!E557,0) -> 0 | Q116: =+ROUND(OTCHET!F555+OTCHET!F557,0) -> 0 | S116: финансиращи §§ 93-37 и 93-39
B117: Общо за група ІV. Други операции с финансови пасиви | F117: =+ROUND(+SUM(F115:F116),0) -> 0 | G117: =+ROUND(+SUM(G115:G116),0) -> -15 | I117: =+ROUND(+SUM(I115:I116),0) -> 0 | J117: =+ROUND(+SUM(J115:J116),0) -> 0 | L117: =+ROUND(+SUM(L115:L116),0) -> 0 | N117: =+ROUND(+SUM(N115:N116),0) -> -15 | P117: =+ROUND(+SUM(P115:P116),0) -> 0 | Q117: =+ROUND(+SUM(Q115:Q116),0) -> -15 | S117: Сборен ред за група ІV. Други операции с финансови пасиви
B119: Ж. ОБЩО ОПЕРАЦИИ С ФИНАНСОВИ ПАСИВИ | F119: =+ROUND(F105+F109+F113+F117,0) -> 0 | G119: =+ROUND(G105+G109+G113+G117,0) -> -15 | I119: =+ROUND(I105+I109+I113+I117,0) -> 0 | J119: =+ROUND(J105+J109+J113+J117,0) -> 0 | L119: =+ROUND(L105+L109+L113+L117,0) -> 0 | N119: =+ROUND(N105+N109+N113+N117,0) -> -15 | P119: =+ROUND(P105+P109+P113+P117,0) -> 0 | Q119: =+ROUND(Q105+Q109+Q113+Q117,0) -> -15 | S119: Сборен ред за Ж. ОБЩО ОПЕРАЦИИ С ФИНАНСОВИ ПАСИВИ
B120: З. НЕТО-РАЗЧЕТИ И ОПЕРАЦИИ | S120: З. НЕТО-РАЗЧЕТИ И ОПЕРАЦИИ
B121: 1. Нето-операции за сметка на средства от Европейския съюз | F121: =+IF($P$2=0,$P121,0) -> 0 | G121: =+IF($P$2=0,$Q121,0) -> 0 | I121: =+IF(OR($P$2=98,$P$2=42,$P$2=96,$P$2=97),$P121,0) -> 0 | J121: =+IF(OR($P$2=98,$P$2=42,$P$2=96,$P$2=97),$Q121,0) -> 0 | L121: =+IF($P$2=33,$Q121,0) -> 0 | N121: =+ROUND(+G121+J121+L121,0) -> 0 | P121: =+ROUND(+SUM(OTCHET!E545:E552),0) -> 0 | Q121: =+ROUND(+SUM(OTCHET!F545:F552),0) -> 0 | S121: финансиращи §§ 93-21 ÷ 93-28
B122: 2. Операции за сметка на други бюджети, сметки и фондове | F122: =+IF($P$2=0,$P122,0) -> 0 | G122: =+IF($P$2=0,$Q122,0) -> -78267 | I122: =+IF(OR($P$2=98,$P$2=42,$P$2=96,$P$2=97),$P122,0) -> 0 | J122: =+IF(OR($P$2=98,$P$2=42,$P$2=96,$P$2=97),$Q122,0) -> 0 | L122: =+IF($P$2=33,$Q122,0) -> 0 | N122: =+ROUND(+G122+J122+L122,0) -> -78267 | P122: =+ROUND(OTCHET!E520,0) -> 0 | Q122: =+ROUND(OTCHET!F520,0) -> -78267 | S122: финансиращ § 88-00
B123: 3. Други нето-разчети и операции на бюджетни организации | F123: =+IF($P$2=0,$P123,0) -> 0 | G123: =+IF($P$2=0,$Q123,0) -> 0 | I123: =+IF(OR($P$2=98,$P$2=42,$P$2=96,$P$2=97),$P123,0) -> 0 | J123: =+IF(OR($P$2=98,$P$2=42,$P$2=96,$P$2=97),$Q123,0) -> 0 | L123: =+IF($P$2=33,$Q123,0) -> 0 | N123: =+ROUND(+G123+J123+L123,0) -> 0 | P123: =+ROUND(+OTCHET!E517+OTCHET!E527+OTCHET!E553+OTCHET!E560+OTCHET!E561+OTCHET!E575+OTCHET!E587+IF(AND(OTCHET!$F$12="9900",+OTCHET!$E$15=0),+OTCHET!E582,0),0) -> 0 | Q123: =+ROUND(+OTCHET!F517+OTCHET!F527+OTCHET!F553+OTCHET!F560+OTCHET!F561+OTCHET!F575+OTCHET!F587+IF(AND(OTCHET!$F$12="9900",+OTCHET!$E$15=0),+OTCHET!F582,0),0) -> 0 | S123: финансиращи §§ 87-00, 89-00, 93-30, 93-95, 93-96, 95-13 и 98-00 (за ЦБ - и § 96-01 и 96-02)
B124: 4. Разлики от закръгления в хил. лв. (+/-) | N124: =+ROUND(+G124+J124+L124,0) -> 0 | S124: прилага се само за отчета в хил. лв.
B125: З. ОБЩО НЕТО-РАЗЧЕТИ И ДРУГИ ОПЕРАЦИИ | F125: =+ROUND(+SUM(F121:F124),0) -> 0 | G125: =+ROUND(+SUM(G121:G124),0) -> -78267 | I125: =+ROUND(+SUM(I121:I124),0) -> 0 | J125: =+ROUND(+SUM(J121:J124),0) -> 0 | L125: =+ROUND(+SUM(L121:L124),0) -> 0 | N125: =+ROUND(+SUM(N121:N124),0) -> -78267 | P125: =+ROUND(+SUM(P121:P124),0) -> 0 | Q125: =+ROUND(+SUM(Q121:Q124),0) -> -78267 | S125: Сборен ред за З. ОБЩО НЕТО-РАЗЧЕТИ И ДРУГИ НЕТНИ ПОЗИЦИИ
B126: И. ИЗМЕНЕНИЕ НА ПАРИЧНИТЕ СРЕДСТВА | S126: И. ИЗМЕНЕНИЕ НА ПАРИЧНИТЕ СРЕДСТВА
B127: 1. Наличности на парични средства в началото на отчетния период | F127: =+IF($P$2=0,$P127,0) -> 0 | G127: =+IF($P$2=0,$Q127,0) -> 150409 | I127: =+IF(OR($P$2=98,$P$2=42,$P$2=96,$P$2=97),$P127,0) -> 0 | J127: =+IF(OR($P$2=98,$P$2=42,$P$2=96,$P$2=97),$Q127,0) -> 0 | L127: =+IF($P$2=33,$Q127,0) -> 0 | N127: =+ROUND(+G127+J127+L127,0) -> 150409 | P127: =+ROUND(+SUM(OTCHET!E563:E568)+SUM(OTCHET!E577:E578)+IF(AND(OTCHET!$F$12="9900",+OTCHET!$E$15=0),0,SUM(OTCHET!E583:E584)),0) -> 0 | Q127: =+ROUND(+SUM(OTCHET!F563:F568)+SUM(OTCHET!F577:F578)+IF(AND(OTCHET!$F$12="9900",+OTCHET!$E$15=0),0,SUM(OTCHET!F583:F584)),0) -> 150409 | S127: финансиращи §§ 95-01 ÷ 95-06, 95-21, 95-22, 96-01 и 96-03 (за ЦБ - без § 96-01 и 96-03)
B128: 2. Преоценка на наличности в чудестранна валута в края на отчетния период | F128: =+IF($P$2=0,$P128,0) -> 0 | G128: =+IF($P$2=0,$Q128,0) -> -190 | I128: =+IF(OR($P$2=98,$P$2=42,$P$2=96,$P$2=97),$P128,0) -> 0 | J128: =+IF(OR($P$2=98,$P$2=42,$P$2=96,$P$2=97),$Q128,0) -> 0 | L128: =+IF($P$2=33,$Q128,0) -> 0 | N128: =+ROUND(+G128+J128+L128,0) -> -190 | P128: =+ROUND(OTCHET!E576+OTCHET!E581,0) -> 0 | Q128: =+ROUND(OTCHET!F576+OTCHET!F581,0) -> -190 | S128: финансиращи §§ 95-14 и 95-49
B129: 3. Наличности на парични средства в края на отчетния период | F129: =+IF($P$2=0,$P129,0) -> 0 | G129: =+IF($P$2=0,$Q129,0) -> 71952 | I129: =+IF(OR($P$2=98,$P$2=42,$P$2=96,$P$2=97),$P129,0) -> 0 | J129: =+IF(OR($P$2=98,$P$2=42,$P$2=96,$P$2=97),$Q129,0) -> 0 | L129: =+IF($P$2=33,$Q129,0) -> 0 | N129: =+ROUND(+G129+J129+L129,0) -> 71952 | P129: =+ROUND(-SUM(OTCHET!E569:E574)-SUM(OTCHET!E579:E580)-IF(AND(OTCHET!$F$12="9900",+OTCHET!$E$15=0),0,SUM(OTCHET!E585:E586)),0) -> 0 | Q129: =+ROUND(-SUM(OTCHET!F569:F574)-SUM(OTCHET!F579:F580)-IF(AND(OTCHET!$F$12="9900",+OTCHET!$E$15=0),0,SUM(OTCHET!F585:F586)),0) -> 71952 | S129: (-) §§ 95-07 ÷ 95-12, 95-28, 95-29, 96-07 и 96-09 (за ЦБ - § без 96-07 и 96-09)
B130: И. ИЗМЕНЕНИЕ НА ПАРИЧНИТЕ СРЕДСТВА (3. - 1. - 2.) | F130: =+ROUND(+F129-F127-F128,0) -> 0 | G130: =+ROUND(+G129-G127-G128,0) -> -78267 | I130: =+ROUND(+I129-I127-I128,0) -> 0 | J130: =+ROUND(+J129-J127-J128,0) -> 0 | L130: =+ROUND(+L129-L127-L128,0) -> 0 | N130: =+ROUND(+N129-N127-N128,0) -> -78267 | P130: =+ROUND(+P129-P127-P128,0) -> 0 | Q130: =+ROUND(+Q129-Q127-Q128,0) -> -78267 | S130: Сборен ред за И. ИЗМЕНЕНИЕ НА ПАРИЧНИТЕ СРЕДСТВА (3. - 1. - 2.)
B131: =+IF(+SUM(F131:N131)=0,0,"Контрола: дефицит/излишък = финансиране с обратен знак (Г. + Д. = 0)") -> 0 | F131: =+ROUND(F82,0)+ROUND(F83,0) -> 0 | G131: =+ROUND(G82,0)+ROUND(G83,0) -> 0 | I131: =+ROUND(I82,0)+ROUND(I83,0) -> 0 | J131: =+ROUND(J82,0)+ROUND(J83,0) -> 0 | L131: =+ROUND(L82,0)+ROUND(L83,0) -> 0 | N131: =+ROUND(N82,0)+ROUND(N83,0) -> 0 | P131: =+ROUND(P82,0)+ROUND(P83,0) -> 0 | Q131: =+ROUND(Q82,0)+ROUND(Q83,0) -> 0
B132: Дата: | C132: =+OTCHET!B601 -> 0 | D132: ГЛ. СЧЕТОВОДИТЕЛ: | I132: РЪКОВОДИТЕЛ:
B135: КОНТРОЛА - РАВНЕНИЕ МЕЖДУ БЮДЖЕТНО САЛДО И ФИНАНСИРАНЕ | F135: =+IF(+ROUND(F138,2)=0,"O K","НЕРАВНЕНИЕ!") -> O K | G135: =+IF(+ROUND(G138,2)=0,"O K","НЕРАВНЕНИЕ!") -> O K | I135: =+IF(+ROUND(I138,2)=0,"O K","НЕРАВНЕНИЕ!") -> O K | J135: =+IF(+ROUND(J138,2)=0,"O K","НЕРАВНЕНИЕ!") -> O K | L135: =+IF(+ROUND(L138,2)=0,"O K","НЕРАВНЕНИЕ!") -> O K | N135: =+IF(+ROUND(N138,2)=0,"O K","НЕРАВНЕНИЕ!") -> O K | P135: =+IF(+ROUND(P138,2)=0,"O K","НЕРАВНЕНИЕ!") -> O K | Q135: =+IF(+ROUND(Q138,2)=0,"O K","НЕРАВНЕНИЕ!") -> O K
B136: КОНТРОЛА - РАВНЕНИЕ НА КАСОВИ ПОТОЦИ С НАЛИЧНОСТ | F136: =+IF(+ROUND(F139,0)=0,"O K","НЕРАВНЕНИЕ!") -> O K | G136: =+IF(+ROUND(G139,0)=0,"O K","НЕРАВНЕНИЕ!") -> O K | I136: =+IF(+ROUND(I139,0)=0,"O K","НЕРАВНЕНИЕ!") -> O K | J136: =+IF(+ROUND(J139,0)=0,"O K","НЕРАВНЕНИЕ!") -> O K | L136: =+IF(+ROUND(L139,0)=0,"O K","НЕРАВНЕНИЕ!") -> O K | N136: =+IF(+ROUND(N139,0)=0,"O K","НЕРАВНЕНИЕ!") -> O K | P136: =+IF(+ROUND(P139,0)=0,"O K","НЕРАВНЕНИЕ!") -> O K | Q136: =+IF(+ROUND(Q139,0)=0,"O K","НЕРАВНЕНИЕ!") -> O K
B138: КОНТРОЛА - РАВНЕНИЕ НА БЮДЖ. САЛДО И ФИНАНСИРАНЕ - неравнение в левове | F138: =+ROUND(F82,0)+ROUND(F83,0) -> 0 | G138: =+ROUND(G82,0)+ROUND(G83,0) -> 0 | I138: =+ROUND(I82,0)+ROUND(I83,0) -> 0 | J138: =+ROUND(J82,0)+ROUND(J83,0) -> 0 | L138: =+ROUND(L82,0)+ROUND(L83,0) -> 0 | N138: =+ROUND(N82,0)+ROUND(N83,0) -> 0 | P138: =+ROUND(P82,0)+ROUND(P83,0) -> 0 | Q138: =+ROUND(Q82,0)+ROUND(Q83,0) -> 0
B139: КОНТРОЛА - РАВНЕНИЕ НА КАСОВИ ПОТОЦИ С НАЛИЧНОСТ - неравнение в левове | F139: =SUM(+ROUND(F82,0)+ROUND(F100,0)+ROUND(F119,0)+ROUND(F125,0)+ROUND(F127,0)+ROUND(F128,0))-ROUND(F129,0) -> 0 | G139: =SUM(+ROUND(G82,0)+ROUND(G100,0)+ROUND(G119,0)+ROUND(G125,0)+ROUND(G127,0)+ROUND(G128,0))-ROUND(G129,0) -> 0 | I139: =SUM(+ROUND(I82,0)+ROUND(I100,0)+ROUND(I119,0)+ROUND(I125,0)+ROUND(I127,0)+ROUND(I128,0))-ROUND(I129,0) -> 0 | J139: =SUM(+ROUND(J82,0)+ROUND(J100,0)+ROUND(J119,0)+ROUND(J125,0)+ROUND(J127,0)+ROUND(J128,0))-ROUND(J129,0) -> 0 | L139: =SUM(+ROUND(L82,0)+ROUND(L100,0)+ROUND(L119,0)+ROUND(L125,0)+ROUND(L127,0)+ROUND(L128,0))-ROUND(L129,0) -> 0 | N139: =SUM(+ROUND(N82,0)+ROUND(N100,0)+ROUND(N119,0)+ROUND(N125,0)+ROUND(N127,0)+ROUND(N128,0))-ROUND(N129,0) -> 0 | P139: =SUM(+ROUND(P82,0)+ROUND(P100,0)+ROUND(P119,0)+ROUND(P125,0)+ROUND(P127,0)+ROUND(P128,0))-ROUND(P129,0) -> 0 | Q139: =SUM(+ROUND(Q82,0)+ROUND(Q100,0)+ROUND(Q119,0)+ROUND(Q125,0)+ROUND(Q127,0)+ROUND(Q128,0))-ROUND(Q129,0) -> 0

Sheet OTCHET-agregirani pokazateli
B8: =VLOOKUP(E15,SMETKA,3,FALSE) -> ОТЧЕТ ЗА КАСОВОТО ИЗПЪЛНЕНИЕ НА БЮДЖЕТА
B11: =+OTCHET!B9 -> ОБЛАСТНА АДМИНИСТРАЦИЯ ПАЗАРДЖИК | E11: към | F11: =OTCHET!F9 -> 2017-12-31 | G11: ЕИК/БУЛСТАТ | H11: =+OTCHET!H9 -> 112121473 | I11: =+OTCHET!I9 -> 30010130
B12: (наименование на разпоредителя с бюджет) | I12: код от регистъра на бюджетните организации в СЕБРА
B13: =+OTCHET!B12 -> Министерски съвет | E13: =+OTCHET!E12 -> код по ЕБК: | F13: =+OTCHET!F12 -> 0300
B14: (наименование на първостепенния разпоредител с бюджет)
B15: финансово-правна форма | E15: =OTCHET!E15 -> 0 | F15: =OTCHET!F15 -> БЮДЖЕТ
J16: (в левове)
C17: §§ | E17: Годишен уточнен план 2017 г. | F17: ОТЧЕТ 2017 г. | G17: ОТЧЕТНИ ДАННИ ЗА: | O17: §§ от ЕБК, които се включват в съответния показател
B18: П О К А З А Т Е Л И | G18: левови сметки и СЕБРА | H18: валутни сметки | I18: операции в брой (в левове и валута) | J18: операции приравнени на касов поток | K18: ОТЧЕТ | L18: ОТЧЕТ
B20: (а) | E20: (1) | F20: (2) | G20: (3) | H20: (4) | I20: (5) | J20: (6) | K20: (код 4) | L20: (код 5) | M20: (код 5)
A22: 10 | B22: I. СОБСТВЕНИ ПРИХОДИ И ПОМОЩИ | C22: §§ 01 - 48 | E22: =+E23+E25+E36+E37 -> 142000 | F22: 102353 | G22: 43811 | H22: 0 | I22: 58542 | J22: 0 | K22: =+K23+K25+K35+K36+K37 -> 0 | L22: =+L23+L25+L35+L36+L37 -> 0 | M22: =+M23+M25+M35+M36 -> 0 | O22: §§ 01 - 48
A23: 15 | B23: 1. Данъчни приходи | C23: §§ 01 - 20 | E23: =OTCHET!E22+OTCHET!E28+OTCHET!E33+OTCHET!E39+OTCHET!E47+OTCHET!E52+OTCHET!E58+OTCHET!E61+OTCHET!E64+OTCHET!E65+OTCHET!E72+OTCHET!E73+OTCHET!E74 -> 0 | F23: =+G23+H23+I23+J23 -> 0 | G23: =OTCHET!G22+OTCHET!G28+OTCHET!G33+OTCHET!G39+OTCHET!G47+OTCHET!G52+OTCHET!G58+OTCHET!G61+OTCHET!G64+OTCHET!G65+OTCHET!G72+OTCHET!G73+OTCHET!G74 -> 0 | H23: =OTCHET!H22+OTCHET!H28+OTCHET!H33+OTCHET!H39+OTCHET!H47+OTCHET!H52+OTCHET!H58+OTCHET!H61+OTCHET!H64+OTCHET!H65+OTCHET!H72+OTCHET!H73+OTCHET!H74 -> 0 | I23: =OTCHET!I22+OTCHET!I28+OTCHET!I33+OTCHET!I39+OTCHET!I47+OTCHET!I52+OTCHET!I58+OTCHET!I61+OTCHET!I64+OTCHET!I65+OTCHET!I72+OTCHET!I73+OTCHET!I74 -> 0 | J23: =OTCHET!J22+OTCHET!J28+OTCHET!J33+OTCHET!J39+OTCHET!J47+OTCHET!J52+OTCHET!J58+OTCHET!J61+OTCHET!J64+OTCHET!J65+OTCHET!J72+OTCHET!J73+OTCHET!J74 -> 0 | O23: §§ 01 - 20
B24: в т. ч. трансфери за отчислени приходи | C24: § 65 | F24: 0 | O24: § 65
A25: 20 | B25: 2. Други приходи | C25: §§ 24 - 42 | E25: =+E26+E30+E31+E32+E33 -> 142000 | F25: =+F26+F30+F31+F32+F33 -> 102353 | G25: =+G26+G30+G31+G32+G33 -> 43811 | H25: =+H26+H30+H31+H32+H33 -> 0 | I25: =+I26+I30+I31+I32+I33 -> 58542 | J25: =+J26+J30+J31+J32+J33 -> 0 | K25: 0 | L25: 0 | M25: 0 | O25: §§ 24 - 42
A26: 25 | B26: 2.1 Приходи и доходи от собственост | C26: §24 | E26: =OTCHET!E75 -> 60000 | F26: 64530 | G26: =OTCHET!G75 -> 11868 | H26: =OTCHET!H75 -> 0 | I26: =OTCHET!I75 -> 52662 | J26: =OTCHET!J75 -> 0 | O26: §24
A27: 26 | B27: в т. ч. вноски от приходи на държавни и общински предприятия и институции | C27: под.§ 24-01 | E27: =OTCHET!E76 -> 0 | F27: 0 | G27: =OTCHET!G76 -> 0 | H27: =OTCHET!H76 -> 0 | I27: =OTCHET!I76 -> 0 | J27: =OTCHET!J76 -> 0 | O27: под.§ 24-01
A28: 30 | B28: нетни приходи от продажба на услуги, стоки и продукция | C28: под.§ 24-04 | E28: =OTCHET!E78 -> 0 | F28: 0 | G28: =OTCHET!G78 -> 0 | H28: =OTCHET!H78 -> 0 | I28: =OTCHET!I78 -> 0 | J28: =OTCHET!J78 -> 0 | O28: под.§ 24-04
A29: 35 | B29: приходи от наеми на имущество и земя | C29: под.§§ 24-05 и 24-06 | E29: =+OTCHET!E79+OTCHET!E80 -> 60000 | F29: 64530 | G29: =+OTCHET!G79+OTCHET!G80 -> 11868 | H29: =+OTCHET!H79+OTCHET!H80 -> 0 | I29: =+OTCHET!I79+OTCHET!I80 -> 52662 | J29: =+OTCHET!J79+OTCHET!J80 -> 0 | O29: под.§§ 24-05 и 24-06
A30: 40 | B30: 2.2 Приходи от такси | C30: §§ 25 - 27 | E30: =OTCHET!E90+OTCHET!E93+OTCHET!E94 -> 7000 | F30: 5668 | G30: =OTCHET!G90+OTCHET!G93+OTCHET!G94 -> 165 | H30: =OTCHET!H90+OTCHET!H93+OTCHET!H94 -> 0 | I30: =OTCHET!I90+OTCHET!I93+OTCHET!I94 -> 5503 | J30: =OTCHET!J90+OTCHET!J93+OTCHET!J94 -> 0 | O30: §§ 25 - 27
A31: 45 | B31: 2.3 Глоби, санкции и наказателни лихви | C31: §28 | E31: =OTCHET!E108 -> 0 | F31: 431 | G31: =OTCHET!G108 -> 394 | H31: =OTCHET!H108 -> 0 | I31: =OTCHET!I108 -> 37 | J31: =OTCHET!J108 -> 0 | O31: §28
A32: 50 | B32: 2.4 Други неданъчни приходи | C32: §§ 36 - 37 и §§ 41 - 42 | E32: =OTCHET!E112+OTCHET!E120+OTCHET!E136+OTCHET!E137 -> 5000 | F32: -7046 | G32: =OTCHET!G112+OTCHET!G120+OTCHET!G136+OTCHET!G137 -> -7386 | H32: =OTCHET!H112+OTCHET!H120+OTCHET!H136+OTCHET!H137 -> 0 | I32: =OTCHET!I112+OTCHET!I120+OTCHET!I136+OTCHET!I137 -> 340 | J32: =OTCHET!J112+OTCHET!J120+OTCHET!J136+OTCHET!J137 -> 0 | O32: §§ 36 - 37 и §§ 41 - 42
A33: 51 | B33: 2.5 Постъпления от продажба на нефинансови активи | C33: § 40 с изключение на под.§ 40-71 | E33: =OTCHET!E124 -> 70000 | F33: 38770 | G33: =OTCHET!G124 -> 38770 | H33: =OTCHET!H124 -> 0 | I33: =OTCHET!I124 -> 0 | J33: =OTCHET!J124 -> 0 | O33: § 40 с изключение на под.§ 40-71
A34: 52 | F34: 0
F35: 0
A36: 60 | B36: 3. Помощи и дарения от страната | C36: § 45 | E36: =+OTCHET!E138 -> 0 | F36: 0 | G36: =+OTCHET!G138 -> 0 | H36: =+OTCHET!H138 -> 0 | I36: =+OTCHET!I138 -> 0 | J36: =+OTCHET!J138 -> 0 | O36: § 45
A37: 65 | B37: 4. Помощи и дарения от чужбина | C37: §§ 46 - 48 | E37: =OTCHET!E141+OTCHET!E150+OTCHET!E159 -> 0 | F37: 0 | G37: =OTCHET!G141+OTCHET!G150+OTCHET!G159 -> 0 | H37: =OTCHET!H141+OTCHET!H150+OTCHET!H159 -> 0 | I37: =OTCHET!I141+OTCHET!I150+OTCHET!I159 -> 0 | J37: =OTCHET!J141+OTCHET!J150+OTCHET!J159 -> 0 | O37: §§ 46 - 48
A38: 70 | B38: II. РАЗХОДИ | C38: §§ 01 - 57 | E38: =SUM(E39:E53)-E44-E46-E51-E52 -> 1157098 | F38: 1131456 | G38: 966422 | H38: 0 | I38: 4380 | J38: 160654 | K38: =SUM(K39:K52)-K44-K46-K51 -> 0 | L38: =SUM(L39:L52)-L44-L46-L51 -> 0 | M38: =SUM(M39:M51)-M44-M50 -> 0 | O38: §§ 01 - 57
A39: 75 | B39: 1. Заплати и възнаграждения за персонала, нает по трудови и служебни прав. | C39: § 01 | E39: =OTCHET!E186 -> 305873 | F39: 305311 | G39: =OTCHET!G186 -> 266478 | H39: =OTCHET!H186 -> 0 | I39: =OTCHET!I186 -> 0 | J39: =OTCHET!J186 -> 38833 | O39: § 01
A40: 80 | B40: 2. Други възнаграждения и плащания за персонала | C40: § 02 | E40: =OTCHET!E189 -> 140445 | F40: 139458 | G40: =OTCHET!G189 -> 123816 | H40: =OTCHET!H189 -> 0 | I40: =OTCHET!I189 -> 0 | J40: =OTCHET!J189 -> 15642 | O40: § 02
A41: 85 | B41: 3. Осигурителни вноски | C41: §§ 05 и 08 | E41: =+OTCHET!E195+OTCHET!E203 -> 107413 | F41: 106179 | G41: =+OTCHET!G195+OTCHET!G203 -> 0 | H41: =+OTCHET!H195+OTCHET!H203 -> 0 | I41: =+OTCHET!I195+OTCHET!I203 -> 0 | J41: =+OTCHET!J195+OTCHET!J203 -> 106179 | O41: §§ 05 и 08
A42: 90 | B42: 4. Издръжка | C42: §§ 10; 19; 46 | E42: =+OTCHET!E204+OTCHET!E222+OTCHET!E271 -> 599867 | F42: 578708 | G42: =+OTCHET!G204+OTCHET!G222+OTCHET!G271 -> 574328 | H42: =+OTCHET!H204+OTCHET!H222+OTCHET!H271 -> 0 | I42: =+OTCHET!I204+OTCHET!I222+OTCHET!I271 -> 4380 | J42: =+OTCHET!J204+OTCHET!J222+OTCHET!J271 -> 0 | O42: §§ 10; 19; 46
A43: 95 | B43: 5. Лихви | C43: §§ 21 - 29 | E43: =+OTCHET!E226+OTCHET!E232+OTCHET!E235+OTCHET!E236+OTCHET!E237+OTCHET!E238+OTCHET!E239 -> 0 | F43: 0 | G43: =+OTCHET!G226+OTCHET!G232+OTCHET!G235+OTCHET!G236+OTCHET!G237+OTCHET!G238+OTCHET!G239 -> 0 | H43: =+OTCHET!H226+OTCHET!H232+OTCHET!H235+OTCHET!H236+OTCHET!H237+OTCHET!H238+OTCHET!H239 -> 0 | I43: =+OTCHET!I226+OTCHET!I232+OTCHET!I235+OTCHET!I236+OTCHET!I237+OTCHET!I238+OTCHET!I239 -> 0 | J43: =+OTCHET!J226+OTCHET!J232+OTCHET!J235+OTCHET!J236+OTCHET!J237+OTCHET!J238+OTCHET!J239 -> 0 | O43: §§ 21 - 29
A44: 100 | B44: в т. ч. външни | C44: §§ 25 - 28; 29-69/29-70 и 29-92 | E44: =+OTCHET!E235+OTCHET!E236+OTCHET!E237+OTCHET!E238+OTCHET!E242+OTCHET!E243+OTCHET!E247 -> 0 | F44: 0 | G44: =+OTCHET!G235+OTCHET!G236+OTCHET!G237+OTCHET!G238+OTCHET!G242+OTCHET!G243+OTCHET!G247 -> 0 | H44: =+OTCHET!H235+OTCHET!H236+OTCHET!H237+OTCHET!H238+OTCHET!H242+OTCHET!H243+OTCHET!H247 -> 0 | I44: =+OTCHET!I235+OTCHET!I236+OTCHET!I237+OTCHET!I238+OTCHET!I242+OTCHET!I243+OTCHET!I247 -> 0 | J44: =+OTCHET!J235+OTCHET!J236+OTCHET!J237+OTCHET!J238+OTCHET!J242+OTCHET!J243+OTCHET!J247 -> 0 | O44: §§ 25 - 28; 29-69/29-70 и 29-92
A45: 105 | B45: 6. Социални разходи, стипендии | C45: §§ 39 - 42 | E45: =+OTCHET!E255+OTCHET!E256+OTCHET!E257+OTCHET!E258 -> 0 | F45: 0 | G45: =+OTCHET!G255+OTCHET!G256+OTCHET!G257+OTCHET!G258 -> 0 | H45: =+OTCHET!H255+OTCHET!H256+OTCHET!H257+OTCHET!H258 -> 0 | I45: =+OTCHET!I255+OTCHET!I256+OTCHET!I257+OTCHET!I258 -> 0 | J45: =+OTCHET!J255+OTCHET!J256+OTCHET!J257+OTCHET!J258 -> 0 | O45: §§ 39 - 42
A46: 106 | B46: в т. ч. стипендии | C46: § 40 | E46: =+OTCHET!E256 -> 0 | F46: 0 | G46: =+OTCHET!G256 -> 0 | H46: =+OTCHET!H256 -> 0 | I46: =+OTCHET!I256 -> 0 | J46: =+OTCHET!J256 -> 0 | O46: § 40
A47: 107 | B47: 7.Субсидии | C47: §§ 43 - 45; 49 | E47: =+OTCHET!E265+OTCHET!E269+OTCHET!E270+OTCHET!E273 -> 0 | F47: 0 | G47: =+OTCHET!G265+OTCHET!G269+OTCHET!G270+OTCHET!G273 -> 0 | H47: =+OTCHET!H265+OTCHET!H269+OTCHET!H270+OTCHET!H273 -> 0 | I47: =+OTCHET!I265+OTCHET!I269+OTCHET!I270+OTCHET!I273 -> 0 | J47: =+OTCHET!J265+OTCHET!J269+OTCHET!J270+OTCHET!J273 -> 0 | O47: §§ 43 - 45; 49-01
A48: 108 | B48: 8. Придобиване на нeфинансови актииви | C48: §§ 51 - 54 | E48: =OTCHET!E275+OTCHET!E276+OTCHET!E284+OTCHET!E287 -> 3500 | F48: 1800 | G48: =OTCHET!G275+OTCHET!G276+OTCHET!G284+OTCHET!G287 -> 1800 | H48: =OTCHET!H275+OTCHET!H276+OTCHET!H284+OTCHET!H287 -> 0 | I48: =OTCHET!I275+OTCHET!I276+OTCHET!I284+OTCHET!I287 -> 0 | J48: =OTCHET!J275+OTCHET!J276+OTCHET!J284+OTCHET!J287 -> 0 | O48: §§ 51 - 54
A49: 110 | B49: 9. Капиталови трансфери | C49: § 55 | E49: =+OTCHET!E288+OTCHET!E274 -> 0 | F49: 0 | G49: =+OTCHET!G288+OTCHET!G274 -> 0 | H49: =+OTCHET!H288+OTCHET!H274 -> 0 | I49: =+OTCHET!I288+OTCHET!I274 -> 0 | J49: =+OTCHET!J288+OTCHET!J274 -> 0 | O49: § 55; 49-02
A50: 115 | B50: 10. Прираст на държавния резерв и изкупуване на земеделска продукция | C50: (+ § 57 - под.§ 40-71) | E50: =+OTCHET!E293 -> 0 | F50: 0 | G50: =+OTCHET!G293 -> 0 | H50: =+OTCHET!H293 -> 0 | I50: =+OTCHET!I293 -> 0 | J50: =+OTCHET!J293 -> 0 | O50: (+ § 57 - под.§ 40-71)
A51: 120 | B51: в т. ч. плащания за попълване на държавния резерв | C51: под.§;57-01 | E51: =OTCHET!E294 -> 0 | F51: 0 | G51: =OTCHET!G294 -> 0 | H51: =OTCHET!H294 -> 0 | I51: =OTCHET!I294 -> 0 | J51: =OTCHET!J294 -> 0 | O51: под.§;57-01
A52: 125 | B52: постъпления от продажби на държавния резерв (-) | C52: (-)под.§ 40-71 | E52: =OTCHET!E296 -> 0 | F52: 0 | G52: =OTCHET!G296 -> 0 | H52: =OTCHET!H296 -> 0 | I52: =OTCHET!I296 -> 0 | J52: =OTCHET!J296 -> 0 | O52: (-)под.§ 40-71
A53: 127 | B53: 11. Резерв за непредвидини и неотложни разходи | C53: §;00-98 | E53: =+OTCHET!E297 -> 0 | F53: 0 | G53: =+OTCHET!G297 -> 0 | H53: =+OTCHET!H297 -> 0 | I53: =+OTCHET!I297 -> 0 | J53: =+OTCHET!J297 -> 0 | O53: §;00-98
A54: 130 | B54: III. Трансфери | C54: §§ 30 - 31; 32; 60 - 67; 69; 74 - 78 | E54: =+E55+E56+E60 -> 1015098 | F54: 1029118 | G54: 852288 | H54: 0 | I54: 0 | J54: 176830 | K54: =+K55+K56+K59 -> 0 | L54: =+L55+L56+L59 -> 0 | M54: =+M55+M56+M59 -> 0 | O54: §§ 30 - 31; 32; 60 - 67; 69; 74 - 78
A55: 135 | B55: 1. Трансфери от/за ЦБ за/от други бюджети | C55: §§ 30 - 31; 60 | E55: =+OTCHET!E357+OTCHET!E371+OTCHET!E384 -> 0 | F55: 0 | G55: =+OTCHET!G357+OTCHET!G371+OTCHET!G384 -> 0 | H55: =+OTCHET!H357+OTCHET!H371+OTCHET!H384 -> 0 | I55: =+OTCHET!I357+OTCHET!I371+OTCHET!I384 -> 0 | J55: =+OTCHET!J357+OTCHET!J371+OTCHET!J384 -> 0 | O55: §§ 30 - 31; 60
A56: 140 | B56: 2. Други трансфери | C56: §§ 32; 61- 67; 74 - 78 | E56: =+OTCHET!E379+OTCHET!E387+OTCHET!E392+OTCHET!E395+OTCHET!E398+OTCHET!E401+OTCHET!E402+OTCHET!E405+OTCHET!E418+OTCHET!E419+OTCHET!E420+OTCHET!E421+OTCHET!E422 -> 1015098 | F56: 852288 | G56: =+OTCHET!G379+OTCHET!G387+OTCHET!G392+OTCHET!G395+OTCHET!G398+OTCHET!G401+OTCHET!G402+OTCHET!G405+OTCHET!G418+OTCHET!G419+OTCHET!G420+OTCHET!G421+OTCHET!G422 -> 852288 | H56: =+OTCHET!H379+OTCHET!H387+OTCHET!H392+OTCHET!H395+OTCHET!H398+OTCHET!H401+OTCHET!H402+OTCHET!H405+OTCHET!H418+OTCHET!H419+OTCHET!H420+OTCHET!H421+OTCHET!H422 -> 0 | I56: =+OTCHET!I379+OTCHET!I387+OTCHET!I392+OTCHET!I395+OTCHET!I398+OTCHET!I401+OTCHET!I402+OTCHET!I405+OTCHET!I418+OTCHET!I419+OTCHET!I420+OTCHET!I421+OTCHET!I422 -> 0 | J56: =+OTCHET!J379+OTCHET!J387+OTCHET!J392+OTCHET!J395+OTCHET!J398+OTCHET!J401+OTCHET!J402+OTCHET!J405+OTCHET!J418+OTCHET!J419+OTCHET!J420+OTCHET!J421+OTCHET!J422 -> 0 | O56: §§ 32; 61- 67; 74 - 78
A57: 145 | B57: в т. ч. временни безлихвени заеми | C57: §§ 74 - 78 | E57: =+OTCHET!E418+OTCHET!E419+OTCHET!E420+OTCHET!E421+OTCHET!E422 -> 0 | F57: 0 | G57: =+OTCHET!G418+OTCHET!G419+OTCHET!G420+OTCHET!G421+OTCHET!G422 -> 0 | H57: =+OTCHET!H418+OTCHET!H419+OTCHET!H420+OTCHET!H421+OTCHET!H422 -> 0 | I57: =+OTCHET!I418+OTCHET!I419+OTCHET!I420+OTCHET!I421+OTCHET!I422 -> 0 | J57: =+OTCHET!J418+OTCHET!J419+OTCHET!J420+OTCHET!J421+OTCHET!J422 -> 0 | O57: §§ 74 - 78
A58: 150 | B58: трансфери за отчислени постъпления | C58: § 65 | E58: =OTCHET!E401 -> 0 | F58: 0 | G58: =OTCHET!G401 -> 0 | H58: =OTCHET!H401 -> 0 | I58: =OTCHET!I401 -> 0 | J58: =OTCHET!J401 -> 0 | O58: § 65
A59: 160 | F59: 0
A60: 162 | B60: 3. Трансфери за поети осигурителни вноски и данъци | C60: § 69 | E60: =OTCHET!E408 -> 0 | F60: 176830 | G60: =OTCHET!G408 -> 0 | H60: =OTCHET!H408 -> 0 | I60: =OTCHET!I408 -> 0 | J60: =OTCHET!J408 -> 176830 | O60: § 69
A61: 165 | B61: IV. Вноска в бюджета на ЕС | C61: § 33 | E61: =+OTCHET!E248 -> 0 | F61: 0 | G61: =+OTCHET!G248 -> 0 | H61: =+OTCHET!H248 -> 0 | I61: =+OTCHET!I248 -> 0 | J61: =+OTCHET!J248 -> 0 | O61: § 33
A62: 175 | B62: V. Дефицит / излишък = I - II +III - IV | E62: =+E22-E38+E54-E61 -> 0 | F62: 15 | G62: -70323 | H62: 0 | I62: 54162 | J62: 16176 | K62: =+K22-K38+K54 -> 0 | L62: =+L22-L38+L54 -> 0 | M62: =+M22-M38+M54 -> 0
A63: 180 | B63: =+IF(+SUM(E$63:J$63)=0,0,"Контрола: дефицит/излишък = финансиране с обратен знак (V. + VІ. = 0)") -> 0 | E63: =+E$62+E$64 -> 0 | F63: 0 | G63: 0 | H63: 0 | I63: 0 | J63: 0 | K63: =+K62+K64 ->  | L63: =+L62+L64 ->  | M63: =+M62+M64 -> 
A64: 185 | B64: VI. Финансиране | C64: §§ 70 - 98 | E64: =SUM(+E66+E74+E75+E82+E83+E84+E87+E88+E89+E90+E91+E92+E93) -> 0 | F64: =SUM(+F66+F74+F75+F82+F83+F84+F87+F88+F89+F90+F91+F92+F93) -> -15 | G64: =SUM(+G66+G74+G75+G82+G83+G84+G87+G88+G89+G90+G91+G92+G93) -> 70323 | H64: =SUM(+H66+H74+H75+H82+H83+H84+H87+H88+H89+H90+H91+H92+H93) -> 0 | I64: =SUM(+I66+I74+I75+I82+I83+I84+I87+I88+I89+I90+I91+I92+I93) -> -54162 | J64: =SUM(+J66+J74+J75+J82+J83+J84+J87+J88+J89+J90+J91+J92+J93) -> -16176 | M64: =SUM(+M66+M74+M75+M82+M83+M84+M87+M88+M89+M90+M91+M93+M94) ->  | O64: §§ 70 - 98
A65: 190 | F65: 0
A66: 195 | B66: 1. Външно финансиране | C66: §§ 80 - 82; 92-01; 95-21/95-22; 95-28/95-29 и 95-49 | E66: =SUM(E67:E73) -> 0 | F66: =SUM(F67:F73) -> 0 | G66: =SUM(G67:G73) -> 0 | H66: =SUM(H67:H73) -> 0 | I66: =SUM(I67:I73) -> 0 | J66: =SUM(J67:J73) -> 0 | O66: §§ 80 - 82; 92-01; 95-21/95-22; 95-28/95-29 и 95-49
A67: 200 | B67: получени външни заеми | C67: под.§§ 80-11/80-12; 80-31/80-32; 80-51/80-52 и 80-97 | E67: =+OTCHET!E478+OTCHET!E479+OTCHET!E482+OTCHET!E483+OTCHET!E486+OTCHET!E487+OTCHET!E491 -> 0 | F67: 0 | G67: =+OTCHET!G478+OTCHET!G479+OTCHET!G482+OTCHET!G483+OTCHET!G486+OTCHET!G487+OTCHET!G491 -> 0 | H67: =+OTCHET!H478+OTCHET!H479+OTCHET!H482+OTCHET!H483+OTCHET!H486+OTCHET!H487+OTCHET!H491 -> 0 | I67: =+OTCHET!I478+OTCHET!I479+OTCHET!I482+OTCHET!I483+OTCHET!I486+OTCHET!I487+OTCHET!I491 -> 0 | J67: =+OTCHET!J478+OTCHET!J479+OTCHET!J482+OTCHET!J483+OTCHET!J486+OTCHET!J487+OTCHET!J491 -> 0 | K67: =+#REF!+#REF!+#REF!+#REF!+#REF!+#REF!+#REF! ->  | L67: =+#REF!+#REF!+#REF!+#REF!+#REF!+#REF!+#REF! ->  | M67: =+#REF!+#REF!+#REF!+#REF!+#REF!+#REF!+#REF! ->  | O67: под.§§ 80-11/80-12; 80-31/80-32; 80-51/80-52 и 80-97
A68: 205 | B68: погашения по външни заеми | C68: под.§§ 80-17/80-18; 80-37/80-38; 80-57/80-58; 80-80 и 80-98; | E68: =+OTCHET!E480+OTCHET!E481+OTCHET!E484+OTCHET!E485+OTCHET!E488+OTCHET!E489+OTCHET!E490+OTCHET!E492 -> 0 | F68: 0 | G68: =+OTCHET!G480+OTCHET!G481+OTCHET!G484+OTCHET!G485+OTCHET!G488+OTCHET!G489+OTCHET!G490+OTCHET!G492 -> 0 | H68: =+OTCHET!H480+OTCHET!H481+OTCHET!H484+OTCHET!H485+OTCHET!H488+OTCHET!H489+OTCHET!H490+OTCHET!H492 -> 0 | I68: =+OTCHET!I480+OTCHET!I481+OTCHET!I484+OTCHET!I485+OTCHET!I488+OTCHET!I489+OTCHET!I490+OTCHET!I492 -> 0 | J68: =+OTCHET!J480+OTCHET!J481+OTCHET!J484+OTCHET!J485+OTCHET!J488+OTCHET!J489+OTCHET!J490+OTCHET!J492 -> 0 | K68: =+#REF!+#REF!+#REF!+#REF!+#REF!+#REF!+#REF!+#REF! ->  | L68: =+#REF!+#REF!+#REF!+#REF!+#REF!+#REF!+#REF!+#REF! ->  | M68: =+#REF!+#REF!+#REF!+#REF!+#REF!+#REF!+#REF!+#REF! ->  | O68: под.§§ 80-17/80-18; 80-37/80-38; 80-57/80-58; 80-80 и 80-98;
A69: 210 | B69: държавни /общински/ ЦК емитирани на м/нар. капиталови пазари | C69: § 81 | E69: =+OTCHET!E493 -> 0 | F69: 0 | G69: =+OTCHET!G493 -> 0 | H69: =+OTCHET!H493 -> 0 | I69: =+OTCHET!I493 -> 0 | J69: =+OTCHET!J493 -> 0 | K69: =+#REF! ->  | L69: =+#REF! ->  | M69: =+#REF! ->  | O69: § 81
A70: 215 | B70: получени погашения по предоставени кредити от други държави | C70: § 82 | E70: =+OTCHET!E498 -> 0 | F70: 0 | G70: =+OTCHET!G498 -> 0 | H70: =+OTCHET!H498 -> 0 | I70: =+OTCHET!I498 -> 0 | J70: =+OTCHET!J498 -> 0 | K70: =+#REF! ->  | L70: =+#REF! ->  | M70: =+#REF! ->  | O70: § 82
A71: 220 | B71: операции с др. ЦК и финансови активи | C71: под. § 92-01 | E71: =+OTCHET!E538 -> 0 | F71: 0 | G71: =+OTCHET!G538 -> 0 | H71: =+OTCHET!H538 -> 0 | I71: =+OTCHET!I538 -> 0 | J71: =+OTCHET!J538 -> 0 | K71: =+#REF! ->  | L71: =+#REF! ->  | M71: =+#REF! ->  | O71: под. § 92-01
A72: 230 | B72: остатък в лв.равн. по валутни сметки и каса в чужбина от предх. период | C72: под. §§ 95-21и 95-22 | E72: =+OTCHET!E577+OTCHET!E578 -> 0 | F72: 0 | G72: =+OTCHET!G577+OTCHET!G578 -> 0 | H72: =+OTCHET!H577+OTCHET!H578 -> 0 | I72: =+OTCHET!I577+OTCHET!I578 -> 0 | J72: =+OTCHET!J577+OTCHET!J578 -> 0 | K72: =+#REF!+#REF! ->  | L72: =+#REF!+#REF! ->  | M72: =+#REF!+#REF! ->  | O72: под. §§ 95-21и 95-22
A73: 235 | B73: наличности в лв. равн.по валутни сметки и каса в чужб. в кр.на периода | C73: под. §§ 95-28/95-29 и 95-49 | E73: =+OTCHET!E579+OTCHET!E580+OTCHET!E581 -> 0 | F73: 0 | G73: =+OTCHET!G579+OTCHET!G580+OTCHET!G581 -> 0 | H73: =+OTCHET!H579+OTCHET!H580+OTCHET!H581 -> 0 | I73: =+OTCHET!I579+OTCHET!I580+OTCHET!I581 -> 0 | J73: =+OTCHET!J579+OTCHET!J580+OTCHET!J581 -> 0 | K73: =+#REF!+#REF!+#REF! ->  | L73: =+#REF!+#REF!+#REF! ->  | M73: =+#REF!+#REF!+#REF! ->  | O73: под. §§ 95-28/95-29 и 95-49
A74: 240 | B74: 2. Придобиване на дялове, акции, съучастия и др, финансови активи | C74: § 70 | E74: =OTCHET!E457 -> 0 | F74: 0 | G74: =OTCHET!G457 -> 0 | H74: =OTCHET!H457 -> 0 | I74: =OTCHET!I457 -> 0 | J74: =OTCHET!J457 -> 0 | K74: =#REF! ->  | L74: =#REF! ->  | M74: =#REF! ->  | O74: § 70
A75: 245 | B75: 3. Възмездни средства | C75: §§ 71 - 73 и 79 | E75: =SUM(E76:E81) -> 0 | F75: =SUM(F76:F81) -> 0 | G75: =SUM(G76:G81) -> 0 | H75: =SUM(H76:H81) -> 0 | I75: =SUM(I76:I81) -> 0 | J75: =SUM(J76:J81) -> 0 | K75: 0 | L75: 0 | M75: 0 | O75: §§ 71 - 73 и 79
A76: 250 | B76: предоставени | C76: под. § 71-01 и § 72-01 | E76: =+OTCHET!E462+OTCHET!E465 -> 0 | F76: 0 | G76: =+OTCHET!G462+OTCHET!G465 -> 0 | H76: =+OTCHET!H462+OTCHET!H465 -> 0 | I76: =+OTCHET!I462+OTCHET!I465 -> 0 | J76: =+OTCHET!J462+OTCHET!J465 -> 0 | O76: под. § 71-01 и § 72-01
A77: 260 | B77: възстановени | C77: под. § 71-02 и § 72-02 | E77: =+OTCHET!E463+OTCHET!E466 -> 0 | F77: 0 | G77: =+OTCHET!G463+OTCHET!G466 -> 0 | H77: =+OTCHET!H463+OTCHET!H466 -> 0 | I77: =+OTCHET!I463+OTCHET!I466 -> 0 | J77: =+OTCHET!J463+OTCHET!J466 -> 0 | O77: под. § 71-02 и § 72-02
A78: 265 | B78: нето плащания по активирани гаранции, поръчителства и преоформен дълг | C78: § 73 | E78: =OTCHET!E467 -> 0 | F78: 0 | G78: =OTCHET!G467 -> 0 | H78: =OTCHET!H467 -> 0 | I78: =OTCHET!I467 -> 0 | J78: =OTCHET!J467 -> 0 | O78: § 73
F79: 0
A80: 270 | B80: предоставени заеми към крайни бенифициенти | C80: под. § 79-01 | E80: =+OTCHET!E475 -> 0 | F80: 0 | G80: =+OTCHET!G475 -> 0 | H80: =+OTCHET!H475 -> 0 | I80: =+OTCHET!I475 -> 0 | J80: =+OTCHET!J475 -> 0 | O80: под. § 79-01
A81: 275 | B81: възстановени суми по заеми от крайни бенифициенти | C81: под. § 79-02 | E81: =+OTCHET!E476 -> 0 | F81: 0 | G81: =+OTCHET!G476 -> 0 | H81: =+OTCHET!H476 -> 0 | I81: =+OTCHET!I476 -> 0 | J81: =+OTCHET!J476 -> 0 | O81: под. § 79-02
A82: 280 | B82: 4. Приватизация на дялове, акции и участия | C82: § 90 | E82: =OTCHET!E531 -> 0 | F82: 0 | G82: =OTCHET!G531 -> 0 | H82: =OTCHET!H531 -> 0 | I82: =OTCHET!I531 -> 0 | J82: =OTCHET!J531 -> 0 | O82: § 90
A83: 285 | B83: 5. Покупко-продажба на държавни/общински/ ценни книжа от бюдж. предприятия | C83: § 91 | E83: =OTCHET!E532 -> 0 | F83: 0 | G83: =OTCHET!G532 -> 0 | H83: =OTCHET!H532 -> 0 | I83: =OTCHET!I532 -> 0 | J83: =OTCHET!J532 -> 0 | O83: § 91
A84: 290 | B84: 6. Друго вътрешно финансиране | C84: §§ 83; 85 - 88; 92-02; 93 | E84: =+E85+E86 -> 0 | F84: =+F85+F86 -> -78282 | G84: =+G85+G86 -> -4994 | H84: =+H85+H86 -> -56597 | I84: =+I85+I86 -> -515 | J84: =+J85+J86 -> -16176 | K84: 0 | L84: 0 | M84: 0 | O84: §§ 83; 85 - 88; 92-02; 93
A85: 295 | B85: операции по вътрешен дълг и финан. активи- нето | C85: §§ 83; 85 - 86 и 92-02 | E85: =+OTCHET!E499+OTCHET!E508+OTCHET!E512+OTCHET!E539 -> 0 | F85: 0 | G85: =+OTCHET!G499+OTCHET!G508+OTCHET!G512+OTCHET!G539 -> 0 | H85: =+OTCHET!H499+OTCHET!H508+OTCHET!H512+OTCHET!H539 -> 0 | I85: =+OTCHET!I499+OTCHET!I508+OTCHET!I512+OTCHET!I539 -> 0 | J85: =+OTCHET!J499+OTCHET!J508+OTCHET!J512+OTCHET!J539 -> 0 | O85: §§ 83; 85 - 86 и 92-02
A86: 300 | B86: друго финансиране | C86: §§ 87; 88 и 93 | E86: =+OTCHET!E517+OTCHET!E520+OTCHET!E540 -> 0 | F86: -78282 | G86: =+OTCHET!G517+OTCHET!G520+OTCHET!G540 -> -4994 | H86: =+OTCHET!H517+OTCHET!H520+OTCHET!H540 -> -56597 | I86: =+OTCHET!I517+OTCHET!I520+OTCHET!I540 -> -515 | J86: =+OTCHET!J517+OTCHET!J520+OTCHET!J540 -> -16176 | O86: §§ 87; 88 и 93
A87: 310 | B87: 7.Суми по разчети за поети осигур, вноски и данъци | C87: §89 | E87: =OTCHET!E527 -> 0 | F87: =+G87+H87+I87+J87 -> 0 | G87: =OTCHET!G527 -> 0 | H87: =OTCHET!H527 -> 0 | I87: =OTCHET!I527 -> 0 | J87: =OTCHET!J527 -> 0 | O87: §89
A88: 320 | B88: 8. Наличности в началото на периода | C88: под. §§ 95-01 до 95-06 | E88: =+OTCHET!E563+OTCHET!E564+OTCHET!E565+OTCHET!E566+OTCHET!E567+OTCHET!E568 -> 0 | F88: 150409 | G88: =+OTCHET!G563+OTCHET!G564+OTCHET!G565+OTCHET!G566+OTCHET!G567+OTCHET!G568 -> 0 | H88: =+OTCHET!H563+OTCHET!H564+OTCHET!H565+OTCHET!H566+OTCHET!H567+OTCHET!H568 -> 150409 | I88: =+OTCHET!I563+OTCHET!I564+OTCHET!I565+OTCHET!I566+OTCHET!I567+OTCHET!I568 -> 0 | J88: =+OTCHET!J563+OTCHET!J564+OTCHET!J565+OTCHET!J566+OTCHET!J567+OTCHET!J568 -> 0 | O88: под. §§ 95-01 до 95-06
A89: 330 | B89: 9 Наличности в края на периода | C89: под. §§ 95-07 до 95-13 | E89: =+OTCHET!E569+OTCHET!E570+OTCHET!E571+OTCHET!E572+OTCHET!E573+OTCHET!E574+OTCHET!E575 -> 0 | F89: -71952 | G89: =+OTCHET!G569+OTCHET!G570+OTCHET!G571+OTCHET!G572+OTCHET!G573+OTCHET!G574+OTCHET!G575 -> 0 | H89: =+OTCHET!H569+OTCHET!H570+OTCHET!H571+OTCHET!H572+OTCHET!H573+OTCHET!H574+OTCHET!H575 -> -71952 | I89: =+OTCHET!I569+OTCHET!I570+OTCHET!I571+OTCHET!I572+OTCHET!I573+OTCHET!I574+OTCHET!I575 -> 0 | J89: =+OTCHET!J569+OTCHET!J570+OTCHET!J571+OTCHET!J572+OTCHET!J573+OTCHET!J574+OTCHET!J575 -> 0 | O89: под. §§ 95-07 до 95-13
A90: 335 | B90: 10. Преоценка на валутни наличности | C90: под. § 95-14 | E90: =+OTCHET!E576 -> 0 | F90: -190 | G90: =+OTCHET!G576 -> 0 | H90: =+OTCHET!H576 -> -190 | I90: =+OTCHET!I576 -> 0 | J90: =+OTCHET!J576 -> 0 | O90: под. § 95-14
A91: 340 | B91: 11. Депозити и сметки консолидирани в "Единната сметка" от предх. период | C91: под. §§ 96-01 до 96-03 | E91: =+OTCHET!E583+OTCHET!E584 -> 0 | F91: 0 | G91: =+OTCHET!G583+OTCHET!G584 -> 0 | H91: =+OTCHET!H583+OTCHET!H584 -> 0 | I91: =+OTCHET!I583+OTCHET!I584 -> 0 | J91: =+OTCHET!J583+OTCHET!J584 -> 0 | O91: под. §§ 96-01 до 96-03
A92: 345 | B92: 12. Депозити и сметки консолидирани в "Единната сметка" в края на периода | C92: под. §§ 96-07 до 96-09 | E92: =+OTCHET!E585+OTCHET!E586 -> 0 | F92: 0 | G92: =+OTCHET!G585+OTCHET!G586 -> 0 | H92: =+OTCHET!H585+OTCHET!H586 -> 0 | I92: =+OTCHET!I585+OTCHET!I586 -> 0 | J92: =+OTCHET!J585+OTCHET!J586 -> 0 | O92: под. §§ 96-07 до 96-09
A93: 350 | B93: 13. Касови операции, депозити, покупко-продажба на валута и сетълмент | C93: § 98 | E93: =OTCHET!E587 -> 0 | F93: 0 | G93: =OTCHET!G587 -> 75317 | H93: =OTCHET!H587 -> -21670 | I93: =OTCHET!I587 -> -53647 | J93: =OTCHET!J587 -> 0 | O93: § 98
A94: 355 | B94: в т. ч. покупко-продажба на валута (+/-) | C94: под. § 98-30 | E94: =+OTCHET!E590 -> 0 | F94: 0 | G94: =+OTCHET!G590 -> 21155 | H94: =+OTCHET!H590 -> -21670 | I94: =+OTCHET!I590 -> 515 | J94: =+OTCHET!J590 -> 0 | O94: под. § 98-30
B95: ЧИСЛЕНОСТ НА ПЕРСОНАЛА
B96: Щатни бройки
B97: по трудови правоотношения
B98: по служебни правоотношения
B100: Средногодишни щатни бройки
B101: по трудови правоотношения
B102: по служебни правоотношения
B103: =+IF(+SUM(E$63:J$63)=0,0,"Контрола: дефицит/излишък = финансиране с обратен знак (V. + VІ. = 0)") -> 0 | E103: =+E$62+E$64 -> 0 | F103: 0 | G103: 0 | H103: 0 | I103: 0 | J103: 0
B105: =+OTCHET!H601 -> accountant@pz.government.bg | G105: =+OTCHET!E601 -> 34 | H105: =+OTCHET!F601 -> 400023 | J105: =+OTCHET!B601 -> 00:00:00
B106: (e-mail) | G106: (служебни телефони) | J106: (дата)
B107: ИЗГОТВИЛ:
E108: =+OTCHET!D599 -> НАДЕЖДА ЦОКОВА
B111: ГЛ. СЧЕТОВОДИТЕЛ: | H111: РЪКОВОДИТЕЛ:
E112: =+OTCHET!G596 -> НАДЕЖДА ЦОКОВА | I112: =+OTCHET!G599 -> СТЕФАН МИРЕВ

Sheet OTCHET F (hidden)
A1: a | B1: b | C1: c | D1: d | E1: e | F1: f | G1: g | H1: h | I1: h | J1: h | K1: pub
K2: 1
K3: 1
K4: 1
K5: 1
K6: 1
B7: =OTCHET!B7 -> ОТЧЕТНИ ДАННИ ПО ЕБК ЗА ИЗПЪЛНЕНИЕТО НА БЮДЖЕТА | K7: 1
E8: за периода от | F8: до | K8: 1
B9: =OTCHET!B9 -> ОБЛАСТНА АДМИНИСТРАЦИЯ ПАЗАРДЖИК | E9: =OTCHET!$E9 -> 2017-01-01 | F9: =OTCHET!$F9 -> 2017-12-31 | K9: 1
B10: =OTCHET!B10 -> (наименование на разпоредителя с бюджет) | F10: =OTCHET!$F10 -> 0 | K10: 1
K11: 1
B12: =OTCHET!B12 -> Министерски съвет | E12: код : | F12: =OTCHET!$F12 -> 0300 | K12: 1
B13: =OTCHET!B13 -> (наименование на първостепенния разпоредител с бюджет) | E13: (по ЕБК) | K13: 1
K14: 1
K15: 1
K16: 1
K17: 1
J18: (в лева) | K18: 1
C19: I. ПРИХОДИ | E19: Уточнен план | F19: Отчет | K19: 1
B20: §§ | C20: (параграфи от ЕБК) | E20: 2017 | F20: Общо | G20: левови сметки | H20: валутни сметки | I20: Касови операции в лева и валута | J20: Приравнени некасови операции | K20: 1
C21: 0 1 ¦ | E21: (1) | F21: (2) | G21: (3) | H21: (4) | I21: (5) | J21: (6) | K21: 1
A22: 5 | B22: 100 | C22: Данък върху доходите на физически лица: | E22: =OTCHET!$E22 -> 0 | F22: =OTCHET!$F22 -> 0 | G22: =OTCHET!$G22 -> 0 | H22: =OTCHET!$H22 -> 0 | I22: =OTCHET!$I22 -> 0 | J22: =OTCHET!$J22 -> 0 | K22: =(IF(E22<>0,$K$2,IF(F22<>0,$K$2,""))) -> 
A23: 25 | B23: 200 | C23: Корпоративен данък: | E23: =OTCHET!$E28 -> 0 | F23: =OTCHET!$F28 -> 0 | G23: =OTCHET!$G28 -> 0 | H23: =OTCHET!$H28 -> 0 | I23: =OTCHET!$I28 -> 0 | J23: =OTCHET!$J28 -> 0
A24: 50 | B24: 400 | C24: Данъци върху дивидентите, ликвидационните дялове и доходите на местни и чуждестранни лица: | E24: =OTCHET!$E33 -> 0 | F24: =OTCHET!$F33 -> 0 | G24: =OTCHET!$G33 -> 0 | H24: =OTCHET!$H33 -> 0 | I24: =OTCHET!$I33 -> 0 | J24: =OTCHET!$J33 -> 0
A25: 65 | B25: 800 | C25: Осигурителни вноски | E25: =OTCHET!$E39 -> 0 | F25: =OTCHET!$F39 -> 0 | G25: =OTCHET!$G39 -> 0 | H25: =OTCHET!$H39 -> 0 | I25: =OTCHET!$I39 -> 0 | J25: =OTCHET!$J39 -> 0
A26: 95 | B26: 1000 | C26: Здравно-осигурителни вноски | E26: =OTCHET!$E47 -> 0 | F26: =OTCHET!$F47 -> 0 | G26: =OTCHET!$G47 -> 0 | H26: =OTCHET!$H47 -> 0 | I26: =OTCHET!$I47 -> 0 | J26: =OTCHET!$J47 -> 0
A27: 130 | B27: 1300 | C27: Имуществени данъци : | E27: =OTCHET!$E52 -> 0 | F27: =OTCHET!$F52 -> 0 | G27: =OTCHET!$G52 -> 0 | H27: =OTCHET!$H52 -> 0 | I27: =OTCHET!$I52 -> 0 | J27: =OTCHET!$J52 -> 0
A28: 160 | B28: 1400 | C28: Данък върху добавената стойност | E28: =OTCHET!$E58 -> 0 | F28: =OTCHET!$F58 -> 0 | G28: =OTCHET!$G58 -> 0 | H28: =OTCHET!$H58 -> 0 | I28: =OTCHET!$I58 -> 0 | J28: =OTCHET!$J58 -> 0
A29: 175 | B29: 1500 | C29: Акцизи | E29: =OTCHET!$E61 -> 0 | F29: =OTCHET!$F61 -> 0 | G29: =OTCHET!$G61 -> 0 | H29: =OTCHET!$H61 -> 0 | I29: =OTCHET!$I61 -> 0 | J29: =OTCHET!$J61 -> 0
B30: 1600 | C30: Данък върху застрахователните премии | E30: =OTCHET!$E64 -> 0 | F30: =OTCHET!$F64 -> 0 | G30: =OTCHET!$G64 -> 0 | H30: =OTCHET!$H64 -> 0 | I30: =OTCHET!$I64 -> 0 | J30: =OTCHET!$J64 -> 0
A31: 200 | B31: 1700 | C31: Други данъци по Закона за корпоративното подоходно облагане: | E31: =OTCHET!$E65 -> 0 | F31: =OTCHET!$F65 -> 0 | G31: =OTCHET!$G65 -> 0 | H31: =OTCHET!$H65 -> 0 | I31: =OTCHET!$I65 -> 0 | J31: =OTCHET!$J65 -> 0
A32: 231 | B32: 1800 | C32: Такси върху производството на захар и изоглюкоза | E32: =OTCHET!$E72 -> 0 | F32: =OTCHET!$F72 -> 0 | G32: =OTCHET!$G72 -> 0 | H32: =OTCHET!$H72 -> 0 | I32: =OTCHET!$I72 -> 0 | J32: =OTCHET!$J72 -> 0
A33: 235 | B33: 1900 | C33: Мита и митнически такси: | E33: =OTCHET!$E73 -> 0 | F33: =OTCHET!$F73 -> 0 | G33: =OTCHET!$G73 -> 0 | H33: =OTCHET!$H73 -> 0 | I33: =OTCHET!$I73 -> 0 | J33: =OTCHET!$J73 -> 0
A34: 255 | B34: 2000 | C34: Други данъци | E34: =OTCHET!$E74 -> 0 | F34: =OTCHET!$F74 -> 0 | G34: =OTCHET!$G74 -> 0 | H34: =OTCHET!$H74 -> 0 | I34: =OTCHET!$I74 -> 0 | J34: =OTCHET!$J74 -> 0
A35: 265 | B35: 2400 | C35: Приходи и доходи от собственост | E35: =OTCHET!$E75 -> 60000 | F35: =OTCHET!$F75 -> 64530 | G35: =OTCHET!$G75 -> 11868 | H35: =OTCHET!$H75 -> 0 | I35: =OTCHET!$I75 -> 52662 | J35: =OTCHET!$J75 -> 0 | K35: 1
A36: 350 | B36: 2500 | C36: Държавни такси | E36: =OTCHET!$E90 -> 7000 | F36: =OTCHET!$F90 -> 5668 | G36: =OTCHET!$G90 -> 165 | H36: =OTCHET!$H90 -> 0 | I36: =OTCHET!$I90 -> 5503 | J36: =OTCHET!$J90 -> 0 | K36: 1
A37: 360 | B37: 2600 | C37: Съдебни такси | E37: =OTCHET!$E93 -> 0 | F37: =OTCHET!$F93 -> 0 | G37: =OTCHET!$G93 -> 0 | H37: =OTCHET!$H93 -> 0 | I37: =OTCHET!$I93 -> 0 | J37: =OTCHET!$J93 -> 0
A38: 370 | B38: 2700 | C38: Общински такси | E38: =OTCHET!$E94 -> 0 | F38: =OTCHET!$F94 -> 0 | G38: =OTCHET!$G94 -> 0 | H38: =OTCHET!$H94 -> 0 | I38: =OTCHET!$I94 -> 0 | J38: =OTCHET!$J94 -> 0
A39: 445 | B39: 2800 | C39: Глоби, санкции и наказателни лихви | E39: =OTCHET!$E108 -> 0 | F39: =OTCHET!$F108 -> 431 | G39: =OTCHET!$G108 -> 394 | H39: =OTCHET!$H108 -> 0 | I39: =OTCHET!$I108 -> 37 | J39: =OTCHET!$J108 -> 0 | K39: 1
A40: 470 | B40: 3600 | C40: Други неданъчни приходи | E40: =OTCHET!$E112 -> 5000 | F40: =OTCHET!$F112 -> 7017 | G40: =OTCHET!$G112 -> 6677 | H40: =OTCHET!$H112 -> 0 | I40: =OTCHET!$I112 -> 340 | J40: =OTCHET!$J112 -> 0 | K40: 1
A41: 495 | B41: 3700 | C41: Внесени ДДС и други данъци върху продажбите | E41: =OTCHET!$E120 -> 0 | F41: =OTCHET!$F120 -> -14063 | G41: =OTCHET!$G120 -> -14063 | H41: =OTCHET!$H120 -> 0 | I41: =OTCHET!$I120 -> 0 | J41: =OTCHET!$J120 -> 0 | K41: 1
A42: 515 | B42: 4000 | C42: Постъпления от продажба на нефинансови активи (без 40-71) | E42: =OTCHET!$E124 -> 70000 | F42: =OTCHET!$F124 -> 38770 | G42: =OTCHET!$G124 -> 38770 | H42: =OTCHET!$H124 -> 0 | I42: =OTCHET!$I124 -> 0 | J42: =OTCHET!$J124 -> 0 | K42: 1
A43: 540 | B43: 4100 | C43: Приходи от концесии | E43: =OTCHET!$E136 -> 0 | F43: =OTCHET!$F136 -> 0 | G43: =OTCHET!$G136 -> 0 | H43: =OTCHET!$H136 -> 0 | I43: =OTCHET!$I136 -> 0 | J43: =OTCHET!$J136 -> 0
A44: 550 | B44: 4200 | C44: Приходи от лицензии за ползване на държавни/общински активи | E44: =OTCHET!$E137 -> 0 | F44: =OTCHET!$F137 -> 0 | G44: =OTCHET!$G137 -> 0 | H44: =OTCHET!$H137 -> 0 | I44: =OTCHET!$I137 -> 0 | J44: =OTCHET!$J137 -> 0
A45: 560 | B45: 45-00 | C45: Помощи и дарения от страната | E45: =OTCHET!$E138 -> 0 | F45: =OTCHET!$F138 -> 0 | G45: =OTCHET!$G138 -> 0 | H45: =OTCHET!$H138 -> 0 | I45: =OTCHET!$I138 -> 0 | J45: =OTCHET!$J138 -> 0
A46: 575 | B46: 4600 | C46: Помощи и дарения от чужбина | E46: =OTCHET!$E141 -> 0 | F46: =OTCHET!$F141 -> 0 | G46: =OTCHET!$G141 -> 0 | H46: =OTCHET!$H141 -> 0 | I46: =OTCHET!$I141 -> 0 | J46: =OTCHET!$J141 -> 0
A47: 575 | B47: 4700 | C47: Получени чрез небюджетни предприятия средства от КФП по международни и други програми | E47: =OTCHET!$E940 -> 0 | F47: =OTCHET!$F150 -> 0 | G47: =OTCHET!$G150 -> 0 | H47: =OTCHET!$H150 -> 0 | I47: =OTCHET!$I150 -> 0 | J47: =OTCHET!$J150 -> 0
A48: 575 | B48: 4800 | C48: Разпределени към администратори от чужбина средства по международни програми и договори (-) | E48: =OTCHET!$E159 -> 0 | F48: =OTCHET!$F159 -> 0 | G48: =OTCHET!$G159 -> 0 | H48: =OTCHET!$H159 -> 0 | I48: =OTCHET!$I159 -> 0 | J48: =OTCHET!$J159 -> 0
A49: 620 | D49: I. ОБЩО ПРИХОДИ | E49: =OTCHET!$E168 -> 142000 | F49: =OTCHET!$F168 -> 102353 | G49: =OTCHET!$G168 -> 43811 | H49: =OTCHET!$H168 -> 0 | I49: =OTCHET!$I168 -> 58542 | J49: =OTCHET!$J168 -> 0 | K49: 1
K50: 1
K51: 1
K52: 1
K53: 1
B54: =$B$7 -> ОТЧЕТНИ ДАННИ ПО ЕБК ЗА ИЗПЪЛНЕНИЕТО НА БЮДЖЕТА | K54: 1
E55: за периода от | F55: до | K55: 1
B56: =$B$9 -> ОБЛАСТНА АДМИНИСТРАЦИЯ ПАЗАРДЖИК | E56: =$E$9 -> 2017-01-01 | F56: =$F$9 -> 2017-12-31 | K56: 1
B57: =$B$10 -> (наименование на разпоредителя с бюджет) | F57: =$F$10 -> 0 | K57: 1
K58: 1
B59: =$B$12 -> Министерски съвет | E59: код : | F59: =$F$12 -> 0300 | K59: 1
B60: =$B$13 -> (наименование на първостепенния разпоредител с бюджет) | E60: (по ЕБК) | K60: 1
K61: 1
J62: (в лева) | K62: 1
C63: II. РАЗХОДИ | E63: Уточнен план | F63: Отчет | K63: 1 | L63: Прогнозен размер на ан-гажиментите за поемане през 2018 г. | M63: Прогнозен размер на ан-гажиментите за поемане през 2019 г. | N63: Прогнозен размер на ан-гажиментите за поемане през 2020 г. | O63: Прогнозен размер на ан-гажиментите за поемане през 2021 г.
B64: §§ | C64: (параграфи по ЕБК) | E64: 2017 | F64: Общо | G64: левови сметки | H64: валутни сметки | I64: Касови операции в лева и валута | J64: Приравнени некасови операции | K64: 1
C65: 02 ¦ | E65: (1) | F65: (2) | G65: (3) | H65: (4) | I65: (5) | J65: (6) | K65: 1
A66: 5 | B66: 100 | C66: Заплати и възнаграждения за персонала, нает по трудови и служебни правоотношения | E66: =OTCHET!$E186 -> 305873 | F66: =OTCHET!$F186 -> 305311 | G66: =OTCHET!$G186 -> 266478 | H66: =OTCHET!$H186 -> 0 | I66: =OTCHET!$I186 -> 0 | J66: =OTCHET!$J186 -> 38833 | K66: =(IF(E66<>0,$K$2,IF(F66<>0,$K$2,""))) -> 1
A67: 35 | B67: 200 | C67: Други възнаграждения и плащания за персонала | E67: =OTCHET!$E189 -> 140445 | F67: =OTCHET!$F189 -> 139458 | G67: =OTCHET!$G189 -> 123816 | H67: =OTCHET!$H189 -> 0 | I67: =OTCHET!$I189 -> 0 | J67: =OTCHET!$J189 -> 15642 | K67: 1
A68: 65 | B68: 500 | C68: Задължителни осигурителни вноски от работодатели | E68: =OTCHET!$E195 -> 107413 | F68: =OTCHET!$F195 -> 106179 | G68: =OTCHET!$G195 -> 0 | H68: =OTCHET!$H195 -> 0 | I68: =OTCHET!$I195 -> 0 | J68: =OTCHET!$J195 -> 106179 | K68: 1
A69: 115 | B69: 800 | C69: Вноски за доброволно осигуряване | E69: =OTCHET!$E203 -> 0 | F69: =OTCHET!$F203 -> 0 | G69: =OTCHET!$G203 -> 0 | H69: =OTCHET!$H203 -> 0 | I69: =OTCHET!$I203 -> 0 | J69: =OTCHET!$J203 -> 0
A70: 125 | B70: 1000 | C70: Издръжка | E70: =OTCHET!$E204 -> 578867 | F70: =OTCHET!$F204 -> 558388 | G70: =OTCHET!$G204 -> 553991 | H70: =OTCHET!$H204 -> 0 | I70: =OTCHET!$I204 -> 4397 | J70: =OTCHET!$J204 -> 0 | K70: 1
A71: 220 | B71: 1900 | C71: Платени данъци, такси и административни санкции | E71: =OTCHET!$E222 -> 21000 | F71: =OTCHET!$F222 -> 20320 | G71: =OTCHET!$G222 -> 20337 | H71: =OTCHET!$H222 -> 0 | I71: =OTCHET!$I222 -> -17 | J71: =OTCHET!$J222 -> 0 | K71: 1
A72: 220 | B72: 2100 | C72: Разходи за лихви по емисии на държавни (общински) ценни книжа | E72: =OTCHET!$E226 -> 0 | F72: =OTCHET!$F226 -> 0 | G72: =OTCHET!$G226 -> 0 | H72: =OTCHET!$H226 -> 0 | I72: =OTCHET!$I226 -> 0 | J72: =OTCHET!$J226 -> 0
A73: 250 | B73: 2200 | C73: Разходи за лихви по заеми от страната | E73: =OTCHET!$E232 -> 0 | F73: =OTCHET!$F232 -> 0 | G73: =OTCHET!$G232 -> 0 | H73: =OTCHET!$H232 -> 0 | I73: =OTCHET!$I232 -> 0 | J73: =OTCHET!$J232 -> 0
A74: 270 | B74: 2500 | C74: Разходи за лихви по заеми от други държави | E74: =OTCHET!$E235 -> 0 | F74: =OTCHET!$F235 -> 0 | G74: =OTCHET!$G235 -> 0 | H74: =OTCHET!$H235 -> 0 | I74: =OTCHET!$I235 -> 0 | J74: =OTCHET!$J235 -> 0
A75: 290 | B75: 2600 | C75: Разходи за лихви по заеми от международни организации и институции | E75: =OTCHET!$E236 -> 0 | F75: =OTCHET!$F236 -> 0 | G75: =OTCHET!$G236 -> 0 | H75: =OTCHET!$H236 -> 0 | I75: =OTCHET!$I236 -> 0 | J75: =OTCHET!$J236 -> 0
A76: 320 | B76: 2700 | C76: Разходи за лихви по заеми от банки и други финансови институции от чужбина | E76: =OTCHET!$E237 -> 0 | F76: =OTCHET!$F237 -> 0 | G76: =OTCHET!$G237 -> 0 | H76: =OTCHET!$H237 -> 0 | I76: =OTCHET!$I237 -> 0 | J76: =OTCHET!$J237 -> 0
A77: 330 | B77: 2800 | C77: Разходи за лихви и отстъпки по облигации, емитирани и търгувани на международните капиталови пазари | E77: =OTCHET!$E238 -> 0 | F77: =OTCHET!$F238 -> 0 | G77: =OTCHET!$G238 -> 0 | H77: =OTCHET!$H238 -> 0 | I77: =OTCHET!$I238 -> 0 | J77: =OTCHET!$J238 -> 0
A78: 350 | B78: 2900 | C78: Други разходи за лихви | E78: =OTCHET!$E239 -> 0 | F78: =OTCHET!$F239 -> 0 | G78: =OTCHET!$G239 -> 0 | H78: =OTCHET!$H239 -> 0 | I78: =OTCHET!$I239 -> 0 | J78: =OTCHET!$J239 -> 0
A79: 397 | B79: 3300 | C79: Вноска в бюджета на Европейския съюз | E79: =OTCHET!$E248 -> 0 | F79: =OTCHET!$F248 -> 0 | G79: =OTCHET!$G248 -> 0 | H79: =OTCHET!$H248 -> 0 | I79: =OTCHET!$I248 -> 0 | J79: =OTCHET!$J248 -> 0
A80: 404 | B80: 3900 | C80: Здравно-осигурителни плащания | E80: =OTCHET!$E255 -> 0 | F80: =OTCHET!$F255 -> 0 | G80: =OTCHET!$G255 -> 0 | H80: =OTCHET!$H255 -> 0 | I80: =OTCHET!$I255 -> 0 | J80: =OTCHET!$J255 -> 0
A81: 440 | B81: 4000 | C81: Стипендии | E81: =OTCHET!$E256 -> 0 | F81: =OTCHET!$F256 -> 0 | G81: =OTCHET!$G256 -> 0 | H81: =OTCHET!$H256 -> 0 | I81: =OTCHET!$I256 -> 0 | J81: =OTCHET!$J256 -> 0
A82: 450 | B82: 4100 | C82: Пенсии | E82: =OTCHET!$E257 -> 0 | F82: =OTCHET!$F257 -> 0 | G82: =OTCHET!$G257 -> 0 | H82: =OTCHET!$H257 -> 0 | I82: =OTCHET!$I257 -> 0 | J82: =OTCHET!$J257 -> 0
A83: 495 | B83: 4200 | C83: Текущи трансфери, обезщетения и помощи за домакинствата | E83: =OTCHET!$E258 -> 0 | F83: =OTCHET!$F258 -> 0 | G83: =OTCHET!$G258 -> 0 | H83: =OTCHET!$H258 -> 0 | I83: =OTCHET!$I258 -> 0 | J83: =OTCHET!$J258 -> 0
A84: 635 | B84: 4300 | C84: Субсидии и други текущи трансфери за нефинансови предприятия | E84: =OTCHET!$E265 -> 0 | F84: =OTCHET!$F265 -> 0 | G84: =OTCHET!$G265 -> 0 | H84: =OTCHET!$H265 -> 0 | I84: =OTCHET!$I265 -> 0 | J84: =OTCHET!$J265 -> 0
A85: 655 | B85: 4400 | C85: Субсидии и други текущи трансфери за финансови институции | E85: =OTCHET!$E269 -> 0 | F85: =OTCHET!$F269 -> 0 | G85: =OTCHET!$G269 -> 0 | H85: =OTCHET!$H269 -> 0 | I85: =OTCHET!$I269 -> 0 | J85: =OTCHET!$J269 -> 0
A86: 665 | B86: 4500 | C86: Субсидии и други текущи трансфери на организации с нестопанска цел | E86: =OTCHET!$E270 -> 0 | F86: =OTCHET!$F270 -> 0 | G86: =OTCHET!$G270 -> 0 | H86: =OTCHET!$H270 -> 0 | I86: =OTCHET!$I270 -> 0 | J86: =OTCHET!$J270 -> 0
A87: 675 | B87: 4600 | C87: Разходи за членски внос и участие в нетърговски организации и дейности | E87: =OTCHET!$E271 -> 0 | F87: =OTCHET!$F271 -> 0 | G87: =OTCHET!$G271 -> 0 | H87: =OTCHET!$H271 -> 0 | I87: =OTCHET!$I271 -> 0 | J87: =OTCHET!$J271 -> 0
A88: 685 | B88: 4900 | C88: Предоставени текущи и капиталови трансфери за чужбина | E88: =OTCHET!$E272 -> 0 | F88: =OTCHET!$F272 -> 0 | G88: =OTCHET!$G272 -> 0 | H88: =OTCHET!$H272 -> 0 | I88: =OTCHET!$I272 -> 0 | J88: =OTCHET!$J272 -> 0
A89: 700 | B89: 5100 | C89: Основен ремонт на дълготрайни материални активи | E89: =OTCHET!$E275 -> 0 | F89: =OTCHET!$F275 -> 0 | G89: =OTCHET!$G275 -> 0 | H89: =OTCHET!$H275 -> 0 | I89: =OTCHET!$I275 -> 0 | J89: =OTCHET!$J275 -> 0
A90: 710 | B90: 5200 | C90: Придобиване на дълготрайни материални активи | E90: =OTCHET!$E276 -> 0 | F90: =OTCHET!$F276 -> 0 | G90: =OTCHET!$G276 -> 0 | H90: =OTCHET!$H276 -> 0 | I90: =OTCHET!$I276 -> 0 | J90: =OTCHET!$J276 -> 0
A91: 750 | B91: 5300 | C91: Придобиване на нематериални дълготрайни активи | E91: =OTCHET!$E284 -> 3500 | F91: =OTCHET!$F284 -> 1800 | G91: =OTCHET!$G284 -> 1800 | H91: =OTCHET!$H284 -> 0 | I91: =OTCHET!$I284 -> 0 | J91: =OTCHET!$J284 -> 0 | K91: 1
A92: 765 | B92: 5400 | C92: Придобиване на земя | E92: =OTCHET!$E287 -> 0 | F92: =OTCHET!$F287 -> 0 | G92: =OTCHET!$G287 -> 0 | H92: =OTCHET!$H287 -> 0 | I92: =OTCHET!$I287 -> 0 | J92: =OTCHET!$J287 -> 0
A93: 775 | B93: 5500 | C93: Капиталови трансфери | E93: =OTCHET!$E288 -> 0 | F93: =OTCHET!$F288 -> 0 | G93: =OTCHET!$G288 -> 0 | H93: =OTCHET!$H288 -> 0 | I93: =OTCHET!$I288 -> 0 | J93: =OTCHET!$J288 -> 0
A94: 805 | B94: 5700 | C94: Прираст на държавния резерв и изкупуване на земеделска продукция (включва и 40-71) | E94: =OTCHET!$E293 -> 0 | F94: =OTCHET!$F293 -> 0 | G94: =OTCHET!$G293 -> 0 | H94: =OTCHET!$H293 -> 0 | I94: =OTCHET!$I293 -> 0 | J94: =OTCHET!$J293 -> 0
A95: 820 | B95: 00-98 | C95: Резерв за непредвидени и неотложни разходи | E95: =OTCHET!$E297 -> 0 | F95: =OTCHET!$F297 -> 0 | G95: =OTCHET!$G297 -> 0 | H95: =OTCHET!$H297 -> 0 | I95: =OTCHET!$I297 -> 0 | J95: =OTCHET!$J297 -> 0
A96: 825 | C96: II. ОБЩО РАЗХОДИ РЕКАПИТУЛАЦИЯ | E96: =OTCHET!$E301 -> 1157098 | F96: =OTCHET!$F301 -> 1131456 | G96: =OTCHET!$G301 -> 966422 | H96: =OTCHET!$H301 -> 0 | I96: =OTCHET!$I301 -> 4380 | J96: =OTCHET!$J301 -> 160654 | K96: 1 | L96: =SUM(L66:L95) -> 0 | M96: =SUM(M66:M95) -> 0 | N96: =SUM(N66:N95) -> 0 | O96: =SUM(O66:O95) -> 0
K97: 1
K98: 1
B99: =$B$7 -> ОТЧЕТНИ ДАННИ ПО ЕБК ЗА ИЗПЪЛНЕНИЕТО НА БЮДЖЕТА | K99: 1
E100: за периода от | F100: до | K100: 1
B101: =$B$9 -> ОБЛАСТНА АДМИНИСТРАЦИЯ ПАЗАРДЖИК | E101: =$E$9 -> 2017-01-01 | F101: =$F$9 -> 2017-12-31 | K101: 1
B102: =$B$10 -> (наименование на разпоредителя с бюджет) | F102: =$F$10 -> 0 | K102: 1
K103: 1
B104: =$B$12 -> Министерски съвет | E104: код : | F104: =$F$12 -> 0300 | K104: 1
B105: =$B$13 -> (наименование на първостепенния разпоредител с бюджет) | E105: (по ЕБК) | K105: 1
K106: 1
J107: (в лева) | K107: 1
C108: IV ТРАНСФЕРИ - РЕКАПИТУЛАЦИЯ | E108: Уточнен план | F108: Отчет | K108: 1
B109: §§ | C109: (параграфи по ЕБК) | E109: 2017 | F109: Общо | G109: левови сметки | H109: валутни сметки | I109: Касови операции в лева и валута | J109: Приравнени некасови операции | K109: 1
A110: 1 | C110: 03 ¦ | E110: (1) | F110: (2) | G110: (3) | H110: (4) | I110: (5) | J110: (6) | K110: 1
A111: 2 | C111: А) ТРАНСФЕРИ | K111: 1
A112: 5 | B112: 3000 | C112: Трансфери от ЦБ за други бюджети (нето) | E112: =OTCHET!$E357 -> 0 | F112: =OTCHET!$F357 -> 0 | G112: =OTCHET!$G357 -> 0 | H112: =OTCHET!$H357 -> 0 | I112: =OTCHET!$I357 -> 0 | J112: =OTCHET!$J357 -> 0 | K112: =(IF(E112<>0,$K$2,IF(F112<>0,$K$2,""))) -> 
A113: 70 | B113: 3100 | C113: Трансфери между бюджета на бюджетната организация и ЦБ (нето) | E113: =OTCHET!$E371 -> 0 | F113: =OTCHET!$F371 -> 0 | G113: =OTCHET!$G371 -> 0 | H113: =OTCHET!$H371 -> 0 | I113: =OTCHET!$I371 -> 0 | J113: =OTCHET!$J371 -> 0
A114: 115 | B114: 3200 | C114: Предоставени субсидии от държавния бюджет за БАН и държавните висши училища (нето) | E114: =OTCHET!$E379 -> 0 | F114: =OTCHET!$F379 -> 0 | G114: =OTCHET!$G379 -> 0 | H114: =OTCHET!$H379 -> 0 | I114: =OTCHET!$I379 -> 0 | J114: =OTCHET!$J379 -> 0
A115: 145 | B115: 6000 | C115: Трансфери между ЦБ и сметки за средствата от ЕС (нето) | E115: =OTCHET!$E384 -> 0 | F115: =OTCHET!$F384 -> 0 | G115: =OTCHET!$G384 -> 0 | H115: =OTCHET!$H384 -> 0 | I115: =OTCHET!$I384 -> 0 | J115: =OTCHET!$J384 -> 0
A116: 160 | B116: 6100 | C116: Трансфери между бюджети (нето) | E116: =OTCHET!$E387 -> -526756 | F116: =OTCHET!$F387 -> -511208 | G116: =OTCHET!$G387 -> -511208 | H116: =OTCHET!$H387 -> 0 | I116: =OTCHET!$I387 -> 0 | J116: =OTCHET!$J387 -> 0 | K116: 1
A117: 185 | B117: 6200 | C117: Трансфери между бюджети и сметки за средствата от ЕС (нето) | E117: =OTCHET!$E392 -> 0 | F117: =OTCHET!$F392 -> 0 | G117: =OTCHET!$G392 -> 0 | H117: =OTCHET!$H392 -> 0 | I117: =OTCHET!$I392 -> 0 | J117: =OTCHET!$J392 -> 0
A118: 200 | B118: 6300 | C118: Трансфери между сметки за средствата от ЕС (нето) | E118: =OTCHET!$E395 -> 0 | F118: =OTCHET!$F395 -> 0 | G118: =OTCHET!$G395 -> 0 | H118: =OTCHET!$H395 -> 0 | I118: =OTCHET!$I395 -> 0 | J118: =OTCHET!$J395 -> 0
A119: 210 | B119: 6400 | C119: Трансфери от/за държавни предприятия и други лица, включени в консолидираната фискална програма | E119: =OTCHET!$E398 -> 0 | F119: =OTCHET!$F398 -> 0 | G119: =OTCHET!$G398 -> 0 | H119: =OTCHET!$H398 -> 0 | I119: =OTCHET!$I398 -> 0 | J119: =OTCHET!$J398 -> 0
A120: 213 | B120: 6500 | C120: Трансфери на отчислени пoстъпления | E120: =OTCHET!$E401 -> 0 | F120: =OTCHET!$F401 -> 0 | G120: =OTCHET!$G401 -> 0 | H120: =OTCHET!$H401 -> 0 | I120: =OTCHET!$I401 -> 0 | J120: =OTCHET!$J401 -> 0
A121: 215 | B121: 6600 | C121: Разчети за извършени плащания в СЕБРА (+/-) | E121: =OTCHET!$E402 -> 1541854 | F121: =OTCHET!$F402 -> 1363496 | G121: =OTCHET!$G402 -> 1363496 | H121: =OTCHET!$H402 -> 0 | I121: =OTCHET!$I402 -> 0 | J121: =OTCHET!$J402 -> 0 | K121: 1
A122: 215 | B122: 6700 | C122: Трансфери от/за сметки за чужди средства | E122: =OTCHET!$E405 -> 0 | F122: =OTCHET!$F405 -> 0 | G122: =OTCHET!$G405 -> 0 | H122: =OTCHET!$H405 -> 0 | I122: =OTCHET!$I405 -> 0 | J122: =OTCHET!$J405 -> 0
A123: 230 | B123: 6900 | C123: Трансфери за поети осигурителни вноски и данъци | E123: =OTCHET!$E408 -> 0 | F123: =OTCHET!$F408 -> 176830 | G123: =OTCHET!$G408 -> 0 | H123: =OTCHET!$H408 -> 0 | I123: =OTCHET!$I408 -> 0 | J123: =OTCHET!$J408 -> 176830 | K123: 1
A124: 260 | C124: III. ОБЩО | E124: =OTCHET!$E415 -> 1015098 | F124: =OTCHET!$F415 -> 1029118 | G124: =OTCHET!$G415 -> 852288 | H124: =OTCHET!$H415 -> 0 | I124: =OTCHET!$I415 -> 0 | J124: =OTCHET!$J415 -> 176830 | K124: 1
A125: 261 | C125: 04 ¦ | K125: 1
A126: 262 | B126: §§ | C126: В) ВРЕМЕННИ БЕЗЛИХВЕНИ ЗАЕМИ МЕЖДУ ЦЕНТРАЛНИЯ БЮДЖЕТ, БЮДЖЕТНИ СМЕТКИ И ИЗВЪНБЮДЖЕТНИ ФОНДОВЕ И СМЕТКИ | K126: 1
A127: 265 | B127: 7400 | C127: Получени/предоставени временни безлихвени заеми от/за ЦБ (нето) | E127: =OTCHET!$E418 -> 0 | F127: =OTCHET!$F418 -> 0 | G127: =OTCHET!$G418 -> 0 | H127: =OTCHET!$H418 -> 0 | I127: =OTCHET!$I418 -> 0 | J127: =OTCHET!$J418 -> 0 | K127: =(IF(E127<>0,$K$2,IF(F127<>0,$K$2,""))) -> 
A128: 275 | B128: 7500 | C128: Временни безлихвени заеми между бюджетни сметки (нето) | E128: =OTCHET!$E419 -> 0 | F128: =OTCHET!$F419 -> 0 | G128: =OTCHET!$G419 -> 0 | H128: =OTCHET!$H419 -> 0 | I128: =OTCHET!$I419 -> 0 | J128: =OTCHET!$J419 -> 0 | K128: =(IF(E128<>0,$K$2,IF(F128<>0,$K$2,""))) -> 
A129: 285 | B129: 7600 | C129: Временни безлихвени заеми между бюджети и сметки за средствата от ЕС (нето) | E129: =OTCHET!$E420 -> 0 | F129: =OTCHET!$F420 -> 0 | G129: =OTCHET!$G420 -> 0 | H129: =OTCHET!$H420 -> 0 | I129: =OTCHET!$I420 -> 0 | J129: =OTCHET!$J420 -> 0 | K129: =(IF(E129<>0,$K$2,IF(F129<>0,$K$2,""))) -> 
A130: 295 | B130: 7700 | C130: Временни безлихвени заеми между сметки за средствата от ЕС (нето) | E130: =OTCHET!$E421 -> 0 | F130: =OTCHET!$F421 -> 0 | G130: =OTCHET!$G421 -> 0 | H130: =OTCHET!$H421 -> 0 | I130: =OTCHET!$I421 -> 0 | J130: =OTCHET!$J421 -> 0 | K130: =(IF(E130<>0,$K$2,IF(F130<>0,$K$2,""))) -> 
A131: 305 | B131: 7800 | C131: Временни безлихвени заеми от/за държавни предприятия и други сметки, включени в консолидираната фискална програма (нето) | E131: =OTCHET!$E422 -> 0 | F131: =OTCHET!$F422 -> 0 | G131: =OTCHET!$G422 -> 0 | H131: =OTCHET!$H422 -> 0 | I131: =OTCHET!$I422 -> 0 | J131: =OTCHET!$J422 -> 0 | K131: =(IF(E131<>0,$K$2,IF(F131<>0,$K$2,""))) -> 
A132: 315 | C132: IV. ОБЩО | E132: =OTCHET!$E425 -> 0 | F132: =OTCHET!$F425 -> 0 | G132: =OTCHET!$G425 -> 0 | H132: =OTCHET!$H425 -> 0 | I132: =OTCHET!$I425 -> 0 | J132: =OTCHET!$J425 -> 0 | K132: 1
K133: 1
K134: 1
K135: 1
B136: =$B$7 -> ОТЧЕТНИ ДАННИ ПО ЕБК ЗА ИЗПЪЛНЕНИЕТО НА БЮДЖЕТА | K136: 1
E137: за периода от | F137: до | K137: 1
B138: =$B$9 -> ОБЛАСТНА АДМИНИСТРАЦИЯ ПАЗАРДЖИК | E138: =$E$9 -> 2017-01-01 | F138: =$F$9 -> 2017-12-31 | K138: 1
B139: =$B$10 -> (наименование на разпоредителя с бюджет) | F139: =$F$10 -> 0 | K139: 1
K140: 1
B141: =$B$12 -> Министерски съвет | E141: код : | F141: =$F$12 -> 0300 | K141: 1
B142: =$B$13 -> (наименование на първостепенния разпоредител с бюджет) | E142: (по ЕБК) | K142: 1
K143: 1
J144: (в лева) | K144: 1
D145: V. БЮДЖЕТНО САЛДО (ДЕФИЦИТ / ИЗЛИШЪК) = | E145: Уточнен план | F145: Отчет | K145: 1
D146: = I.(раздел)-II.(раздел=рекапитулацията от всички дейности)+III.(раздел=рекапитулация от всички трансфери) | E146: 2017 | F146: Общо | G146: левови сметки | H146: валутни сметки | I146: Касови операции в лева и валута | J146: Приравнени некасови операции | K146: 1
D147: 0 5 ¦ | E147: (1) | F147: (2) | G147: (3) | H147: (4) | I147: (5) | J147: (6) | K147: 1
E148: =+E49-E96+E124+E132 -> 0 | F148: 15 | G148: -70323 | H148: 0 | I148: 54162 | J148: 16176 | K148: 1
K149: 1
K150: 1
K151: 1
B152: =$B$7 -> ОТЧЕТНИ ДАННИ ПО ЕБК ЗА ИЗПЪЛНЕНИЕТО НА БЮДЖЕТА | K152: 1
E153: за периода от | F153: до | K153: 1
B154: =$B$9 -> ОБЛАСТНА АДМИНИСТРАЦИЯ ПАЗАРДЖИК | E154: =$E$9 -> 2017-01-01 | F154: =$F$9 -> 2017-12-31 | K154: 1
B155: =$B$10 -> (наименование на разпоредителя с бюджет) | F155: =$F$10 -> 0 | K155: 1
K156: 1
B157: =$B$12 -> Министерски съвет | E157: код : | F157: =$F$12 -> 0300 | K157: 1
B158: =$B$13 -> (наименование на първостепенния разпоредител с бюджет) | E158: (по ЕБК) | K158: 1
K159: 1
J160: (в лева) | K160: 1
C161: VI. ОПЕРАЦИИ С ФИНАНСОВИ АКТИВИ И ПАСИВИ - ПОЗИЦИИ | E161: Уточнен план | F161: Отчет | K161: 1
B162: §§ | C162: (параграфи по ЕБК) | E162: 2017 | F162: Общо | G162: левови сметки | H162: валутни сметки | I162: Касови операции в лева и валута | J162: Приравнени некасови операции | K162: 1
A163: 1 | C163: 0 6 ¦ | E163: (1) | F163: (2) | G163: (3) | H163: (4) | I163: (5) | J163: (6) | K163: 1
A164: 5 | B164: 7000 | C164: Придобиване на дялове, акции и съучастия (нето) | E164: =OTCHET!$E457 -> 0 | F164: =OTCHET!$F457 -> 0 | G164: =OTCHET!$G457 -> 0 | H164: =OTCHET!$H457 -> 0 | I164: =OTCHET!$I457 -> 0 | J164: =OTCHET!$J457 -> 0 | K164: =(IF(E164<>0,$K$2,IF(F164<>0,$K$2,""))) -> 
A165: 30 | B165: 7100 | C165: Предоставени кредити (нето) | E165: =OTCHET!$E461 -> 0 | F165: =OTCHET!$F461 -> 0 | G165: =OTCHET!$G461 -> 0 | H165: =OTCHET!$H461 -> 0 | I165: =OTCHET!$I461 -> 0 | J165: =OTCHET!$J461 -> 0
A166: 45 | B166: 7200 | C166: Предоставена възмездна финансова помощ (нето) | E166: =OTCHET!$E464 -> 0 | F166: =OTCHET!$F464 -> 0 | G166: =OTCHET!$G464 -> 0 | H166: =OTCHET!$H464 -> 0 | I166: =OTCHET!$I464 -> 0 | J166: =OTCHET!$J464 -> 0
A167: 60 | B167: 7300 | C167: Плащания по активирани гаранции, поръчителства и преоформен държавен дълг (нето) | E167: =OTCHET!$E467 -> 0 | F167: =OTCHET!$F467 -> 0 | G167: =OTCHET!$G467 -> 0 | H167: =OTCHET!$H467 -> 0 | I167: =OTCHET!$I467 -> 0 | J167: =OTCHET!$J467 -> 0
A168: 110 | B168: 7900 | C168: Предоставени заеми към крайни бенефициенти по държавни инвестиционни заеми (нето) | E168: =OTCHET!$E474 -> 0 | F168: =OTCHET!$F474 -> 0 | G168: =OTCHET!$G474 -> 0 | H168: =OTCHET!$H474 -> 0 | I168: =OTCHET!$I474 -> 0 | J168: =OTCHET!$J474 -> 0
A169: 125 | B169: 8000 | C169: Заеми от чужбина - нето (+/-) | E169: =OTCHET!$E477 -> 0 | F169: =OTCHET!$F477 -> 0 | G169: =OTCHET!$G477 -> 0 | H169: =OTCHET!$H477 -> 0 | I169: =OTCHET!$I477 -> 0 | J169: =OTCHET!$J477 -> 0
A170: 220 | B170: 8100 | C170: Държавни (общински) ценни книжа емитирани на международните капиталови пазари - нето (+/-) | E170: =OTCHET!$E493 -> 0 | F170: =OTCHET!$F493 -> 0 | G170: =OTCHET!$G493 -> 0 | H170: =OTCHET!$H493 -> 0 | I170: =OTCHET!$I493 -> 0 | J170: =OTCHET!$J493 -> 0
A171: 245 | B171: 8200 | C171: Получени погашения по предоставени кредити на други държави (+) | E171: =OTCHET!$E498 -> 0 | F171: =OTCHET!$F498 -> 0 | G171: =OTCHET!$G498 -> 0 | H171: =OTCHET!$H498 -> 0 | I171: =OTCHET!$I498 -> 0 | J171: =OTCHET!$J498 -> 0
A172: 255 | B172: 8300 | C172: Заеми от банки и други лица в страната - нето (+/-) | E172: =OTCHET!$E499 -> 0 | F172: =OTCHET!$F499 -> 0 | G172: =OTCHET!$G499 -> 0 | H172: =OTCHET!$H499 -> 0 | I172: =OTCHET!$I499 -> 0 | J172: =OTCHET!$J499 -> 0
A173: 295 | B173: 8500 | C173: Емисии на държавни (общински) ценни книжа (+) | E173: =OTCHET!$E508 -> 0 | F173: =OTCHET!$F508 -> 0 | G173: =OTCHET!$G508 -> 0 | H173: =OTCHET!$H508 -> 0 | I173: =OTCHET!$I508 -> 0 | J173: =OTCHET!$J508 -> 0
A174: 315 | B174: 8600 | C174: Погашения на държавни (общински) ценни книжа (-) | E174: =OTCHET!$E512 -> 0 | F174: =OTCHET!$F512 -> 0 | G174: =OTCHET!$G512 -> 0 | H174: =OTCHET!$H512 -> 0 | I174: =OTCHET!$I512 -> 0 | J174: =OTCHET!$J512 -> 0
A175: 355 | B175: 8700 | C175: Разчети между първостепенни разпоредители за централизация на средства и плащания в Себра | E175: =OTCHET!$E517 -> 0 | F175: =OTCHET!$F517 -> 0 | G175: =OTCHET!$G517 -> 0 | H175: =OTCHET!$H517 -> 0 | I175: =OTCHET!$I517 -> 0 | J175: =OTCHET!$J517 -> 0
A176: 355 | B176: 8800 | C176: Събрани средства и извършени плащания за сметка на други бюджети, сметки и фондове - нето (+/-) | E176: =OTCHET!$E520 -> 0 | F176: =OTCHET!$F520 -> -78267 | G176: =OTCHET!$G520 -> -4979 | H176: =OTCHET!$H520 -> -56597 | I176: =OTCHET!$I520 -> -515 | J176: =OTCHET!$J520 -> -16176 | K176: 1
A177: 375 | B177: 8900 | C177: Суми по разчети за поети осигурителни вноски и данъци | E177: =OTCHET!$E527 -> 0 | F177: =OTCHET!$F527 -> 0 | G177: =OTCHET!$G527 -> 0 | H177: =OTCHET!$H527 -> 0 | I177: =OTCHET!$I527 -> 0 | J177: =OTCHET!$J527 -> 0
A178: 395 | B178: 9000 | C178: Приватизация (+) | E178: =OTCHET!$E531 -> 0 | F178: =OTCHET!$F531 -> 0 | G178: =OTCHET!$G531 -> 0 | H178: =OTCHET!$H531 -> 0 | I178: =OTCHET!$I531 -> 0 | J178: =OTCHET!$J531 -> 0
A179: 405 | B179: 9100 | C179: Покупко-продажба на държавни (общински) ценни книжа от бюджетни организации - нето (+/-) | E179: =OTCHET!$E532 -> 0 | F179: =OTCHET!$F532 -> 0 | G179: =OTCHET!$G532 -> 0 | H179: =OTCHET!$H532 -> 0 | I179: =OTCHET!$I532 -> 0 | J179: =OTCHET!$J532 -> 0
A180: 430 | B180: 9200 | C180: Операции с други ценни книжа и финансови активи за управление на ликвидността - нето (+/-) | E180: =OTCHET!$E537 -> 0 | F180: =OTCHET!$F537 -> 0 | G180: =OTCHET!$G537 -> 0 | H180: =OTCHET!$H537 -> 0 | I180: =OTCHET!$I537 -> 0 | J180: =OTCHET!$J537 -> 0
A181: 445 | B181: 9300 | C181: Друго финансиране - нето(+/-) | E181: =OTCHET!$E540 -> 0 | F181: =OTCHET!$F540 -> -15 | G181: =OTCHET!$G540 -> -15 | H181: =OTCHET!$H540 -> 0 | I181: =OTCHET!$I540 -> 0 | J181: =OTCHET!$J540 -> 0 | K181: 1
A182: 470 | B182: 9500 | C182: Депозити и средства по сметки - нето (+/-) (този параграф се използва и за наличностите на ЦБ в БНБ) | E182: =OTCHET!$E562 -> 0 | F182: =OTCHET!$F562 -> 78267 | G182: =OTCHET!$G562 -> 0 | H182: =OTCHET!$H562 -> 78267 | I182: =OTCHET!$I562 -> 0 | J182: =OTCHET!$J562 -> 0 | K182: 1
A183: 565 | B183: 9600 | C183: Депозити и сметки консолидирани в системата на "Единната сметка"-нето (+/-) | E183: =OTCHET!$E582 -> 0 | F183: =OTCHET!$F582 -> 0 | G183: =OTCHET!$G582 -> 0 | H183: =OTCHET!$H582 -> 0 | I183: =OTCHET!$I582 -> 0 | J183: =OTCHET!$J582 -> 0
A184: 575 | B184: 9800 | C184: Касови операции, депозити, покупко-продажба на валута и сетълмент операции | E184: =OTCHET!$E587 -> 0 | F184: =OTCHET!$F587 -> 0 | G184: =OTCHET!$G587 -> 75317 | H184: =OTCHET!$H587 -> -21670 | I184: =OTCHET!$I587 -> -53647 | J184: =OTCHET!$J587 -> 0
A185: 610 | C185: VI. ОБЩО ОПЕРАЦИИ С ФИНАНСОВИ АКТИВИ И ПАСИВИ | E185: =OTCHET!$E593 -> 0 | F185: =OTCHET!$F593 -> -15 | G185: =OTCHET!$G593 -> 70323 | H185: =OTCHET!$H593 -> 0 | I185: =OTCHET!$I593 -> -54162 | J185: =OTCHET!$J593 -> -16176 | K185: 1
K186: 1
K187: 1
K188: 1
B189: =$B$7 -> ОТЧЕТНИ ДАННИ ПО ЕБК ЗА ИЗПЪЛНЕНИЕТО НА БЮДЖЕТА | K189: 1
E190: за периода от | F190: до | K190: 1
B191: =$B$9 -> ОБЛАСТНА АДМИНИСТРАЦИЯ ПАЗАРДЖИК | E191: =$E$9 -> 2017-01-01 | F191: =$F$9 -> 2017-12-31 | K191: 1
B192: =$B$10 -> (наименование на разпоредителя с бюджет) | F192: =$F$10 -> 0 | K192: 1
K193: 1
B194: =$B$12 -> Министерски съвет | E194: код : | F194: =$F$12 -> 0300 | K194: 1
B195: =$B$13 -> (наименование на първостепенния разпоредител с бюджет) | E195: (по ЕБК) | K195: 1
K196: 1
J197: (в лева) | K197: 1
B198: §§ | C198: РАЗПРЕДЕЛЕНИЕ НА РАЗХОДИТЕ ПО ФУНКЦИИ | E198: Уточнен план | F198: Отчет | K198: 1
E199: 2017 | F199: Общо | G199: левови сметки | H199: валутни сметки | I199: Касови операции в лева и валута | J199: Приравнени некасови операции | K199: 1
B200: I. | C200: ОБЩИ ДЪРЖАВНИ СЛУЖБИ | E200: =SUMIF(OTCHET!L:L,1,OTCHET!E:E) -> 726535 | F200: =SUMIF(OTCHET!L:L,1,OTCHET!F:F) -> 702858 | G200: =SUMIF(OTCHET!L:L,1,OTCHET!G:G) -> 560306 | H200: =SUMIF(OTCHET!L:L,1,OTCHET!H:H) -> 0 | I200: =SUMIF(OTCHET!L:L,1,OTCHET!I:I) -> 3390 | J200: =SUMIF(OTCHET!L:L,1,OTCHET!J:J) -> 139162 | K200: 1
... 10 more rows

Sheet OTCHET
A1: a | C1: c | D1: d | E1: e | F1: f | G1: f | H1: f | I1: f | J1: f | K1: endprint
A2: 2 | K2: 1
B3: година | C3: =YEAR(F9) -> 2017 | K3: 1
K4: 1
K5: 1
K6: 1
B7: =VLOOKUP(E15,SMETKA,2,FALSE) -> ОТЧЕТНИ ДАННИ ПО ЕБК ЗА ИЗПЪЛНЕНИЕТО НА БЮДЖЕТА | K7: 1
E8: за периода от | F8: до | H8: ЕИК/БУЛСТАТ | K8: 1
B9: ОБЛАСТНА АДМИНИСТРАЦИЯ ПАЗАРДЖИК | E9: 2017-01-01 | F9: 2017-12-31 | H9: 112121473 | I9: 30010130 | K9: 1
B10: (наименование на разпоредителя с бюджет) | I10: код от регистъра на бюджетните организации в СЕБРА | K10: 1
K11: 1
B12: =VLOOKUP(F12,PRBK,2,FALSE) -> Министерски съвет | E12: код по ЕБК: | F12: 0300 | K12: 1
B13: (наименование на първостепенния разпоредител с бюджет) | K13: 1
K14: 1
D15: ФИНАНСОВО-ПРАВНА ФОРМА | E15: 0 | F15: =+IF(+E15=0,"БЮДЖЕТ",+IF(+E15=98,"СЕС - КСФ",+IF(+E15=42,"СЕС - РА",+IF(+E15=96,"СЕС - ДЕС",+IF(+E15=97,"СЕС - ДМП",+IF(+E15=33,"Чужди средства")))))) -> БЮДЖЕТ | K15: 1
K16: 1
K17: 1
J18: (в лева) | K18: 1
D19: I. П Р И Х О Д И, П О М О Щ И И Д А Р Е Н И Я | E19: Уточнен план | F19: О Т Ч Е Т Н И Д А Н Н И | K19: 1
B20: §§ | C20: под-§§ | D20: Н А И М Е Н О В А Н И Е | E20: =$C$3 -> 2017 | F20: ОБЩО | G20: левови сметки и СЕБРА | H20: валутни сметки | I20: операции в брой (в левове и валута) | J20: операции приравнени на касов поток | K20: 1
D21: 0 1 ¦ | E21: (1) | F21: (2) | G21: (3) | H21: (4) | I21: (5) | J21: (6) | K21: 1
A22: 5 | B22: 100 | C22: Данък върху доходите на физически лица: | E22: =SUM(E23:E27) -> 0 | F22: 0 | G22: 0 | H22: 0 | I22: 0 | J22: 0 | K22: =(IF($E22<>0,$K$2,IF($F22<>0,$K$2,IF($G22<>0,$K$2,IF($H22<>0,$K$2,IF($I22<>0,$K$2,IF($J22<>0,$K$2,""))))))) -> 
A23: 10 | C23: 101 | D23: от доходи по трудови, служебни и приравнени на тях правоотношения | F23: =G23+H23+I23+J23 -> 0
A24: 15 | C24: 102 | D24: от еднолични търговци, свободни професии, извънтрудови правоотношения и др. | F24: =G24+H24+I24+J24 -> 0
A25: 20 | C25: 103 | D25: окончателен годишен (патентен) данък и данък върху таксиметров превоз на пътници | F25: =G25+H25+I25+J25 -> 0
A26: 20 | C26: 108 | D26: окончателен данък върху приходите от лихви по банкови сметки на физическите лица | F26: =G26+H26+I26+J26 -> 0
A27: 21 | C27: 109 | D27: окончателен данък на местни и чуждестранни физически лица по чл. 37 и 38 от ЗДДФЛ | F27: =G27+H27+I27+J27 -> 0
A28: 25 | B28: 200 | C28: Корпоративен данък: | E28: =SUM(E29:E32) -> 0 | F28: 0 | G28: 0 | H28: 0 | I28: 0 | J28: 0
A29: 30 | C29: 201 | D29: корпоративен данък от нефинансови предприятия | F29: =G29+H29+I29+J29 -> 0
A30: 35 | C30: 202 | D30: корпоративен данък от финансови институции | F30: =G30+H30+I30+J30 -> 0
A31: 40 | C31: 203 | D31: корпоративен данък от юридически лица с нестопанска цел | F31: =G31+H31+I31+J31 -> 0
A32: 45 | C32: 204 | D32: корпоративен данък от застрахователни дружества | F32: =G32+H32+I32+J32 -> 0
A33: 50 | B33: 400 | C33: Данъци върху дивидентите, ликвидационните дялове и доходите на местни и чуждестранни лица: | E33: =SUM(E34:E38) -> 0 | F33: 0 | G33: 0 | H33: 0 | I33: 0 | J33: 0
A34: 55 | C34: 401 | D34: данък върху дивидентите и ликвидационните дялове на местни юридически лица | F34: =G34+H34+I34+J34 -> 0
A35: 56 | C35: 402 | D35: данък върху дивидентите и ликвидационните дялове на бюджетни предприятия | F35: =G35+H35+I35+J35 -> 0
A36: 57 | C36: 403 | D36: данък върху дивидентите и ликвидационните дялове на чуждестрани юридически лица | F36: =G36+H36+I36+J36 -> 0
A37: 58 | C37: 404 | D37: данък върху доходите на чуждестранни юридически лица | F37: =G37+H37+I37+J37 -> 0
A38: 59 | C38: 411 | D38: данък върху дивидентите и ликвидационните дялове на физически лица | F38: =G38+H38+I38+J38 -> 0
A39: 65 | B39: 800 | C39: Осигурителни вноски | E39: =SUM(E40:E46) -> 0 | F39: 0 | G39: 0 | H39: 0 | I39: 0 | J39: 0
A40: 70 | C40: 801 | D40: вноски за работници и служители от работодатели | F40: =G40+H40+I40+J40 -> 0
A41: 75 | C41: 802 | D41: вноски от работници и служители (лична вноска) | F41: 0
A42: 80 | C42: 804 | D42: вноски от самонаети лица (самоосигуряващи се лица) | F42: 0
A43: 85 | C43: 809 | D43: вноски за други категории осигурени лица | F43: 0
A44: 85 | C44: 811 | D44: вноски по чл. 4б и 4в от КСО за сметка на осигурителя | F44: 0
A45: 85 | C45: 812 | D45: вноски по чл. 4б от КСО за сметка на осигурените лица | F45: 0
A46: 85 | C46: 814 | D46: вноски по чл. 4б от КСО от самонаети лица (самоосигуряващи се лица) | F46: 0
A47: 95 | B47: 1000 | C47: Здравно-осигурителни вноски | E47: =SUM(E48:E51) -> 0 | F47: 0 | G47: 0 | H47: 0 | I47: 0 | J47: 0
A48: 100 | C48: 1001 | D48: здравно-осигурителни вноски за работници и служители от работодатели | F48: =G48+H48+I48+J48 -> 0
A49: 105 | C49: 1002 | D49: здравно-осигурителни вноски от работници и служители (лична вноска) | F49: =G49+H49+I49+J49 -> 0
A50: 110 | C50: 1004 | D50: здравно-осигурителни вноски от самонаети (самоосигуряващи се лица) | F50: =G50+H50+I50+J50 -> 0
A51: 125 | C51: 1007 | D51: здравно-осигур.вноски за други категории осигурени лица | F51: =G51+H51+I51+J51 -> 0
A52: 130 | B52: 1300 | C52: Имуществени и други местни данъци : | E52: =SUM(E53:E57) -> 0 | F52: 0 | G52: 0 | H52: 0 | I52: 0 | J52: 0
A53: 135 | C53: 1301 | D53: данък върху недвижими имоти | F53: =G53+H53+I53+J53 -> 0
A54: 140 | C54: 1302 | D54: данък върху наследствата | F54: =G54+H54+I54+J54 -> 0
A55: 145 | C55: 1303 | D55: данък върху превозните средства | F55: =G55+H55+I55+J55 -> 0
C56: 1304 | D56: данък при придобиване на имущество по дарения и възмезден начин | F56: =G56+H56+I56+J56 -> 0
A57: 150 | C57: 1308 | D57: туристически данък | F57: =G57+H57+I57+J57 -> 0
A58: 160 | B58: 1400 | C58: Данък върху добавената стойност | E58: =SUM(E59:E60) -> 0 | F58: 0 | G58: 0 | H58: 0 | I58: 0 | J58: 0
A59: 165 | C59: 1401 | D59: данък върху добавената стойност при сделки в страната | F59: =G59+H59+I59+J59 -> 0
A60: 170 | C60: 1402 | D60: данък върху добавената стойност при внос | F60: =G60+H60+I60+J60 -> 0
A61: 175 | B61: 1500 | C61: Акцизи | E61: =SUM(E62:E63) -> 0 | F61: 0 | G61: 0 | H61: 0 | I61: 0 | J61: 0
A62: 180 | C62: 1501 | D62: акциз при сделки в страната | F62: =G62+H62+I62+J62 -> 0
A63: 185 | C63: 1502 | D63: акциз при внос | F63: =G63+H63+I63+J63 -> 0
B64: 1600 | C64: Данък върху застрахователните премии | F64: =G64+H64+I64+J64 -> 0
A65: 200 | B65: 1700 | C65: Други данъци по Закона за корпоративното подоходно облагане: | E65: =SUM(E66:E71) -> 0 | F65: 0 | G65: 0 | H65: 0 | I65: 0 | J65: 0
A66: 205 | C66: 1701 | D66: данък върху представителните разходи | F66: =G66+H66+I66+J66 -> 0
A67: 210 | C67: 1702 | D67: данък върху разходи, предоставяни в натура | F67: 0
A68: 215 | C68: 1703 | D68: данък върху разходите за превозни средства | F68: 0
A69: 225 | C69: 1706 | D69: окончателни данъци върху залози за хазартни игри и хазартни съоръжения | F69: 0
A70: 226 | C70: 1707 | D70: данък върху дейността от опериране на кораби | F70: 0
A71: 227 | C71: 1709 | D71: данък върху приходите на бюджетните предприятия | F71: 0
A72: 231 | B72: 1800 | C72: Такси върху производството на захар и изоглюкоза | F72: 0
A73: 235 | B73: 1900 | C73: Мита и митнически такси: | F73: 0
A74: 255 | B74: 2000 | C74: Други данъци | F74: 0
A75: 265 | B75: 2400 | C75: Приходи и доходи от собственост | E75: =SUM(E76:E89) -> 60000 | F75: 64530 | G75: 11868 | H75: 0 | I75: 52662 | J75: 0 | K75: 1
A76: 270 | C76: 2401 | D76: вноски от приходи на държавни (общински) предприятия и институции | F76: =G76+H76+I76+J76 -> 0
A77: 280 | C77: 2403 | D77: превишение на приходите над разходите на БНБ | F77: 0
A78: 285 | C78: 2404 | D78: нетни приходи от продажби на услуги, стоки и продукция | F78: 0
A79: 290 | C79: 2405 | D79: приходи от наеми на имущество | E79: 42000 | F79: 44863 | G79: 11396 | H79: 0 | I79: 33467 | J79: 0 | K79: 1
A80: 295 | C80: 2406 | D80: приходи от наеми на земя | E80: 18000 | F80: 19667 | G80: 472 | H80: 0 | I80: 19195 | J80: 0 | K80: 1
A81: 300 | C81: 2407 | D81: приходи от дивиденти | F81: 0
A82: 305 | C82: 2408 | D82: приходи от лихви по текущи банкови сметки | F82: 0
A83: 310 | C83: 2409 | D83: приходи от лихви по срочни депозити | F83: 0
A84: 315 | C84: 2410 | D84: приходи от лихви по предоставени заеми в страната и чужбина | F84: 0
A85: 325 | C85: 2412 | D85: приходи от лихви от предприятия по преоформен държавен дълг | F85: 0
A86: 330 | C86: 2413 | D86: приходи от лихви и отстъпки от държавни и общински ценни книжа | F86: 0
A87: 335 | C87: 2415 | D87: приходи от лихви и отстъпки от дългови ценни книжа на местни и чуждестранни лица | F87: 0
A88: 340 | C88: 2418 | D88: лихви по срочни депозити за сметка на централния бюджет (+/-) | F88: 0
A89: 345 | C89: 2419 | D89: приходи от други лихви | F89: 0 | K89: =(IF($E89<>0,$K$2,IF($F89<>0,$K$2,IF($G89<>0,$K$2,IF($H89<>0,$K$2,IF($I89<>0,$K$2,IF($J89<>0,$K$2,""))))))) -> 
A90: 350 | B90: 2500 | C90: Държавни такси | E90: =SUM(E91:E92) -> 7000 | F90: 5668 | G90: 165 | H90: 0 | I90: 5503 | J90: 0 | K90: 1
A91: 355 | C91: 2501 | D91: такси за административни и други услуги и дейности | E91: 7000 | F91: =G91+H91+I91+J91 -> 5668 | G91: 165 | H91: 0 | I91: 5503 | J91: 0 | K91: 1
A92: 356 | C92: 2502 | D92: такси и лицензии с данъчен характер | F92: =G92+H92+I92+J92 -> 0
A93: 360 | B93: 2600 | C93: Съдебни такси | F93: =G93+H93+I93+J93 -> 0
A94: 370 | B94: 2700 | C94: Общински такси | E94: =SUM(E95:E107) -> 0 | F94: 0 | G94: 0 | H94: 0 | I94: 0 | J94: 0
A95: 375 | C95: 2701 | D95: за ползване на детски градини | F95: =G95+H95+I95+J95 -> 0
A96: 380 | C96: 27-02 | D96: за ползване на детски ясли и други по здравеопазването | F96: 0
A97: 385 | C97: 27-03 | D97: за ползване на лагери и други по социалния отдих | F97: 0
A98: 390 | C98: 2704 | D98: за ползване на домашен социален патронаж и други общински социални услуги | F98: 0
A99: 395 | C99: 27-05 | D99: за ползване на пазари, тържища, панаири, тротоари, улични платна и др. | F99: 0
A100: 400 | C100: 2706 | D100: за ползване на полудневни детски градини | F100: 0
A101: 405 | C101: 27-07 | D101: за битови отпадъци | F101: 0
A102: 410 | C102: 27-08 | D102: за ползване на общежития и други по образованието | F102: 0
A103: 420 | C103: 27-10 | D103: за технически услуги | F103: 0
A104: 425 | C104: 27-11 | D104: за административни услуги | F104: 0
A105: 430 | C105: 27-15 | D105: за откупуване на гробни места | F105: 0
A106: 436 | C106: 27-17 | D106: за притежаване на куче | F106: 0
A107: 440 | C107: 27-29 | D107: други общински такси | F107: 0
A108: 445 | B108: 2800 | C108: Глоби, санкции и наказателни лихви | E108: =+E109+E110+E111 -> 0 | F108: =+F109+F110+F111 -> 431 | G108: =+G109+G110+G111 -> 394 | H108: =SUM(H109:H111) -> 0 | I108: =+I109+I110+I111 -> 37 | J108: =SUM(J109:J111) -> 0 | K108: 1
A109: 450 | C109: 2801 | D109: конфискувани средства и приходи от продажби на конфискувани и придобити от залог вещи | F109: =G109+H109+I109+J109 -> 0
A110: 455 | C110: 2802 | D110: глоби, санкции, неустойки, наказателни лихви, обезщетения и начети | F110: =G110+H110+I110+J110 -> 431 | G110: 394 | H110: 0 | I110: 37 | J110: 0 | K110: 1
A111: 455 | C111: 2809 | D111: наказателни лихви за данъци, мита и осигурителни вноски | F111: =G111+H111+I111+J111 -> 0
A112: 470 | B112: 3600 | C112: Други приходи | E112: =SUM(E113:E119) -> 5000 | F112: 7017 | G112: 6677 | H112: 0 | I112: 340 | J112: 0 | K112: 1
A113: 475 | C113: 3601 | D113: реализирани курсови разлики от валутни операции (нето) (+/-) | F113: =G113+H113+I113+J113 -> 0
A114: 480 | C114: 3605 | D114: прехвърлени/възстановени акумулирани средства от осигурителни вноски | F114: =G114+H114+I114+J114 -> 0
A115: 480 | C115: 3610 | D115: приходи от други вноски | F115: 0
A116: 480 | C116: 3611 | D116: получени застрахователни обезщетения за ДМА | F116: 0
A117: 485 | C117: 3612 | D117: получени други застрахователни обезщетения | F117: 0
C118: 3618 | D118: коректив за касови постъпления (-/+) | F118: 0
A119: 490 | C119: 3619 | D119: други неданъчни приходи | E119: 5000 | F119: 7017 | G119: 6677 | H119: 0 | I119: 340 | J119: 0 | K119: 1
A120: 495 | B120: 3700 | C120: Внесени ДДС и други данъци върху продажбите | E120: =SUM(E121:E123) -> 0 | F120: -14063 | G120: -14063 | H120: 0 | I120: 0 | J120: 0 | K120: 1
A121: 500 | C121: 3701 | D121: внесен ДДС (-) | F121: =G121+H121+I121+J121 -> -11250 | G121: -11250 | H121: 0 | I121: 0 | J121: 0 | K121: 1
A122: 505 | C122: 3702 | D122: внесен данък върху приходите от стопанска дейност на бюджетните предприятия (-) | F122: =G122+H122+I122+J122 -> -2813 | G122: -2813 | H122: 0 | I122: 0 | J122: 0 | K122: 1
A123: 510 | C123: 3709 | D123: внесени други данъци,такси и вноски върху продажбите (-) | F123: =G123+H123+I123+J123 -> 0
A124: 515 | B124: 4000 | C124: Постъпления от продажба на нефинансови активи (без § 40-71) | E124: =SUM(E125:E135) -> 70000 | F124: 38770 | G124: 38770 | H124: 0 | I124: 0 | J124: 0 | K124: 1
A125: 516 | C125: 4021 | D125: постъпления от продажба на компютри и хардуер | F125: =G125+H125+I125+J125 -> 0
A126: 517 | C126: 4022 | D126: постъпления от продажба на сгради | F126: 0
A127: 518 | C127: 4023 | D127: постъпления от продажба на друго оборудване, машини и съоръжения | F127: 0
A128: 519 | C128: 4024 | D128: постъпления от продажба на транспортни средства | F128: 0
A129: 520 | C129: 4025 | D129: постъпления от продажба на стопански инвентар | F129: 0
A130: 521 | C130: 4026 | D130: постъпления от продажба на инфраструктурни обекти | F130: 0
A131: 522 | C131: 4029 | D131: постъпления от продажба на други ДМА | F131: 0
A132: 523 | C132: 4030 | D132: постъпления от продажба на нематериални дълготрайни активи | F132: 25077 | G132: 25077 | H132: 0 | I132: 0 | J132: 0 | K132: 1
A133: 523 | C133: 4039 | D133: постъпления от продажба на квоти за емисии на парникови газове | F133: 0
A134: 524 | C134: 4040 | D134: постъпления от продажба на земя | E134: 70000 | F134: 13693 | G134: 13693 | H134: 0 | I134: 0 | J134: 0 | K134: 1
A135: 526 | C135: 4072 | D135: постъпления от продажба на земеделска продукция | F135: 0
A136: 540 | B136: 4100 | C136: Приходи от концесии | F136: 0
A137: 550 | B137: 4200 | C137: Приходи от лицензии за ползване на държавни/общински активи | F137: 0
A138: 560 | B138: 45-00 | C138: Помощи и дарения от страната | E138: =SUM(E139:E140) -> 0 | F138: 0 | G138: 0 | H138: 0 | I138: 0 | J138: 0
A139: 565 | C139: 4501 | D139: текущи помощи и дарения от страната | F139: =G139+H139+I139+J139 -> 0
A140: 570 | C140: 4503 | D140: капиталови помощи и дарения от страната | F140: =G140+H140+I140+J140 -> 0
A141: 575 | B141: 4600 | C141: Помощи и дарения от чужбина | E141: =SUM(E142:E149) -> 0 | F141: 0 | G141: 0 | H141: 0 | I141: 0 | J141: 0
A142: 580 | C142: 4610 | D142: текущи помощи и дарения от Европейския съюз | F142: =G142+H142+I142+J142 -> 0
A143: 585 | C143: 4620 | D143: капиталови помощи и дарения от Европейския съюз | F143: 0
A144: 590 | C144: 4630 | D144: текущи помощи и дарения от други държави | F144: 0
A145: 595 | C145: 4640 | D145: капиталови помощи и дарения от други държави | F145: 0
A146: 600 | C146: 4650 | D146: текущи помощи и дарения от други международни организации | F146: 0
A147: 605 | C147: 4660 | D147: капиталови помощи и дарения от други международни организации | F147: 0
A148: 610 | C148: 4670 | D148: други текущи помощи и дарения от чужбина | F148: 0
A149: 615 | C149: 4680 | D149: други капиталови помощи и дарения от чужбина | F149: 0
A150: 575 | B150: 4700 | C150: Получени чрез небюджетни предприятия средства от КФП по международни и други програми | E150: =SUM(E151:E158) -> 0 | F150: 0 | G150: 0 | H150: 0 | I150: 0 | J150: 0
A151: 580 | C151: 4743 | D151: получени чрез нефинансови предприятия текущи трансфери от КФП по международни и други програми | F151: =G151+H151+I151+J151 -> 0
A152: 585 | C152: 4744 | D152: получени чрез финансови институции текущи трансфери от КФП по международни и други програми | F152: 0
A153: 590 | C153: 4745 | D153: получени чрез нестопански организации текущи трансфери от КФП по международни и други програми | F153: 0
A154: 595 | C154: 4749 | D154: получени чрез предприятия от чужбина текущи трансфери от КФП по международни и други програми | F154: 0 | K154: =(IF($E154<>0,$K$2,IF($F154<>0,$K$2,IF($G154<>0,$K$2,IF($H154<>0,$K$2,IF($I154<>0,$K$2,IF($J154<>0,$K$2,""))))))) -> 
A155: 600 | C155: 4751 | D155: получени чрез нефинансови предприятия капиталови трансфери от КФП по международни и други програми | F155: 0
A156: 605 | C156: 4752 | D156: получени чрез финансови институции капиталови трансфери от КФП по международни и други програми | F156: 0
A157: 610 | C157: 4753 | D157: получени чрез нестопански организации капиталови трансфери от КФП по международни и други програми | F157: 0
A158: 615 | C158: 4759 | D158: получени чрез предприятия от чужбина капиталови трансфери от КФП по международни и други програми | F158: 0
A159: 575 | B159: 4800 | C159: Разпределени към администратори от чужбина средства по международни програми и договори (-) | E159: =SUM(E160:E167) -> 0 | F159: 0 | G159: 0 | H159: 0 | I159: 0 | J159: 0
A160: 580 | C160: 4810 | D160: разпределени към чужбина текущи трансфери по програми на Европейския съюз (-) | F160: =G160+H160+I160+J160 -> 0
A161: 585 | C161: 4820 | D161: разпределени към чужбина капиталови трансфери по програми на Европейския съюз | F161: 0
A162: 590 | C162: 4830 | D162: разпределени към чужбина текущи трансфери по програми на други държави (-) | F162: 0
A163: 595 | C163: 4840 | D163: разпределени към чужбина капиталови трансфери по програми на други държави (-) | F163: 0
A164: 600 | C164: 4850 | D164: разпределени към чужбина текущи трансфери по програми на други международни организации (-) | F164: 0
A165: 605 | C165: 4860 | D165: разпределени към чужбина капиталови трансфери по програми на други международни организации (-) | F165: 0
A166: 610 | C166: 4870 | D166: разпределени към чужбина текущи трансфери по други чуждестранни дарения и помощи (-) | F166: 0
A167: 615 | C167: 4880 | D167: разпределени към чужбина капиталови трансфери по други чуждестранни дарения и помощи (-) | F167: 0
A168: 620 | B168: ВСИЧКО | C168: 99-99 | D168: I. В С И Ч К О П Р И Х О Д И, П О М О Щ И И Д А Р Е Н И Я | E168: =SUM(E22,E28,E33,E39,E47,E52,E58,E61,E64,E65,E72,E73,E74,E75,E90,E93,E94,E108,E112,E120,E124,E136,E137,E138,E141,E150,E159) -> 142000 | F168: 102353 | G168: 43811 | H168: 0 | I168: 58542 | J168: 0 | K168: 1
K169: 1
K170: 1
K171: 1
K172: 1
B173: =$B$7 -> ОТЧЕТНИ ДАННИ ПО ЕБК ЗА ИЗПЪЛНЕНИЕТО НА БЮДЖЕТА | K173: 1
E174: за периода от | F174: до | K174: 1
B175: =$B$9 -> ОБЛАСТНА АДМИНИСТРАЦИЯ ПАЗАРДЖИК | E175: =$E$9 -> 2017-01-01 | F175: =$F$9 -> 2017-12-31 | K175: 1
B176: =$B$10 -> (наименование на разпоредителя с бюджет) | K176: 1
K177: 1
B178: =$B$12 -> Министерски съвет | E178: код по ЕБК: | F178: =$F$12 -> 0300 | K178: 1
B179: =$B$13 -> (наименование на първостепенния разпоредител с бюджет) | K179: 1
D180: ФИНАНСОВО-ПРАВНА ФОРМА | E180: =$E$15 -> 0 | F180: =$F$15 -> БЮДЖЕТ | K180: 1
J181: (в лева) | K181: 1
D182: II. РАЗХОДИ - РЕКАПИТУЛАЦИЯ ПО ПАРАГРАФИ И ПОДПАРАГРАФИ | E182: Уточнен план | F182: О Т Ч Е Т Н И Д А Н Н И | K182: 1
B183: §§ | C183: под-§§ | D183: НАИМЕНОВАНИЕ НА ПАРАГРАФИТЕ И ПОДПАРАГРАФИТЕ | E183: =$C$3 -> 2017 | F183: ОБЩО | G183: левови сметки и СЕБРА | H183: валутни сметки | I183: операции в брой (в левове и валута) | J183: операции приравнени на касов поток | K183: 1
D184: 02 ¦ | E184: (1) | F184: (2) | G184: (3) | H184: (4) | I184: (5) | J184: (6) | K184: 1
K185: 1
A186: 5 | B186: 100 | C186: Заплати и възнаграждения за персонала, нает по трудови и служебни правоотношения | E186: =SUMIF($B$603:$B$12272,$B186,E$603:E$12272) -> 305873 | F186: 305311 | G186: 266478 | H186: 0 | I186: 0 | J186: 38833 | K186: =(IF($E186<>0,$K$2,IF($F186<>0,$K$2,IF($G186<>0,$K$2,IF($H186<>0,$K$2,IF($I186<>0,$K$2,IF($J186<>0,$K$2,""))))))) -> 1
A187: 10 | C187: 101 | D187: заплати и възнаграждения на персонала нает по трудови правоотношения | E187: =SUMIF($C$603:$C$12272,$C187,E$603:E$12272) -> 102943 | F187: 102552 | G187: 80206 | H187: 0 | I187: 0 | J187: 22346 | K187: 1 | L187: Р
A188: 15 | C188: 102 | D188: заплати и възнаграждения на персонала нает по служебни правоотношения | E188: 202930 | F188: 202759 | G188: 186272 | H188: 0 | I188: 0 | J188: 16487 | K188: 1 | L188: Е
A189: 35 | B189: 200 | C189: Други възнаграждения и плащания за персонала | E189: =SUMIF($B$603:$B$12272,$B189,E$603:E$12272) -> 140445 | F189: 139458 | G189: 123816 | H189: 0 | I189: 0 | J189: 15642 | K189: 1 | L189: К
A190: 40 | C190: 201 | D190: за нещатен персонал нает по трудови правоотношения | E190: =SUMIF($C$603:$C$12272,$C190,E$603:E$12272) -> 132612 | F190: 91031 | G190: 77416 | H190: 0 | I190: 0 | J190: 13615 | K190: 1 | L190: А
A191: 45 | C191: 202 | D191: за персонала по извънтрудови правоотношения | E191: 7833 | F191: 10430 | G191: 9187 | H191: 0 | I191: 0 | J191: 1243 | K191: 1 | L191: П
A192: 50 | C192: 205 | D192: изплатени суми от СБКО за облекло и други на персонала, с характер на възнаграждение | E192: 0 | F192: 5375 | G192: 5375 | H192: 0 | I192: 0 | J192: 0 | K192: 1 | L192: И
A193: 55 | C193: 208 | D193: обезщетения за персонала, с характер на възнаграждение | E193: 0 | F193: 30510 | G193: 29726 | H193: 0 | I193: 0 | J193: 784 | K193: 1 | L193: Т
A194: 60 | C194: 209 | D194: другиплащания и възнаграждения | E194: 0 | F194: 2112 | G194: 2112 | H194: 0 | I194: 0 | J194: 0 | K194: 1 | L194: У
A195: 65 | B195: 500 | C195: Задължителни осигурителни вноски от работодатели | E195: =SUMIF($B$603:$B$12272,$B195,E$603:E$12272) -> 107413 | F195: 106179 | G195: 0 | H195: 0 | I195: 0 | J195: 106179 | K195: 1 | L195: Л
A196: 70 | C196: 551 | D196: осигурителни вноски от работодатели за Държавното обществено осигуряване (ДОО) | E196: =SUMIF($C$603:$C$12272,$C196,E$603:E$12272) -> 66716 | F196: 66082 | G196: 0 | H196: 0 | I196: 0 | J196: 66082 | K196: 1 | L196: А
A197: 75 | C197: =C196+1 -> 552 | D197: осигурителни вноски от работодатели за Учителския пенсионен фонд (УчПФ) | E197: 0 | F197: 0 | G197: 0 | H197: 0 | I197: 0 | J197: 0 | L197: Ц
A198: 80 | C198: 558 | D198: вноски по чл. 4б и 4в от КСО за сметка на осигурителя | E198: 0 | F198: 0 | G198: 0 | H198: 0 | I198: 0 | J198: 0 | L198: И
A199: 80 | C199: 560 | D199: здравно-осигурителни вноски от работодатели | E199: 27502 | F199: 27152 | G199: 0 | H199: 0 | I199: 0 | J199: 27152 | K199: 1 | L199: Я
A200: 85 | C200: 580 | D200: вноски за допълнително задължително осигуряване от работодатели | E200: 13195 | F200: 12945 | G200: 0 | H200: 0 | I200: 0 | J200: 12945 | K200: 1
... 1260 more rows

Sheet INF (hidden)
A1: step | B1: 173
A2: gotocell | B2: c1657
A3: nextcell | B3: b1471
A4: INF copyrf | B4: i12:s182
A5: dejKN
B8: d1314
A11: Step:
A12: 1 | R12: =(IF($E146<>0,$K$2,IF($F146<>0,$K$2,IF($G146<>0,$K$2,IF($H146<>0,$K$2,IF($I146<>0,$K$2,IF($J146<>0,$K$2,""))))))) -> 0
A13: 2 | R13: =(IF($E146<>0,$K$2,IF($F146<>0,$K$2,IF($G146<>0,$K$2,IF($H146<>0,$K$2,IF($I146<>0,$K$2,IF($J146<>0,$K$2,""))))))) -> 0
A14: 3 | I14: =$B$7 -> 0 | R14: =(IF($E146<>0,$K$2,IF($F146<>0,$K$2,IF($G146<>0,$K$2,IF($H146<>0,$K$2,IF($I146<>0,$K$2,IF($J146<>0,$K$2,""))))))) -> 0
A15: 4 | L15: за периода от | M15: до | O15: II.1. РАЗХОДИ ПО ДЕЙНОСТИ | R15: =(IF($E146<>0,$K$2,IF($F146<>0,$K$2,IF($G146<>0,$K$2,IF($H146<>0,$K$2,IF($I146<>0,$K$2,IF($J146<>0,$K$2,""))))))) -> 0
A16: 5 | I16: =$B$9 -> 0 | L16: =$E$9 -> 00:00:00 | M16: =$F$9 -> 00:00:00 | R16: =(IF($E146<>0,$K$2,IF($F146<>0,$K$2,IF($G146<>0,$K$2,IF($H146<>0,$K$2,IF($I146<>0,$K$2,IF($J146<>0,$K$2,""))))))) -> 0
A17: 6 | I17: =$B$10 -> 0 | R17: =(IF($E146<>0,$K$2,IF($F146<>0,$K$2,IF($G146<>0,$K$2,IF($H146<>0,$K$2,IF($I146<>0,$K$2,IF($J146<>0,$K$2,""))))))) -> 0
A18: 7 | R18: =(IF($E146<>0,$K$2,IF($F146<>0,$K$2,IF($G146<>0,$K$2,IF($H146<>0,$K$2,IF($I146<>0,$K$2,IF($J146<>0,$K$2,""))))))) -> 0
A19: 8 | I19: =$B$12 -> 0 | L19: код по ЕБК: | M19: =$F$12 -> 0 | R19: =(IF($E146<>0,$K$2,IF($F146<>0,$K$2,IF($G146<>0,$K$2,IF($H146<>0,$K$2,IF($I146<>0,$K$2,IF($J146<>0,$K$2,""))))))) -> 0
A20: 9 | I20: =$B$13 -> 0 | R20: =(IF($E146<>0,$K$2,IF($F146<>0,$K$2,IF($G146<>0,$K$2,IF($H146<>0,$K$2,IF($I146<>0,$K$2,IF($J146<>0,$K$2,""))))))) -> 0
A21: 10 | K21: ФИНАНСОВО-ПРАВНА ФОРМА | L21: =$E$15 -> 0 | M21: =$F$15 -> 0 | R21: =(IF($E146<>0,$K$2,IF($F146<>0,$K$2,IF($G146<>0,$K$2,IF($H146<>0,$K$2,IF($I146<>0,$K$2,IF($J146<>0,$K$2,""))))))) -> 0
A22: 11 | Q22: (в лева) | R22: =(IF($E146<>0,$K$2,IF($F146<>0,$K$2,IF($G146<>0,$K$2,IF($H146<>0,$K$2,IF($I146<>0,$K$2,IF($J146<>0,$K$2,""))))))) -> 0
A23: 12 | K23: II.1. РАЗХОДИ ПО ДЕЙНОСТИ | L23: Уточнен план | M23: О Т Ч Е Т Н И Д А Н Н И | R23: =(IF($E146<>0,$K$2,IF($F146<>0,$K$2,IF($G146<>0,$K$2,IF($H146<>0,$K$2,IF($I146<>0,$K$2,IF($J146<>0,$K$2,""))))))) -> 0
A24: 13 | I24: §§ | J24: под-§§ | K24: НАИМЕНОВАНИЯ НА ПАРАГРАФИТЕ И ПОДПАРАГРАФИТЕ | L24: =$C$3 -> 0 | M24: ОБЩО | N24: левови сметки и СЕБРА | O24: валутни сметки | P24: операции в брой (в левове и валута) | Q24: операции приравнени на касов поток | R24: =(IF($E146<>0,$K$2,IF($F146<>0,$K$2,IF($G146<>0,$K$2,IF($H146<>0,$K$2,IF($I146<>0,$K$2,IF($J146<>0,$K$2,""))))))) -> 0
A25: 14 | K25: 02 ¦ | L25: (1) | M25: (2) | N25: (3) | O25: (4) | P25: (5) | Q25: (6) | R25: =(IF($E146<>0,$K$2,IF($F146<>0,$K$2,IF($G146<>0,$K$2,IF($H146<>0,$K$2,IF($I146<>0,$K$2,IF($J146<>0,$K$2,""))))))) -> 0
A26: 15 | J26: =VLOOKUP(K26,OP_LIST2,2,FALSE) -> 0 | K26: ИЗБЕРЕТЕ ОПЕРАТИВНА ПРОГРАМА | R26: =(IF($E146<>0,$K$2,IF($F146<>0,$K$2,IF($G146<>0,$K$2,IF($H146<>0,$K$2,IF($I146<>0,$K$2,IF($J146<>0,$K$2,""))))))) -> 0
A27: 16 | J27: =VLOOKUP(K28,EBK_DEIN2,2,FALSE) -> 0 | K27: <------ ДЕЙНОСТ - код по ЕБК | R27: =(IF($E146<>0,$K$2,IF($F146<>0,$K$2,IF($G146<>0,$K$2,IF($H146<>0,$K$2,IF($I146<>0,$K$2,IF($J146<>0,$K$2,""))))))) -> 0
A28: 17 | J28: =+J27 -> 0 | K28: ИЗБЕРЕТЕ ДЕЙНОСТ | R28: =(IF($E146<>0,$K$2,IF($F146<>0,$K$2,IF($G146<>0,$K$2,IF($H146<>0,$K$2,IF($I146<>0,$K$2,IF($J146<>0,$K$2,""))))))) -> 0
A29: 18 | K29: (наименование на дейността) | R29: =(IF($E146<>0,$K$2,IF($F146<>0,$K$2,IF($G146<>0,$K$2,IF($H146<>0,$K$2,IF($I146<>0,$K$2,IF($J146<>0,$K$2,""))))))) -> 0
A30: 19 | I30: 100 | J30: Заплати и възнаграждения за персонала, нает по трудови и служебни правоотношения | L30: =SUM(L31:L32) -> 0 | M30: 0 | N30: 0 | O30: 0 | P30: 0 | Q30: 0 | R30: =(IF($E30<>0,$K$2,IF($F30<>0,$K$2,IF($G30<>0,$K$2,IF($H30<>0,$K$2,IF($I30<>0,$K$2,IF($J30<>0,$K$2,""))))))) -> 0
A31: 20 | J31: 101 | K31: заплати и възнаграждения на персонала нает по трудови правоотношения | M31: =N31+O31+P31+Q31 -> 0 | R31: =(IF($E31<>0,$K$2,IF($F31<>0,$K$2,IF($G31<>0,$K$2,IF($H31<>0,$K$2,IF($I31<>0,$K$2,IF($J31<>0,$K$2,""))))))) -> 0
A32: 21 | J32: 102 | K32: заплати и възнаграждения на персонала нает по служебни правоотношения | M32: =N32+O32+P32+Q32 -> 0 | R32: 0
A33: 22 | I33: 200 | J33: Други възнаграждения и плащания за персонала | L33: =SUM(L34:L38) -> 0 | M33: 0 | N33: 0 | O33: 0 | P33: 0 | Q33: 0 | R33: 0
A34: 23 | J34: 201 | K34: за нещатен персонал нает по трудови правоотношения | M34: =N34+O34+P34+Q34 -> 0 | R34: 0
A35: 24 | J35: 202 | K35: за персонала по извънтрудови правоотношения | M35: =N35+O35+P35+Q35 -> 0 | R35: 0
A36: 25 | J36: 205 | K36: изплатени суми от СБКО за облекло и други на персонала, с характер на възнаграждение | M36: =N36+O36+P36+Q36 -> 0 | R36: 0
A37: 26 | J37: 208 | K37: обезщетения за персонала, с характер на възнаграждение | M37: =N37+O37+P37+Q37 -> 0 | R37: 0
A38: 27 | J38: 209 | K38: другиплащания и възнаграждения | M38: =N38+O38+P38+Q38 -> 0 | R38: 0
A39: 28 | I39: 500 | J39: Задължителни осигурителни вноски от работодатели | L39: =SUM(L40:L46) -> 0 | M39: 0 | N39: 0 | O39: 0 | P39: 0 | Q39: 0 | R39: 0
A40: 29 | J40: 551 | K40: осигурителни вноски от работодатели за Държавното обществено осигуряване (ДОО) | M40: =N40+O40+P40+Q40 -> 0 | N40: 0 | O40: 0 | P40: 0 | R40: 0
A41: 30 | J41: =J40+1 -> 552 | K41: осигурителни вноски от работодатели за Учителския пенсионен фонд (УПФ) | M41: 0 | N41: 0 | O41: 0 | P41: 0 | R41: 0
A42: 31 | J42: 558 | K42: вноски по чл. 4б и 4в от КСО за сметка на осигурителя | M42: =N42+O42+P42+Q42 -> 0 | N42: 0 | O42: 0 | P42: 0 | Q42: 0 | R42: 0
A43: 32 | J43: 560 | K43: здравно-осигурителни вноски от работодатели | M43: 0 | N43: 0 | O43: 0 | P43: 0 | R43: 0
A44: 33 | J44: 580 | K44: вноски за допълнително задължително осигуряване от работодатели | M44: 0 | N44: 0 | O44: 0 | P44: 0 | R44: 0
A45: 34 | J45: 588 | K45: коректив на вноски за ДЗПО за сумите по чл. 4б и 4в от КСО за сметка на осигурителя | M45: =N45+O45+P45+Q45 -> 0 | N45: 0 | O45: 0 | P45: 0 | Q45: 0 | R45: 0
A46: 35 | J46: 590 | K46: задължителни вноски за чуждестранни пенсионни фондове и схеми за сметка на осигурителя | M46: 0 | R46: 0
A47: 36 | I47: 800 | J47: Вноски за доброволно осигуряване | M47: 0 | R47: 0
A48: 37 | I48: 1000 | J48: Издръжка | L48: =SUM(L49:L65) -> 0 | M48: 0 | N48: 0 | O48: 0 | P48: 0 | Q48: 0 | R48: 0
A49: 38 | J49: 1011 | K49: Храна | M49: =N49+O49+P49+Q49 -> 0 | R49: 0
A50: 39 | J50: 1012 | K50: Медикаменти | M50: 0 | R50: 0
A51: 40 | J51: 1013 | K51: Постелен инвентар и облекло | M51: 0 | R51: 0
A52: 41 | J52: 1014 | K52: Учебни и научно-изследователски разходи и книги за библиотеките | M52: 0 | R52: 0
A53: 42 | J53: 1015 | K53: материали | M53: 0 | R53: 0
A54: 43 | J54: 1016 | K54: вода, горива и енергия | M54: 0 | R54: 0
A55: 44 | J55: 1020 | K55: разходи за външни услуги | M55: 0 | R55: 0
A56: 45 | J56: 1030 | K56: Текущ ремонт | M56: 0 | R56: 0
A57: 46 | J57: 1051 | K57: командировки в страната | M57: 0 | R57: 0
A58: 47 | J58: 1052 | K58: краткосрочни командировки в чужбина | M58: 0 | R58: 0
A59: 48 | J59: 1053 | K59: дългосрочни командировки в чужбина | M59: 0 | R59: 0
A60: 49 | J60: 1062 | K60: разходи за застраховки | M60: 0 | R60: 0
A61: 50 | J61: 1063 | K61: такса ангажимент по заеми | M61: 0 | R61: 0
A62: 51 | J62: 1069 | K62: други финансови услуги | M62: 0 | R62: 0
A63: 52 | J63: 1091 | K63: други разходи за СБКО | M63: 0 | R63: 0
A64: 53 | J64: 1092 | K64: разходи за договорни санкции и неустойки, съдебни обезщетения и разноски | M64: 0 | R64: 0
A65: 54 | J65: 1098 | K65: други разходи, некласифицирани в другите параграфи и подпараграфи | M65: 0 | R65: 0
A66: 55 | I66: 1900 | J66: Платени данъци, такси и административни санкции | L66: =SUM(L67:L69) -> 0 | M66: 0 | N66: 0 | O66: 0 | P66: 0 | Q66: 0 | R66: 0
A67: 56 | J67: 1901 | K67: платени държавни данъци, такси, наказателни лихви и административни санкции | M67: =N67+O67+P67+Q67 -> 0 | R67: 0
A68: 57 | J68: 1981 | K68: платени общински данъци, такси, наказателни лихви и административни санкции | M68: =N68+O68+P68+Q68 -> 0 | R68: 0
A69: 58 | J69: 1991 | K69: платени данъци, такси, наказателни лихви и административни санкции в чужбина | M69: =N69+O69+P69+Q69 -> 0 | R69: 0
A70: 59 | I70: 2100 | J70: Разходи за лихви по емисии на държавни (общински) ценни книжа | L70: =SUM(L71:L75) -> 0 | M70: 0 | N70: 0 | O70: 0 | P70: 0 | Q70: 0 | R70: 0
A71: 60 | J71: 2110 | K71: лихви по държавни (общински) ценни книжа | M71: =N71+O71+P71+Q71 -> 0 | R71: 0
A72: 61 | J72: 2120 | K72: отстъпки по държавни (общински) ценни книжа | M72: =N72+O72+P72+Q72 -> 0 | R72: 0
A73: 62 | J73: 2125 | K73: лихви и отстъпки по целеви емисии на държавни ценни книжа | M73: =N73+O73+P73+Q73 -> 0 | P73: 0 | R73: 0
A74: 63 | J74: 2140 | K74: лихви по държавни ценни книжа, емитирани за структурната реформа | M74: =N74+O74+P74+Q74 -> 0 | P74: 0 | R74: 0
A75: 64 | J75: 2190 | K75: премии над номинала от емисии на държавни (общински) ценни книжа (-) | M75: =N75+O75+P75+Q75 -> 0 | P75: 0 | R75: 0
A76: 65 | I76: 2200 | J76: Разходи за лихви по заеми от страната | L76: =SUM(L77:L78) -> 0 | M76: 0 | N76: 0 | O76: 0 | P76: 0 | Q76: 0 | R76: 0
A77: 66 | J77: 2221 | K77: Разходи за лихви по заеми от банки в страната | M77: =N77+O77+P77+Q77 -> 0 | R77: 0
A78: 67 | J78: 2224 | K78: Разходи за лихви по други заеми от страната | M78: 0 | R78: 0
A79: 68 | I79: 2500 | J79: Разходи за лихви по заеми от други държави | M79: 0 | R79: 0
A80: 69 | I80: 2600 | J80: Разходи за лихви по заеми от международни организации и институции | M80: 0 | R80: 0
A81: 70 | I81: 2700 | J81: Разходи за лихви по заеми от банки и други финансови институции от чужбина | M81: 0 | R81: 0
A82: 71 | I82: 2800 | J82: Разходи за лихви и отстъпки по облигации, емитирани и търгувани на международните капиталови пазари | M82: 0 | R82: 0
A83: 72 | I83: 2900 | J83: Други разходи за лихви | L83: =SUM(L84:L91) -> 0 | M83: 0 | N83: 0 | O83: 0 | P83: 0 | Q83: 0 | R83: 0
A84: 73 | J84: 2910 | K84: Платени лихви по финансов лизинг и търговски кредит | M84: =N84+O84+P84+Q84 -> 0 | R84: 0
A85: 74 | J85: 2920 | K85: Платени лихви по активирани гаранции по заеми от банки в страната | M85: =N85+O85+P85+Q85 -> 0 | R85: 0
A86: 75 | J86: 2969 | K86: Платени лихви по активирани гаранции по заеми от международни организации и институции | M86: 0 | R86: 0
A87: 76 | J87: 2970 | K87: Платени лихви по активирани гаранции по заеми от банки и финансови институции от чужбина | M87: 0 | R87: 0
A88: 77 | J88: 2989 | K88: Възстановени суми по платени лихви по активирани гаранции (-) | M88: 0 | R88: 0
A89: 78 | J89: 2990 | K89: Платени лихви по заеми, предоставени от централния бюджет и бюджетни организации | M89: =N89+O89+P89+Q89 -> 0 | R89: 0
A90: 79 | J90: 2991 | K90: Други разходи за лихви към местни лица | M90: 0 | R90: 0
A91: 80 | J91: 2992 | K91: Други разходи за лихви към чуждестранни лица | M91: 0 | R91: 0
A92: 81 | I92: 3300 | J92: Вноска в бюджета на Европейския съюз | L92: =SUM(L93:L98) -> 0 | M92: 0 | N92: 0 | O92: 0 | P92: 0 | Q92: 0 | R92: 0
A93: 82 | J93: 3301 | K93: ресурс на база брутен национален доход | M93: =N93+O93+P93+Q93 -> 0 | P93: 0 | Q93: 0 | R93: 0
A94: 83 | J94: 3302 | K94: ресурс на база данък върху добавената стойност | M94: 0 | P94: 0 | Q94: 0 | R94: 0
A95: 84 | J95: 3303 | K95: корекция за Обединеното кралство | M95: 0 | P95: 0 | Q95: 0 | R95: 0
A96: 85 | J96: 3304 | K96: традиционни собствени ресурси - мита | M96: 0 | P96: 0 | Q96: 0 | R96: 0
A97: 86 | J97: 3305 | K97: традиционни собствени ресурси - такси върху производството на захар и изоглюкоза | M97: 0 | P97: 0 | Q97: 0 | R97: 0
A98: 87 | J98: 3306 | K98: участие във финансирането на брутното намаление за Нидерландия, Швеция, Дания и Австрия | M98: 0 | P98: 0 | Q98: 0 | R98: 0
A99: 88 | I99: 3900 | J99: Здравно-осигурителни плащания | M99: 0 | R99: =(IF($E99<>0,$K$2,IF($F99<>0,$K$2,IF($G99<>0,$K$2,IF($H99<>0,$K$2,IF($I99<>0,$K$2,IF($J99<>0,$K$2,""))))))) -> 0
A100: 89 | I100: 4000 | J100: Стипендии | M100: 0 | R100: 0
A101: 90 | I101: 4100 | J101: Пенсии | M101: 0 | R101: 0
A102: 91 | I102: 4200 | J102: Текущи трансфери, обезщетения и помощи за домакинствата | L102: =SUM(L103:L108) -> 0 | M102: 0 | N102: 0 | O102: 0 | P102: 0 | Q102: 0 | R102: 0
A103: 92 | J103: 4201 | K103: обезщетения и помощи по социалното осигуряване | M103: =N103+O103+P103+Q103 -> 0 | R103: 0
A104: 93 | J104: 4202 | K104: обезщетения и помощи по социалното подпомагане | M104: 0 | R104: 0
A105: 94 | J105: 4214 | K105: обезщетения и помощи по решение на общинския съвет | M105: 0 | R105: 0
A106: 95 | J106: 4217 | K106: текущи трансфери за домакинства от средства на Европейския съюз | M106: 0 | R106: 0
A107: 96 | J107: 4218 | K107: текущи трансфери за домакинства по други международни програми и споразумения | M107: 0 | R107: 0
A108: 97 | J108: 4219 | K108: други текущи трансфери за домакинствата | M108: 0 | R108: 0
A109: 98 | I109: 4300 | J109: Субсидии и други текущи трансфери за нефинансови предприятия | L109: =SUM(L110:L112) -> 0 | M109: 0 | N109: 0 | O109: 0 | P109: 0 | Q109: 0 | R109: 0
A110: 99 | J110: 4301 | K110: за текуща дейност | M110: =N110+O110+P110+Q110 -> 0 | R110: 0
A111: 100 | J111: 4302 | K111: за осъществяване на болнична помощ | M111: 0 | R111: 0
A112: 101 | J112: 4309 | K112: други субсидии и плащания | M112: 0 | R112: 0
A113: 102 | I113: 4400 | J113: Субсидии и други текущи трансфери за финансови институции | M113: 0 | R113: 0
A114: 103 | I114: 4500 | J114: Субсидии и други текущи трансфери за юридически лица с нестопанска цел | M114: 0 | R114: 0
A115: 104 | I115: 4600 | J115: Разходи за членски внос и участие в нетърговски организации и дейности | M115: 0 | R115: 0
A116: 105 | I116: 4900 | J116: Предоставени текущи и капиталови трансфери за чужбина | L116: =+L117+L118 -> 0 | M116: 0 | N116: 0 | O116: 0 | P116: 0 | Q116: 0 | R116: 0
A117: 106 | J117: 4901 | K117: текущи трансфери за чужбина | M117: =N117+O117+P117+Q117 -> 0 | R117: 0
A118: 107 | J118: 4902 | K118: капиталови трансфери за чужбина | M118: =N118+O118+P118+Q118 -> 0 | R118: 0
A119: 108 | I119: 5100 | J119: Основен ремонт на дълготрайни материални активи | M119: =N119+O119+P119+Q119 -> 0 | R119: 0
A120: 109 | I120: 5200 | J120: Придобиване на дълготрайни материални активи | L120: =SUM(L121:L127) -> 0 | M120: 0 | N120: 0 | O120: 0 | P120: 0 | Q120: 0 | R120: 0
A121: 110 | J121: 5201 | K121: придобиване на компютри и хардуер | M121: =N121+O121+P121+Q121 -> 0 | R121: 0
A122: 111 | J122: 5202 | K122: придобиване на сгради | M122: 0 | R122: 0
A123: 112 | J123: 5203 | K123: придобиване на друго оборудване, машини и съоръжения | M123: 0 | R123: 0
A124: 113 | J124: 5204 | K124: придобиване на транспортни средства | M124: 0 | R124: 0
A125: 114 | J125: 5205 | K125: придобиване на стопански инвентар | M125: 0 | R125: 0
A126: 115 | J126: 5206 | K126: изграждане на инфраструктурни обекти | M126: 0 | R126: 0
A127: 116 | J127: 5219 | K127: придобиване на други ДМА | M127: 0 | R127: 0
A128: 117 | I128: 5300 | J128: Придобиване на нематериални дълготрайни активи | L128: =SUM(L129:L130) -> 0 | M128: 0 | N128: 0 | O128: 0 | P128: 0 | Q128: 0 | R128: 0
A129: 118 | J129: 5301 | K129: придобиване на програмни продукти и лицензи за програмни продукти | M129: =N129+O129+P129+Q129 -> 0 | R129: 0
A130: 119 | J130: 5309 | K130: придобиване на други нематериални дълготрайни активи | M130: =N130+O130+P130+Q130 -> 0 | R130: 0
A131: 120 | I131: 5400 | J131: Придобиване на земя | M131: =N131+O131+P131+Q131 -> 0 | R131: 0
A132: 121 | I132: 5500 | J132: Капиталови трансфери | L132: =SUM(L133:L136) -> 0 | M132: 0 | N132: 0 | O132: 0 | P132: 0 | Q132: 0 | R132: 0
A133: 122 | J133: 5501 | K133: капиталови трансфери за нефинансови предприятия | M133: =N133+O133+P133+Q133 -> 0 | R133: 0
A134: 123 | J134: 5502 | K134: капиталови трансфери за финансови институции | M134: =N134+O134+P134+Q134 -> 0 | R134: 0
A135: 124 | J135: 5503 | K135: капиталови трансфери за организации с нестопанска цел | M135: =N135+O135+P135+Q135 -> 0 | R135: 0
A136: 125 | J136: 5504 | K136: капиталови трансфери за домакинствата | M136: =N136+O136+P136+Q136 -> 0 | R136: 0
A137: 126 | I137: 5700 | J137: Прираст на държавния резерв и изкупуване на земеделска продукция (включва и § 40-71) | L137: =SUM(L138:L140) -> 0 | M137: 0 | N137: 0 | O137: 0 | P137: 0 | Q137: 0 | R137: 0
A138: 127 | J138: 5701 | K138: плащания за попълване на държавния резерв | M138: =N138+O138+P138+Q138 -> 0 | R138: 0
A139: 128 | J139: 5702 | K139: плащания за изкупуване на земеделска продукция | M139: =N139+O139+P139+Q139 -> 0 | R139: 0
A140: 129 | J140: 4071 | K140: постъпления от продажба на държавния резерв (-) | M140: =N140+O140+P140+Q140 -> 0 | R140: 0
A141: 130
A142: 131 | I142: 98 | J142: Резерв за непредвидени и неотложни разходи | M142: =N142+O142+P142+Q142 -> 0 | N142: 0 | O142: 0 | P142: 0 | Q142: 0 | R142: 0
A143: 132
A144: 133
A145: 134
A146: 135 | J146: 99-99 | K146: =+I146 -> 0 | L146: =SUM(L30,L33,L39,L47,L48,L66,L70,L76,L79,L80,L81,L82,L83,L92,L99,L100,L101,L102,L109,L113,L114,L115,L116,L119,L120,L128,L131,L132,L137)+L142 -> 0 | M146: 0 | N146: 0 | O146: 0 | P146: 0 | Q146: 0 | R146: 0 | S146: =LEFT(J27,1) -> 0
A147: 136 | R147: =R146 -> 0
A148: 137 | R148: =R146 -> 0
A149: 138 | R149: =(IF(SUM(R160:R181)<>0,$K$2,"")) -> 
A150: 139 | I150: =$B$7 -> 0 | R150: =(IF(SUM(R160:R181)<>0,$K$2,"")) -> 
A151: 140 | L151: за периода от | M151: до | R151: =(IF(SUM(R160:R181)<>0,$K$2,"")) -> 
A152: 141 | I152: =$B$9 -> 0 | L152: =$E$9 -> 00:00:00 | M152: =$F$9 -> 00:00:00 | R152: =(IF(SUM(R160:R181)<>0,$K$2,"")) -> 
A153: 142 | I153: =$B$10 -> 0 | R153: =(IF(SUM(R160:R181)<>0,$K$2,"")) -> 
A154: 143 | R154: =(IF(SUM(R160:R181)<>0,$K$2,"")) -> 
A155: 144 | I155: =$B$12 -> 0 | L155: код по ЕБК: | M155: =$F$12 -> 0 | R155: =(IF(SUM(R160:R181)<>0,$K$2,"")) -> 
A156: 145 | I156: =$B$13 -> 0 | R156: =(IF(SUM(R160:R181)<>0,$K$2,"")) -> 
A157: 146 | K157: ФИНАНСОВО-ПРАВНА ФОРМА | L157: =$E$15 -> 0 | M157: =$F$15 -> 0 | R157: =(IF(SUM(R160:R181)<>0,$K$2,"")) -> 
A158: 147 | K158: Натурални показатели за дейността | M158: (в лева) | R158: =(IF(SUM(R160:R181)<>0,$K$2,"")) -> 
A159: 148 | I159: МЯРКА | J159: Код 9 8 | K159: О б щ и н а т у р а л н и п о к а з а т е л и | L159: П л а н | M159: О т ч е т | R159: =(IF(SUM(R160:R181)<>0,$K$2,"")) -> 
A160: 149 | J160: 9 8 0 1 | K160: Щ а т н и б р о й к и | L160: =L161+L162 -> 0 | M160: =M161+M162 -> 0 | R160: =(IF($E160<>0,$K$2,IF($F160<>0,$K$2,""))) -> 
A161: 150 | J161: 9 8 1 1 | K161: в т.ч.: по трудови правоотношения
A162: 151 | J162: 9 8 1 2 | K162: по служебни правоотношения
A163: 152 | J163: 9 8 0 2 | K163: Средногодишни щатни бройки | L163: =L164+L165 -> 0 | M163: =M164+M165 -> 0
A164: 153 | J164: 9 8 2 1 | K164: в т.ч.: по трудови правоотношения
A165: 154 | J165: 9 8 2 2 | K165: по служебни правоотношения
A166: 155 | J166: 9 8 0 3 | K166: Средна годишна брутна заплата
A167: 156 | J167: 9 8 3 1 | K167: в т.ч.: по трудови правоотношения
A168: 157 | J168: 9 8 3 2 | K168: по служебни правоотношения
A169: 158 | J169: 9 8 0 4 | K169: Брой на моторни превозни средства
A170: 159 | J170: 9 8 0 5 | K170: - в т.ч. - леки автомобили
A171: 160 | J171: 9 8 0 6 | K171: - санитарни линейки
A172: 161 | J172: 9 8 0 7 | K172: Брой ученици, финансирани по единни разходни стандарти
A173: 162 | J173: 9 8 0 8 | K173: Средна годишна брутна заплата за дейности, финансирани по единни разходни стандарти
A174: 163 | J174: 9 8 0 9 | K174: Щатни бройки за дейности, финансирани по единни разходни стандарти
A175: 164 | J175: 9 8 1 0 | K175: Средногодишни щатни бройки за дейности, финансирани по единни разходни стандарти
A176: 165 | J176: 9 8 1 3 | K176: Средногодишен приравнен брой учащи във ВУ, финансирани по норматив за издръжка на обучението
A177: 166 | J177: 9 8 1 4 | K177: Брой леглодни в студентски общежития
A178: 167 | J178: 9 8 1 5 | K178: Брой хранодни в студентски стол
A179: 168 | J179: 9 8 1 7 | K179: Болнични легла
A180: 169 | J180: 9 8 1 8 | K180: Обем радиопрограма /часове/
A181: 170 | J181: 9 8 1 9 | K181: Обем телевизионна програма /часове/
A182: 171 | I182: ЗАБЕЛЕЖКА: | R182: =R146 -> 0
A183: 172 | I183: За натурални показатели, не влючени в този отчет, специфични за конкретна дейност се представят отделни справки, допълнително определени от Министерство на финансите. | R183: =R146 -> 0
A184: 173 | R184: =R146 -> 0
R185: =(IF(L146<>0,$G$2,IF(Q146<>0,$G$2,""))) -> 
R186: =(IF(L147<>0,$G$2,IF(Q147<>0,$G$2,""))) -> 
R187: =(IF(L146<>0,$G$2,IF(Q146<>0,$G$2,""))) -> 
R188: =(IF(L146<>0,$G$2,IF(Q146<>0,$G$2,""))) -> 
R189: =(IF(L146<>0,$G$2,IF(Q146<>0,$G$2,""))) -> 
R190: =(IF(L146<>0,$G$2,IF(Q146<>0,$G$2,""))) -> 
R191: =(IF(L146<>0,$G$2,IF(Q146<>0,$G$2,""))) -> 

Sheet list (hidden)
A1: Name: | B1: SMETKA
A2: 0 | B2: ОТЧЕТНИ ДАННИ ПО ЕБК ЗА ИЗПЪЛНЕНИЕТО НА БЮДЖЕТА | C2: ОТЧЕТ ЗА КАСОВОТО ИЗПЪЛНЕНИЕ НА БЮДЖЕТА
A3: 33 | B3: ОТЧЕТНИ ДАННИ ПО ЕБК ЗА СМЕТКИТЕ ЗА ЧУЖДИ СРЕДСТВА | C3: ОТЧЕТ ЗА КАСОВОТО ИЗПЪЛНЕНИЕ НА СМЕТКИТЕ ЗА ЧУЖДИ СРЕДСТВА
A4: 42 | B4: ОТЧЕТНИ ДАННИ ПО ЕБК ЗА СМЕТКИТЕ ЗА СРЕДСТВАТА ОТ ЕВРОПЕЙСКИЯ СЪЮЗ - РА | C4: ОТЧЕТ ЗА КАСОВОТО ИЗПЪЛНЕНИЕ НА СМЕТКИТЕ ЗА СРЕДСТВАТА ОТ ЕВРОПЕЙСКИЯ СЪЮЗ - РА
A5: 96 | B5: ОТЧЕТНИ ДАННИ ПО ЕБК ЗА СМЕТКИТЕ ЗА СРЕДСТВАТА ОТ ЕВРОПЕЙСКИЯ СЪЮЗ - ДЕС | C5: ОТЧЕТ ЗА КАСОВОТО ИЗПЪЛНЕНИЕ НА СМЕТКИТЕ ЗА СРЕДСТВАТА ОТ ЕВРОПЕЙСКИЯ СЪЮЗ - ДЕС
A6: 97 | B6: ОТЧЕТНИ ДАННИ ПО ЕБК ЗА СМЕТКИТЕ ЗА СРЕДСТВАТА ОТ ЕВРОПЕЙСКИЯ СЪЮЗ - ДМП | C6: ОТЧЕТ ЗА КАСОВОТО ИЗПЪЛНЕНИЕ НА СМЕТКИТЕ ЗА СРЕДСТВАТА ОТ ЕВРОПЕЙСКИЯ СЪЮЗ - ДМП
A7: 98 | B7: ОТЧЕТНИ ДАННИ ПО ЕБК ЗА СМЕТКИТЕ ЗА СРЕДСТВАТА ОТ ЕВРОПЕЙСКИЯ СЪЮЗ - КСФ | C7: ОТЧЕТ ЗА КАСОВОТО ИЗПЪЛНЕНИЕ НА СМЕТКИТЕ ЗА СРЕДСТВАТА ОТ ЕВРОПЕЙСКИЯ СЪЮЗ - КСФ
A10: Name: | B10: "EBK_DEIN" и "EBK_DEIN2"
B11: ИЗБЕРЕТЕ ДЕЙНОСТ
A12: 1101 | B12: 101 Централни държавни органи | C12: 1101
A13: 1103 | B13: 103 Централни държавни органи по образованието | C13: 1103
A14: 1104 | B14: 104 Централни държавни органи по здравеопазването | C14: 1104
A15: 1105 | B15: 105 Централни държавни органи по социалното осигуряването | C15: 1105
A16: 1106 | B16: 106 Централни държавни органи по регионалното развитие и благоустройство | C16: 1106
A17: 1107 | B17: 107 Централни държавни органи по културата и спорта | C17: 1107
A18: 1108 | B18: 108 Централни държавни органи по икономическите дейности и услуги | C18: 1108
A19: 1111 | B19: 111 Контролни органи | C19: 1111
A20: 1115 | B20: 115 Управление, контрол и регулиране на външните работи | C20: 1115
A21: 1116 | B21: 116 Посолства, консулства, представителства и мисии в чужбина | C21: 1116
A22: 1117 | B22: 117 Държавни и общински служби и дейности по изборите | C22: 1117
A23: 1121 | B23: 121 Областни администрации | C23: 1121
A24: 1122 | B24: 122 Общинска администрация | C24: 1122
A25: 1123 | B25: 123 Общински съвети | C25: 1123
A26: 1125 | B26: 125 Членове на Европейския парламент от Република България | C26: 1125
A27: 1128 | B27: 128 Международни програми и споразумения, дарения и помощи от чужбина | C27: 1128
A28: 1139 | B28: 139 Други изпълнителни и законодателни органи | C28: 1139
A29: 1141 | B29: 141 Статистически институт,служби и дейности,социологически проучвания и анкети | C29: 1141
A30: 1142 | B30: 142 Общоикономическо и социално програмиране и прогнозиране | C30: 1142
A31: 1143 | B31: 143 Регистрация и контрол на чуждестранните инвестиции | C31: 1143
A32: 1144 | B32: 144 Служби и дейности за връзки с българите в чужбина | C32: 1144
A33: 1145 | B33: 145 Служби и дейности за подпомагане на бежанците | C33: 1145
A34: 1146 | B34: 146 Управление и администриране на получена чуждестранна помощ | C34: 1146
A35: 1147 | B35: 147 Управление на държавния резерв и военновременните запаси | C35: 1147
A36: 1148 | B36: 148 Управление на гражд.администрация и административнообслужване на населението | C36: 1148
A37: 1149 | B37: 149 Други общи служби | C37: 1149
A38: 1151 | B38: 151 Ликвидационна комисия за закрити бюджетни организации | C38: 1151
A39: 1158 | B39: 158 Международни програми и споразумения, дарения и помощи от чужбина | C39: 1158
A40: 1161 | B40: 161 Организация и управление на научните изследвания и дейности | C40: 1161
A41: 1162 | B41: 162 Научноизследователско дело | C41: 1162
A42: 1163 | B42: 163 Научноизследователски институти и центрове | C42: 1163
A43: 1168 | B43: 168 Международни програми и споразумения, дарения и помощи от чужбина | C43: 1168
A44: 1179 | B44: 179 Други дейности на науката | C44: 1179
A45: 2201 | B45: 201 Дейности по отбраната | C45: 2201
A46: 2205 | B46: 205 Участие на Република България в НАТО | C46: 2205
A47: 2206 | B47: 206 Мироопазващи мисии в чужбина | C47: 2206
A48: 2215 | B48: 215 Приложни научни изследвания в областта на отбраната | C48: 2215
A49: 2218 | B49: 218 Международни програми и споразумения, дарения и помощи от чужбина | C49: 2218
A50: 2219 | B50: 219 Други дейности по отбраната | C50: 2219
A51: 2221 | B51: 221 Полиция и вътрешен ред | C51: 2221
A52: 2222 | B52: 222 Национална служба за охрана | C52: 2222
A53: 2223 | B53: 223 Държавна агенция "Разузнаване" | C53: 2223
A54: 2224 | B54: 224 Противопожарна охрана | C54: 2224
A55: 2225 | B55: 225 Приложни научни изследвания в областта на вътрешния ред и сигурност | C55: 2225
A56: 2228 | B56: 228 Международни програми и споразумения, дарения и помощи от чужбина | C56: 2228
A57: 2239 | B57: 239 Други дейности по вътрешната сигурност | C57: 2239
A58: 2241 | B58: 241 Висш съдебен съвет | C58: 2241
A59: 2242 | B59: 242 Върховен административен съд | C59: 2242
A60: 2243 | B60: 243 Върховен касационен съд | C60: 2243
A61: 2244 | B61: 244 Прокуратура | C61: 2244
A62: 2245 | B62: 245 Национална следствена служба | C62: 2245
A63: 2246 | B63: 246 Съдилища | C63: 2246
A64: 2247 | B64: 247 Окръжни следствени служби | C64: 2247
A65: 2248 | B65: 248 Инспекторат към Висшия съдебен съвет | C65: 2248
A66: 2249 | B66: 249 Национален институт на правосъдието | C66: 2249
A67: 2258 | B67: 258 Международни програми и споразумения, дарения и помощи от чужбина | C67: 2258
A68: 2259 | B68: 259 Други дейности на съдебната власт | C68: 2259
A69: 2261 | B69: 261 Места за лишаване от свобода | C69: 2261
A70: 2268 | B70: 268 Международни програми и споразумения, дарения и помощи от чужбина | C70: 2268
A71: 2279 | B71: 279 Други дейности на администрацията на затворите | C71: 2279
A72: 2281 | B72: 281 Неотложна дейност по защита на населението и националното стопанство | C72: 2281
A73: 2282 | B73: 282 Отбранително-мобилизационна подготовка, поддържане на запаси и мощности | C73: 2282
A74: 2283 | B74: 283 Превантивна дейност за намаляване на вредните последствия от бедствия и аварии | C74: 2283
A75: 2284 | B75: 284 Ликвидиране на последици от стихийни бедствия и производствени аварии | C75: 2284
A76: 2285 | B76: 285 Доброволни формирования за защита при бедствия | C76: 2285
A77: 2288 | B77: 288 Международни програми и споразумения, дарения и помощи от чужбина | C77: 2288
A78: 2289 | B78: 289 Други дейности за защита на населението при стихийни бедствия и аварии | C78: 2289
A79: 3301 | B79: 301 Управление, контрол, регулиране и лицензиране на дейности по образованието | C79: 3301
A80: 3311 | B80: 311 Детски градини | C80: 3311
A81: 3312 | B81: 312 Специални групи в детски градини за деца със СОП | C81: 3312
A82: 3318 | B82: 318 Подготвителна група в училище | C82: 3318
A83: 3321 | B83: 321 Специални училища и центрове за специална образователна подкрепа | C83: 3321
A84: 3322 | B84: 322 Неспециализирани училища, без професионални гимназии | C84: 3322
A85: 3323 | B85: 323 Училища по културата и училища по изкуствата | C85: 3323
A86: 3324 | B86: 324 Спортни училища | C86: 3324
A87: 3325 | B87: 325 Български училища в чужбина | C87: 3325
A88: 3326 | B88: 326 Професионални гимназии и паралелки за професионална подготовка | C88: 3326
A89: 3327 | B89: 327 Училища в места за лишаване от свобода | C89: 3327
A90: 3332 | B90: 332 Общежития | C90: 3332
A91: 3333 | B91: 333 Ученически почивни лагери | C91: 3333
A92: 3334 | B92: 334 Повишаване на квалификацията | C92: 3334
A93: 3336 | B93: 336 Столове | C93: 3336
A94: 3337 | B94: 337 Център за подкрепа за личностно развитие | C94: 3337
A95: 3338 | B95: 338 Ресурсно подпомагане | C95: 3338
A96: 3341 | B96: 341 Академии, университети и висши училища | C96: 3341
A97: 3349 | B97: 349 Приложни научни изследвания в областта на образованието | C97: 3349
A98: 3359 | B98: 359 Други дейности за децата | C98: 3359
A99: 3369 | B99: 369 Други дейности за младежта | C99: 3369
A100: 3388 | B100: 388 Международни програми и споразумения, дарения и помощи от чужбина | C100: 3388
A101: 3389 | B101: 389 Други дейности по образованието | C101: 3389
A102: 4401 | B102: 401 Управление, контрол и регулиране на дейности по здравеопазването | C102: 4401
A103: 4412 | B103: 412 Многопрофилни болници за активно лечение | C103: 4412
A104: 4415 | B104: 415 Домове за медико-социални грижи | C104: 4415
A105: 4418 | B105: 418 Психиатрични болници | C105: 4418
A106: 4429 | B106: 429 Центрове за спешна медицинска помощ | C106: 4429
A107: 4431 | B107: 431 Детски ясли, детски кухни и яслени групи в детска градина | C107: 4431
A108: 4433 | B108: 433 Рехабилитация | C108: 4433
A109: 4436 | B109: 436 Национални центрове | C109: 4436
A110: 4437 | B110: 437 Здравен кабинет в детски градини и училища | C110: 4437
A111: 4450 | B111: 450 Преобразувани лечебни заведения | C111: 4450
A112: 4451 | B112: 451 Плащания за първична извънболнична медицинска помощ | C112: 4451
A113: 4452 | B113: 452 Плащания за специализирана извънболнична медицинска помощ | C113: 4452
A114: 4453 | B114: 453 Плащания за дентална помощ | C114: 4453
A115: 4454 | B115: 454 Плащания за медико-диагностична дейност | C115: 4454
A116: 4455 | B116: 455 Плащания за лекарствени продукти, медицински изделия и диетични храни за специални медицински цели за домашно лечение на територията на страната | C116: 4455
A117: 4456 | B117: 456 Плащания за болнична медицинска помощ | C117: 4456
A118: 4457 | B118: 457 Плащания за медицински изделия прилагани в болничната медицинска помощ | C118: 4457
A119: 4458 | B119: 458 Плащания за лекарствени продукти при злокачествени заболявания в условия на болнична медицинска помощ | C119: 4458
A120: 4459 | B120: 459 Други здравноосигурителни плащания | C120: 4459
A121: 4465 | B121: 465 Приложни научни изследвания в областта на здравеопазването | C121: 4465
A122: 4467 | B122: 467 Национални програми | C122: 4467
A123: 4468 | B123: 468 Международни програми и споразумения, дарения и помощи от чужбина | C123: 4468
A124: 4469 | B124: 469 Други дейности по здравеопазването | C124: 4469
A125: 5501 | B125: 501 Пенсии | C125: 5501
A126: 5511 | B126: 511 Помощи по Закона за семейните помощи за деца | C126: 5511
A127: 5512 | B127: 512 Помощи по Закона за социално подпомагане | C127: 5512
A128: 5513 | B128: 513 Помощи по Закона за интеграция на хората с увреждания | C128: 5513
A129: 5514 | B129: 514 Помощи за диагностика и лечение на социално слаби лица | C129: 5514
A130: 5515 | B130: 515 Помощи по Закона за закрила на детето | C130: 5515
A131: 5516 | B131: 516 Помощи по Закона за ветераните от войните | C131: 5516
A132: 5517 | B132: 517 Помощи по Закона за военноинвалидите и военнопострадалите | C132: 5517
A133: 5518 | B133: 518 Социални помощи и обезщетения по международни програми, помощи и дарения | C133: 5518
A134: 5519 | B134: 519 Други помощи и обезщетения | C134: 5519
A135: 5521 | B135: 521 Служби по социалното осигуряване (ДОО и др.) | C135: 5521
A136: 5522 | B136: 522 Дирекции за социално подпомагане | C136: 5522
A137: 5524 | B137: 524 Домашен социален патронаж | C137: 5524
A138: 5525 | B138: 525 Клубове на пенсионера, инвалида и др. | C138: 5525
A139: 5526 | B139: 526 Центрове за обществена подкрепа | C139: 5526
A140: 5527 | B140: 527 Звена "Майка и бебе" | C140: 5527
A141: 5528 | B141: 528 Център за работа с деца на улицата | C141: 5528
A142: 5529 | B142: 529 Кризисен център | C142: 5529
A143: 5530 | B143: 530 Център за настаняване от семеен тип | C143: 5530
A144: 5531 | B144: 531 Дейности за предотвратяване на трудови злополуки и професионални болести | C144: 5531
A145: 5532 | B145: 532 Програми за временна заетост | C145: 5532
A146: 5533 | B146: 533 Други програми и дейности за осигуряване на заетост | C146: 5533
A147: 5534 | B147: 534 Наблюдавани жилища | C147: 5534
A148: 5535 | B148: 535 Преходни жилища | C148: 5535
A149: 5538 | B149: 538 Програми за закрила на детето | C149: 5538
A150: 5540 | B150: 540 Домове за стари хора | C150: 5540
A151: 5541 | B151: 541 Домове за възрастни хора с увреждания | C151: 5541
A152: 5545 | B152: 545 Социален учебно-професионален център | C152: 5545
A153: 5546 | B153: 546 Домове за деца | C153: 5546
A154: 5547 | B154: 547 Център за временно настаняване | C154: 5547
A155: 5548 | B155: 548 Дневни центрове за стари хора | C155: 5548
A156: 5550 | B156: 550 Центрове за социална рехабилитация и интеграция | C156: 5550
A157: 5551 | B157: 551 Дневни центрове за лица с увреждания | C157: 5551
A158: 5553 | B158: 553 Приюти | C158: 5553
A159: 5554 | B159: 554 Защитени жилища | C159: 5554
A160: 5556 | B160: 556 Приложни научни изследвания в областта на социалното осигуряване и подпомагане | C160: 5556
A161: 5561 | B161: 561 Социален асистент | C161: 5561
A162: 5562 | B162: 562 Личен асистент | C162: 5562
A163: 5588 | B163: 588 Международни програми и споразумения, дарения и помощи от чужбина | C163: 5588
A164: 5589 | B164: 589 Други служби и дейности по социалното осигуряване, подпомагане и заетостта | C164: 5589
A165: 6601 | B165: 601 Управление, контрол и регулиране на дейностите по жил. строителство и териториално развитие | C165: 6601
A166: 6602 | B166: 602 Служби по кадастър, геодезия и регистрация на недвижимата собственост | C166: 6602
A167: 6603 | B167: 603 Водоснабдяване и канализация | C167: 6603
A168: 6604 | B168: 604 Осветление на улици и площади | C168: 6604
A169: 6605 | B169: 605 Бани и перални | C169: 6605
A170: 6606 | B170: 606 Изграждане, ремонт и поддържане на уличната мрежа | C170: 6606
A171: 6618 | B171: 618 Международни програми и споразумения, дарения и помощи от чужбина | C171: 6618
A172: 6619 | B172: 619 Други дейности по жилищното строителство, благоустройството и регионалното развитие | C172: 6619
A173: 6621 | B173: 621 Управление, контрол и регулиране на дейностите по опазване на околната среда | C173: 6621
A174: 6622 | B174: 622 Озеленяване | C174: 6622
A175: 6623 | B175: 623 Чистота | C175: 6623
A176: 6624 | B176: 624 Геозащита | C176: 6624
A177: 6625 | B177: 625 Приложни и научни изследвания в областта на опазване на околната среда | C177: 6625
A178: 6626 | B178: 626 Пречистване на отпадъчните води от населените места | C178: 6626
A179: 6627 | B179: 627 Управление на дейностите по отпадъците | C179: 6627
A180: 6628 | B180: 628 Международни програми и споразумения, дарения и помощи от чужбина | C180: 6628
A181: 6629 | B181: 629 Други дейности по опазване на околната среда | C181: 6629
A182: 7701 | B182: 701 Дейности по почивното дело и социалния отдих | C182: 7701
A183: 7708 | B183: 708 Международни програми и споразумения, дарения и помощи от чужбина | C183: 7708
A184: 7711 | B184: 711 Управление, контрол и регулиране на дейностите по спорта | C184: 7711
A185: 7712 | B185: 712 Детски и специализирани спортни школи | C185: 7712
A186: 7713 | B186: 713 Спорт за всички | C186: 7713
A187: 7714 | B187: 714 Спортни бази за спорт за всички | C187: 7714
A188: 7718 | B188: 718 Международни програми и споразумения, дарения и помощи от чужбина | C188: 7718
A189: 7719 | B189: 719 Други дейности по спорта и физическата култура | C189: 7719
A190: 7731 | B190: 731 Управление, контрол и регулиране на дейностите по културата | C190: 7731
A191: 7732 | B191: 732 Културни дейности | C191: 7732
A192: 7733 | B192: 733 Български културни институти в чужбина | C192: 7733
A193: 7735 | B193: 735 Театри | C193: 7735
A194: 7736 | B194: 736 Оперно - филхармонични дружества и опери | C194: 7736
A195: 7737 | B195: 737 Оркестри и ансамбли | C195: 7737
A196: 7738 | B196: 738 Читалища | C196: 7738
A197: 7739 | B197: 739 Музеи, худ. галерии, паметници на културата и етногр. комплекси с национален и регионален харакер | C197: 7739
A198: 7740 | B198: 740 Музеи, художествени галерии, паметници на културата и етнографски комплекси с местен харакер | C198: 7740
A199: 7741 | B199: 741 Радиотранслационни възли | C199: 7741
A200: 7742 | B200: 742 Радио | C200: 7742
A201: 7743 | B201: 743 Телевизия | C201: 7743
A202: 7744 | B202: 744 Филмотечно и фонотечно дело | C202: 7744
... 513 more rows
